{"text_format":"1","workbook":"xlsx","n_sheets":7,"sheets":["instrukcja","ESG","Progi istotności","AMA","PKD","Słowniki","EBRD_PKD_ESG risk"],"not_rendered":{"charts":0,"images":2,"macros":1,"external_links":1,"defined_names":6,"comments":1,"pivot_tables":0},"unopened":[],"bounds":{"document_bytes":16777216,"sheet_cells":100000,"rows_first":2000,"rows_last":500,"rows_between":2000,"halvings":0,"cell_chars":16384,"cell_head_chars":4096},"cells_cut":0,"cells_raw":0,"read":"whole","date_system":"1900"}

{"sheet":"instrukcja","index":0,"n_rows":32,"n_cols":3,"rows_kept":32,"cut":false,"hidden":false,"merged":[[26,1,26,2],[5,1,5,2],[4,1,4,2],[3,1,3,2],[11,1,11,2],[20,1,20,2],[12,1,12,2],[13,1,13,2],[14,1,14,2],[15,1,15,2],[16,1,16,2],[17,1,17,2],[18,1,18,2],[19,1,19,2],[31,1,31,2],[27,1,27,2],[28,1,28,2],[29,1,29,2],[30,1,30,2]]}
[]
[null,"Instrukcja pracy z plikiem"]
[]
[1,"Pracownik Banku pracuje w ramach niniejszego pliku na arkuszu o nazwie ESG"]
[2,"Arkusz ESG należy wypełnić dla każdego klienta, na etapie wnioskowania przez klienta o kredyt/ produkt generujący ryzyko kredytowe / zmianę warunków istniejącej umowy kredytowej, w sytuacji gdy od ostatniej oceny ryzyka ESG klienta (od ostatniego wypełnienia dla klienta arkusza ESG) upłynął co najmniej 1 rok."]
[3,"W pierwszej kolejności w arkuszu ESG należy wskazać segment (wg klasyfikacji unijnej), do jakiego należy klient wg skali / rozmiaru jego działalności biznesowej. Słownik segmentów dostępnych do wyboru w arkuszu ESG wskazano w tabeli poniżej."]
[null,"Segment klienta","Definicja segmentu"]
[null,"duży","klient zatrudniający co najmniej 250 osób oraz którego obroty roczne wynoszą więcej niż 50 mln EUR lub którego roczna suma bilansowa jest wyższa niż 43 mln EUR"]
[null,"średni","klient zatrudniający 50-249 osób oraz o obrotach rocznych pomiędzy 10 mln EUR a 50 mln EUR lub roczną sumą bilansową pomiędzy 10 mln EUR a 43 mln EUR"]
[null,"mały","klient zatrudniający mniej niż 50 osób oraz którego obroty roczne lub roczna suma bilansowa nie przekracza 10 mln EUR"]
[]
[4,"W arkuszu ESG należy uzupełnić sekcję \"Formularz klienta\", w tym: "]
[null,"a. nazwę klienta"]
[null,"b. REGON"]
[null,"c. datę wniosku (przycisk wstawia datę dzisiejszą)"]
[null,"d. pracownika wypełniającego"]
[null,"e. segment klienta (zgodnie z powyższą tabelą)"]
[null,"f. kod PKD wiodącej działalności gospodarczej klienta - do wyboru z listy rozwijanej (jeśli klient nie zna kodu, można go wyszukać w arkuszu PKD)"]
[5,"W arkuszu automatycznie zostanie wyświetlona ocena potencjalnego ryzyka ESG wybranego kodu PKD (w kom. C10)"]
[6,"Tabela Wskaźniki do pobrania na potrzeby ujawnień III filara, jest elementem stałym arkusza i należy ją wypełnić dla każdego klienta.\nJeśli na pytanie 3 lub 4 udzielono odpowiedzi TAK, w polu poniżej danego pytania należy zaznaczyć, które z ryzyk miały wpływ na klienta."]
[7,"Po uzupełnieniu pól segment klienta oraz kod PKD należy kliknąć przycisk Wybierz. Klienci z segmentu \"mały\", których branża nie została zakwalifikowana do branż podwyższonego ryzyka wypełniają tylko tabelę dot. Ujawnienia III filara. Zależnie od segmentu i kodu PKD w dalszej części formularza trzeba będzie uzupełnić arkusz zgodnie z poniższą tabelą."]
[null,"Klient/segment klienta","Przeprowadzanie analizy istotności ryzyka ESG (wypełnienie arkusza \"średni\" lub \"duży\")"]
[null,"duży","dla każdego klienta - tabela Wskaźniki do pobrania na potrzeby analizy istotności ryzyka ESG - segment \"duży\""]
[null,"średni","dla każdego klienta - tabela Wskaźniki do pobrania na potrzeby analizy istotności ryzyka ESG - segment \"mikro/mały/średni\""]
[null,"mały","dla klientów, których działalność klasyfikuje się do PKD o potencjalnie podwyższonym ryzyku ESG - tabela Wskaźniki do pobrania na potrzeby analizy istotności ryzyka ESG - segment \"mikro/mały/średni\""]
[]
[8,"W arkuszu ESG w polach F7-F8 pojawiają się komunikaty o konieczności uzupełnienia określonych tabel"]
[9,"W arkuszu oznaczono kolorem pomarańczowym pytania, na które nie udzielono odpowiedzi, a jest ona wymagana."]
[10,"Po wypełnieniu tabeli lub tabel w arkuszu \"ESG\" wyświetli się automatycznie rezultat przeprowadzonej analizy istotności ryzyka ESG."]
[11,"Rezultat \"Podwyższone ryzyko ESG\" oznacza, że dla klientów wskazanych poniżej należy uwzględnić czynniki związane z ryzykiem ESG w analizie wrażliwości zdolności kredytowej klienta w ramach odrębnych, dedykowanych do tego celu arkuszy. Rodzaje ekspozycji, dla których należy przeprowadzać analizę wrażliwości zdolności kredytowej określono w Podręczniku kredytowym."]
[12,"Po uzupelnieniu całego formularza można zapisać dokument klikając przycisk \"wydruk arkusza\" z grafiką drukarki. Plik zapisze się w lokalizacji, w której przechowywany jest plik w wersji Excel."]
[13,"Przycisk \"wyczyść arkusz\" czyści wszystkie pola (zarówno te z formularza klienta jak i te z tabel dla klientów z segmentu dużego, średniego) i tabeli do ujawnień III filara."]

{"sheet":"ESG","index":1,"n_rows":129,"n_cols":26,"rows_kept":129,"cut":false,"hidden":false,"merged":[[7,2,8,3],[5,5,5,6],[16,2,16,4],[18,2,18,4],[13,2,13,4],[14,2,14,4],[15,2,15,4],[6,5,6,6],[7,5,8,6],[0,1,0,3],[35,1,35,4],[23,5,23,6],[23,1,23,2],[24,1,24,2],[24,5,24,6],[1,1,1,3],[2,2,2,3],[3,2,3,3],[12,1,12,6],[14,1,15,1],[11,1,11,6],[9,2,9,3],[5,2,5,3],[6,2,6,3],[7,1,8,1],[36,1,36,6],[37,1,37,4],[38,1,38,6],[39,1,39,4],[40,1,40,6],[41,1,41,4],[42,1,42,6],[43,1,43,4],[44,1,44,6],[45,1,45,4],[55,1,55,2],[55,5,55,6],[56,1,56,2],[56,5,56,6],[70,1,70,4],[71,1,71,6],[72,1,72,4],[73,1,73,4],[78,1,78,4],[79,1,79,4],[75,1,75,4],[77,1,77,4],[74,1,74,4],[76,1,76,4],[81,1,81,6],[82,1,82,4],[84,1,84,6],[85,1,85,4],[87,1,87,6],[95,1,95,4],[96,1,96,4],[97,1,97,6],[98,1,98,4],[88,1,88,4],[89,1,89,4],[90,1,90,4],[91,1,91,6],[92,1,92,4],[94,1,94,6],[117,1,117,6],[118,1,118,4],[109,1,109,4],[110,1,110,4],[111,1,111,6],[112,1,112,4],[113,1,113,6],[114,1,114,4],[115,1,115,6],[116,1,116,4],[104,1,104,4],[105,1,105,6],[106,1,106,4],[107,1,107,4],[108,1,108,4],[99,1,99,6],[100,1,100,4],[101,1,101,4],[102,1,102,4],[103,1,103,4],[127,1,127,2],[127,5,127,6],[128,1,128,2],[128,5,128,6],[17,1,17,6],[19,1,19,6],[29,1,32,4],[64,1,67,4],[33,2,33,3],[80,1,80,4],[83,1,83,4],[86,1,86,4],[93,1,93,4],[119,1,119,4],[120,1,120,6],[121,1,121,4]]}
[null,"OCENA ISTOTNOŚCI RYZYKA ESG KLIENTA",null,null,null,null,null,null,null,"kolumna techniczna","kolumna techniczna","kolumna techniczna","kolumna techniczna","kolumna techniczna","kolumna techniczna","kolumna techniczna","kolumna techniczna","kolumna techniczna",null,null,"wydruk nazwa","ArkESG_REGON/PESEL_Nazwa_DATA",null,null,null,{"$f":"CONCATENATE(\"ArkESG_\",C4,\"_\",LEFT(C3,10),\"_\",TEXT(NOW(),\"rrrrMMdd\"))","v":"ArkESG___20220916"}]
[null,"FORMULARZ KLIENTA",null,null,null,"WYNIK OCENY ISTOTNOŚCI RYZYKA ESG",{"$f":"IF(OR(C3=\"\",C4=\"\",C5=\"\",C6=\"\",C7=\"\",C8=\"\"),\"UZUPEŁNIJ FORMULARZ KLIENTA\",\nIF(OR(F8=\"Uzupełnij tabelę Wskaźniki do pobrania na potrzeby analizy istotności ryzyka ESG - segment duży\",F8=\"Uzupełnij tabelę Wskaźniki do pobrania na potrzeby analizy istotności ryzyka ESG - segment mikro/mały/średni\",F7=\"Uzupełnij wskaźniki do pobrania na potrzeby ujawnień III filara\"),\"NIEKOMPLETNE DANE\",\nIF(F6=\"BRAK KONIECZNOŚCI PRZEPROWADZENIA ANALIZY ISTOTNOŚCI RYZYKA ESG\",\"BRAK PODWYŻSZONEGO RYZYKA ESG\",\nIF(C7=\"DUŻY\",N9,N2))))","v":"UZUPEŁNIJ FORMULARZ KLIENTA"},null,null,null,null,null,"ŚREDNIE",{"$f":"IF(N7>=N3,IF(C7=\"ŚREDNI\",\"PODWYŻSZONE RYZYKO ESG - wymagana analiza wrażliwości zdolności kredytowej na poziomie ekspozycji\",\"PODWYŻSZONE RYZYKO ESG - zweryfikuj w Podręczniku kredytowym, czy wymagana jest analiza wrażliwości na poziomie ekspozycji\"),\"BRAK PODWYŻSZONEGO RYZYKA ESG\")","v":"BRAK PODWYŻSZONEGO RYZYKA ESG"}]
[null,"Nazwa klienta",null,null,null,"Ryzyko środowiskowe (\"E\")",{"$f":"IF(G2=\"UZUPEŁNIJ FORMULARZ KLIENTA\",\"nie dotyczy\",IF(G2=\"BRAK PODWYŻSZONEGO RYZYKA ESG\",\"nie dotyczy\",IF(OR(G2=\"NIEKOMPLETNE DANE\",G2=\"BRAK PODWYŻSZONEGO RYZYKA ESG\"),\"nie dotyczy\",IF(OR(C7=\"ŚREDNI\",C7=\"MAŁY/MIKRO\"),IF(N4>='Progi istotności'!D5/2,\"Podwyższone ryzyko\",\"nie dotyczy\"),IF(OR(P11>=Q11,R11>='Progi istotności'!D9),\"Podwyższone ryzyko\",\"nie dotyczy\")))))","v":"nie dotyczy"},null,null,null,null,null,"próg istotności",{"$f":"'Progi istotności'!D5","v":2}]
[null,"REGON",null,null,null,"Ryzyko społeczne (\"S\")",{"$f":"IF(G2=\"UZUPEŁNIJ FORMULARZ KLIENTA\",\"nie dotyczy\",IF(G2=\"BRAK PODWYŻSZONEGO RYZYKA ESG\",\"nie dotyczy\",IF(OR(G2=\"NIEKOMPLETNE DANE\",G2=\"BRAK PODWYŻSZONEGO RYZYKA ESG\"),\"nie dotyczy\",IF(OR(C7=\"ŚREDNI\",C7=\"MAŁY/MIKRO\"),IF(N5>='Progi istotności'!D5/2,\"Podwyższone ryzyko\",\"nie dotyczy\"),IF(OR(P12>=Q12,R12>='Progi istotności'!D9),\"Podwyższone ryzyko\",\"nie dotyczy\")))))","v":"nie dotyczy"},null,null,null,null,null,"E",{"$f":"IF(OR(G17=\"\",G17=\"nie dotyczy\"),0,G17+IF(OR(G19=\"\",G19=\"nie dotyczy\"),0,G19))+IF(G38<>\"\",G38,0)+IF(G40<>\"\",G40,0)","v":0}]
[null,"Data wniosku",null,null,null,"Ryzyko związane z zarządzaniem (\"G\")",{"$f":"IF(G2=\"UZUPEŁNIJ FORMULARZ KLIENTA\",\"nie dotyczy\",IF(G2=\"BRAK PODWYŻSZONEGO RYZYKA ESG\",\"nie dotyczy\",IF(OR(G2=\"NIEKOMPLETNE DANE\",G2=\"BRAK PODWYŻSZONEGO RYZYKA ESG\"),\"nie dotyczy\",IF(OR(C7=\"ŚREDNI\",C7=\"MAŁY/MIKRO\"),IF(N6>='Progi istotności'!D5/2,\"Podwyższone ryzyko\",\"nie dotyczy\"),IF(OR(P13>=Q13,R13>='Progi istotności'!D9),\"Podwyższone ryzyko\",\"nie dotyczy\")))))","v":"nie dotyczy"},null,null,null,null,null,"S",{"$f":"IF(G42<>\"\",G42,0)+IF(G44<>\"\",G44,0)","v":0}]
[null,"Pracownik wypełniający",null,null,null,{"$f":"IF(AND(C7=\"mały/mikro\",C10=\"nie\"),\"BRAK KONIECZNOŚCI PRZEPROWADZENIA ANALIZY ISTOTNOŚCI RYZYKA ESG\",\"\")","v":""},null,null,null,"firma+branże",null,null,"G",{"$f":"IF(G46<>\"\",G46,0)","v":0}]
[null,"Segment klienta",null,null,null,{"$f":"IF(OR(F17=\"\",F19=\"\",F15=\"\",F16=\"\"),\"Uzupełnij Wskaźniki do pobrania na potrzeby ujawnień III filara\",\"\")","v":"Uzupełnij Wskaźniki do pobrania na potrzeby ujawnień III filara"},null,null,null,{"$f":"IF(AND(OR(C7=\"mały/mikro\",C7=\"\"),C10=\"b.d.\"),4,IF(C7=\"duży\",1,IF(C7=\"średni\",2,IF(AND(OR(C7=\"mały/mikro\"),C10=\"tak\"),3,0))))","v":4},null,null,"suma ESG",{"$f":"SUM(N4:N6)","v":0}]
[null,"PKD wiodącej działalności gospodarczej",null,null,null,{"$f":"IF(C7=\"DUŻY\",IF(P72>0,\"Uzupełnij tabelę Wskaźniki do pobrania na potrzeby analizy istotności ryzyka ESG - segment duży\",\"\"),IF(J7=2,IF(OR(F38=\"\",F40=\"\",F42=\"\",F44=\"\",F46=\"\"),\"Uzupełnij tabelę Wskaźniki do pobrania na potrzeby analizy istotności ryzyka ESG - segment mikro/mały/średni\",\"\"),IF(AND(C7=\"MAŁY/MIKRO\",C10=\"tak\"),IF(OR(F38=\"\",F40=\"\",F42=\"\",F44=\"\",F46=\"\"),\"Uzupełnij tabelę Wskaźniki do pobrania na potrzeby analizy istotności ryzyka ESG - segment mikro/mały/średni\",\"\"),\"\")))","v":""}]
[null,null,null,null,null,null,null,null,null,null,null,null,"DUŻE",{"$f":"IF(OR(P11>=Q11,P12>=Q12,P13>=Q13,R14>='Progi istotności'!D9),\"PODWYŻSZONE RYZYKO ESG - wymagana analiza wrażliwości zdolności kredytowej na poziomie ekspozycji\",\"BRAK PODWYŻSZONEGO RYZYKA ESG\")","v":"BRAK PODWYŻSZONEGO RYZYKA ESG"}]
[null,"Czy branża charakteryzuje się podwyższonym ryzykiem ESG?",{"$f":"IFERROR(VLOOKUP(LEFT($C$8,5),'EBRD_PKD_ESG risk'!$C$4:$J$410,8,0),IFERROR(VLOOKUP(LEFT($C$8,4),'EBRD_PKD_ESG risk'!$C$4:$J$410,8,0),IFERROR(VLOOKUP(LEFT($C$8,2),'EBRD_PKD_ESG risk'!$C$4:$J$410,8,0),\"b.d.\")))","v":"b.d."},null,null,null,null,null,null,null,null,null,null,"SUMA","MAX","%","PROGI ISTOTNOŚCI","KONTROWERSJE"]
[null,null,null,null,null,null,null,null,null,null,null,null,"E",{"$f":"IF(OR(G17=\"\",G17=\"nie dotyczy\"),0,G17+IF(OR(G19=\"\",G19=\"nie dotyczy\"),0,G19))+IF(G73<>\"\",G73,0)+IF(G75<>\"\",G75,0)+IF(G77<>\"\",G77,0)+IF(G80<>\"\",G80,0)+IF(G83<>\"\",G83,0)+IF(G86<>\"\",G86,0)+IF(G89<>\"\",G89,0)+IF(G90<>\"\",G90,0)+IF(G91<>\"\",G91,0)+IF(G93<>\"\",G93,0)+IF(G96<>\"\",G96,0)+IF(G97<>\"\",G97,0)","v":0},15,{"$f":"N11/O11","v":0},{"$f":"'Progi istotności'!D6","v":0.3},{"$f":"G99","v":""}]
[null,"Wskaźniki do pobrania na potrzeby ujawnień III filara:",null,null,null,null,null,null,null,null,null,null,"S",{"$f":"SUM(G101:G105)+SUM(G107:G111)","v":0},6,{"$f":"N12/O12","v":0},{"$f":"'Progi istotności'!D7","v":0.3},{"$f":"G113","v":""}]
[null,"GRUPA - Environmental",null,null,null,null,null,null,null,null,null,null,"G",{"$f":"IF(G115<>\"\",G115,0)+IF(G117<>\"\",G117,0)+IF(G119<>\"\",G119,0)+IF(G120<>\"\",G120,0)","v":0},2,0,{"$f":"'Progi istotności'!D8","v":0.5},{"$f":"G122","v":""}]
[null,"PODGRUPA","WSKAŹNIK ESG ",null,null,"ODPOWIEDŹ","PUNKTY ESG",null,null,null,null,null,"suma ESG",{"$f":"SUM(N11:N13)","v":0},{"$f":"SUM(O11:O13)","v":23},0,null,{"$f":"SUM(R11:R13)","v":0}]
[null,"Ryzyko przejścia, emisje gazów cieplarnianych","SCOPE 1 Emisja gazów cieplarnianych (w tonach ekwiwalentu CO2) - całkowita oraz na 1 mln PLN przychodu (jeśli dostępne) - za ostatnie 3 lata\nFORMA ODPOWIEDZI:\nWartości liczbowe / brak danych"]
[null,null,"SCOPE 2  Emisja gazów cieplarnianych (w tonach ekwiwalentu CO2) - całkowita oraz na 1 mln PLN przychodu (jeśli dostępne) - za ostatnie 3 lata\nFORMA ODPOWIEDZI:\nWartości liczbowe / brak danych"]
[null,"Ryzyko fizyczne, ryzyko chroniczne","Czy Kredytobiorca doświadczył negatywnego wpływu (w aspekcie finansowym) chronicznego ryzyka fizycznego związanego ze zmianą klimatu w ciągu ostatnich 3 lat?",null,null,null,{"$f":"IF(F6=\"BRAK KONIECZNOŚCI PRZEPROWADZENIA ANALIZY ISTOTNOŚCI RYZYKA ESG\",\"nie dotyczy\",IF(F17=\"TAK\",1,(IF(F17=\"NIE\",0,\"\"))))","v":""}]
[]
[null,"Ryzyko fizyczne, ryzyko nagłe","Czy Kredytobiorca doświadczył negatywnego wpływu (w aspekcie finansowym) nagłego ryzyka fizycznego związanego ze zmianą klimatu w ciągu ostatnich 3 lat?",null,null,null,{"$f":"IF(F6=\"BRAK KONIECZNOŚCI PRZEPROWADZENIA ANALIZY ISTOTNOŚCI RYZYKA ESG\",\"nie dotyczy\",IF(F19=\"TAK\",1,(IF(F19=\"NIE\",0,\"\"))))","v":""}]
[]
[]
[]
[]
[null,"…………………………………………",null,null,null,"…………………………………………"]
[null,"data i podpis pracownika Banku",null,null,null,"data i podpis Klienta"]
[]
[]
[]
[]
[null,"Wskaźniki do pobrania na potrzeby analizy istotności ryzyka ESG"]
[]
[]
[]
[null,"Segment klienta:","mikro/mały/średni"]
[]
[null,"WSKAŹNIK ESG ",null,null,null,"ODPOWIEDŹ","PUNKTY ESG"]
[null,"Environmental - Ryzyko przejścia, emisje gazów cieplarnianych"]
[null,"Czy Kredytobiorca identyfikuje, że może być narażony na negatywne skutki finansowe wynikające z ryzyka przejścia (np. z uwagi na konieczność wdrożenia zmian technologicznych, konieczność zmodyfikowania swojego modelu biznesowego, ryzyko reputacji, zmiany w polityce rządu) w horyzoncie czasowym do terminu zapadalności kredytu?",null,null,null,null,{"$f":"IF(F38=\"TAK\",1,(IF(F38=\"NIE\",0,\"\")))","v":""}]
[null,"Environmental - Kontrowersje"]
[null,"W odniesieniu do ostatnich 3 lat - czy pojawiły się kwestie powiązane z:\n(A) karami finansowymi za zanieczyszczanie / niszczenie środowiska / negatywne oddziaływanie na zdrowie ludzi lub zwierząt, lub\n(B) publicznymi protestami przeciwko działaniom / wpływowi na środowisko Kredytobiorcy, skandale medialne / kontrowersje związane z działaniami / wpływem na środowisko Kredytobiorcy? ",null,null,null,null,{"$f":"IF(F40=\"TAK\",2,(IF(F40=\"NIE\",0,\"\")))","v":""}]
[null,"Social - Kapitał ludzki / Siła robocza"]
[null,"Czy działalność biznesowa Kredytobiorcy może narażać jego pracowników na ryzyko poważnych obrażeń lub śmierci na stanowisku pracy / czy miały miejsce przypadki poważnych obrażeń / śmierci podczas wykonywania pracy w ciągu ostatnich 3 lat?",null,null,null,null,{"$f":"IF(F42=\"TAK\",1,(IF(F42=\"NIE\",0,\"\")))","v":""}]
[null,"Social - Kontrowersje"]
[null,"W odniesieniu do ostatnich 3 lat - czy pojawiły się kwestie (upublicznione przez media lub innych uczestników rynku) powiązane z: mobbingiem, naruszeniem polityki w zakresie zdrowia i bezpieczeństwa (procedur BHP), złamaniem praw człowieka, naruszeniem prawa pracy, etc. - które bezpośrednio (np. poprzez kary finansowe) lub pośrednio (np. poprzez odpływ klientów) negatywnie wpłynęły na wyniki finansowe Kredytobiorcy?",null,null,null,null,{"$f":"IF(F44=\"TAK\",2,(IF(F44=\"NIE\",0,\"\")))","v":""}]
[null,"Governance - Kontrowersje"]
[null,"W odniesieniu do ostatnich 3 lat - czy pojawiły się kwestie (upublicznione przez media lub innych uczestników rynku) powiązane z reputacją Kredytobiorcy, wynikające ze słabej jakości zarządzania (np. wystąpienia kwestii związanych z łapówkami, płaceniem podatków, etc. - które bezpośrednio (np. poprzez kary finansowe) lub pośrednio (np. poprzez odpływ klientów) negatywnie wpłynęły na wyniki finansowe Kredytobiorcy?",null,null,null,null,{"$f":"IF(F46=\"TAK\",2,(IF(F46=\"NIE\",0,\"\")))","v":""}]
[]
[]
[]
[]
[]
[]
[]
[]
[]
[null,"…………………………………………",null,null,null,"…………………………………………"]
[null,"data i podpis pracownika Banku",null,null,null,"data i podpis Klienta"]
[]
[]
[]
[]
[]
[]
[]
[null,"Wskaźniki do pobrania na potrzeby analizy istotności ryzyka ESG"]
[]
[]
[]
[null,"Segment klienta:","duży"]
[]
[null,"WSKAŹNIK ESG ",null,null,null,"ODPOWIEDŹ","PUNKTY ESG"]
[null,"Environmental - Ryzyko przejścia, emisje gazów cieplarnianych",null,null,null,null,null,null,null,null,null,null,null,null,null,{"$f":"SUM(P73:P122)","v":33}]
[null,"Czy Kredytobiorca identyfikuje, że może być narażony na negatywne skutki finansowe wynikające z ryzyka przejścia (np. z uwagi na konieczność wdrożenia zmian technologicznych, konieczność zmodyfikowania swojego modelu biznesowego, ryzyko reputacji, zmiany w polityce rządu) w horyzoncie czasowym do terminu zapadalności kredytu?",null,null,null,null,{"$f":"IF(F73=\"TAK\",1,(IF(F73=\"NIE\",0,\"\")))","v":""},null,null,null,null,null,null,null,null,{"$f":"COUNTBLANK(F73)","v":1}]
[null,"Czy Kredytobiorca jest w stanie podać wyliczenie / oszacowanie swoich emisji gazów cieplarnianych (w tonach ekwiwalentu CO2)? \nJeśli tak, które scope'y są dostępne? ",null,null,null,null,null,null,null,null,null,null,null,null,null,{"$f":"COUNTBLANK(F74)","v":1}]
[null,"SCOPE 1\nEmisja gazów cieplarnianych (w tonach ekwiwalentu CO2) - całkowita oraz na 1 mln PLN przychodu (jeśli dostępne) - za ostatnie 3 lata\nDO WYLICZENIA PRZEZ DORADCĘ NA BAZIE DANYCH O CAŁKOWITYCH EMISJACH I PRZYCHODACH POZYSKANYCH OD KLIENTA\n\nKRYTERIA DODATKOWE\nA) Względna ilość emisji na 1 mln PLN przychodu (średnia z 3 lat) przekracza 300 ton CO2\nB) Zaobserwowano wzrost względnej ilości emisji na 1 mln PLN przychodu pomiędzy obserwacją za 1Y a obserwacją za 3Y o więcej niż 30%\nC) niespełnienie kryterium A",null,null,null,null,{"$f":"IF(F74=\"\",\"\",IF(F74=\"NIE\",1,IF(F74=\"TAK - SCOPE 2\",1,IF(OR(F74=\"TAK - SCOPE 1\",F74=\"TAK - SCOPE 1 I 2\"),IF(F75=\"kryterium A\",1,IF(F75=\"kryterium A i B\",2,IF(F75=\"kryterium C\",0,\"\")))))))","v":""},null,null,null,null,null,null,null,null,{"$f":"IF(OR(F74=\"tak - scope 1\",F74=\"tak - scope 1 i 2\"),COUNTBLANK(F75),0)","v":0}]
[null,"SCOPE 1 - wartość",null,null,null,{"$f":"F15","v":0},null,null,null,null,null,null,null,null,null,{"$f":"COUNTBLANK(F76)","v":0}]
[null,"SCOPE 2  \nEmisja gazów cieplarnianych (w tonach ekwiwalentu CO2) - całkowita oraz na 1 mln PLN przychodu (jeśli dostępne) - za ostatnie 3 lata\nDO WYLICZENIA PRZEZ DORADCĘ NA BAZIE DANYCH O CAŁKOWITYCH EMISJACH I PRZYCHODACH POZYSKANYCH OD KLIENTA\n\nKRYTERIA DODATKOWE\nA) Względna ilość emisji na 1 mln PLN przychodu (średnia z 3 lat) przekracza 75 ton CO2\nB) Zaobserwowano wzrost względnej ilości emisji na 1 mln PLN przychodu pomiędzy obserwacją za 1Y a obserwacją za 3Y o więcej niż 30%\nC) niespełnienie kryterium A",null,null,null,null,{"$f":"IF(F74=\"\",\"\",IF(F74=\"NIE\",1,IF(F74=\"TAK - SCOPE 1\",1,IF(OR(F74=\"TAK - SCOPE 2\",F74=\"TAK - SCOPE 1 I 2\"),IF(F77=\"kryterium A\",1,IF(F77=\"kryterium A i B\",2,IF(F77=\"kryterium C\",0,\"\")))))))","v":""},null,null,null,null,null,null,null,null,{"$f":"IF(OR(F74=\"tak - scope 2\",F74=\"tak - scope 1 i 2\"),COUNTBLANK(F77),0)","v":0}]
[null,"SCOPE 2 - wartość",null,null,null,{"$f":"F16","v":0},null,null,null,null,null,null,null,null,null,0]
[null,"Czy Kredytobiorca podlega Europejskiemu Systemowi Handlu Emisjami (EU ETS)?",null,null,null,null,null,null,null,null,null,null,null,null,null,1]
[null,"Koszty nabywania uprawnień do emisji CO2 w EU ETS na 1 mln PLN przychodu (jeśli dostępne) - za ostatnie 3 lata.\n\nKRYTERIA DODATKOWE:\nDO WYLICZENIA PRZEZ DORADCĘ NA BAZIE DANYCH O KOSZTACH UCZESTNICTWA W ETS I O PRZYCHODACH POZYSKANYCH OD KLIENTA\nA) Udział kosztów EU ETS w 1 mln PLN przychodu (średnia z 3 lat) przekracza 30 tys.PLN\nB) Zaobserwowano wzrost udziału kosztów EU ETS w 1 mln PLN przychodu pomiędzy obserwacją za 1Y a obserwacją za 3Y o więcej niż 30%\nC) niespełnienie kryterium A",null,null,null,null,{"$f":"IF(F79=\"\",\"\",IF(F79=\"NIE\",0,IF(F80=\"brak danych\",1,IF(F80=\"kryterium A\",1,IF(F80=\"kryterium A i B\",2,IF(F80=\"kryterium C\",0,\"\"))))))","v":""},null,null,null,null,null,null,null,null,{"$f":"IF(F79=\"NIE\",0,COUNTBLANK(F80))","v":1}]
[null,"Koszty nabywania uprawnień do emisji CO2 w EU ETS na 1 mln PLN przychodu (jeśli dostępne) - za ostatnie 3 lata - wartości liczbowe / brak danych",null,null,null,null,null,null,null,null,null,null,null,null,null,{"$f":"IF(OR(F79=\"nie\",F80=\"BRAK DANYCH\"),0,COUNTBLANK(F81))","v":1}]
[null,"Environmental - Ryzyko przejścia, zarządzanie energią",null,null,null,null,null,null,null,null,null,null,null,null,null,0]
[null,"Zużycie energii elektrycznej (MWh) na 1 mln PLN przychodu - za ostatnie 3 lata\nDO WYLICZENIA PRZEZ DORADCĘ NA BAZIE DANYCH O ZUŻYCIU ENERGII I O PRZYCHODACH POZYSKANYCH OD KLIENTA\n\nKRYTERIA DODATKOWE:\nA) Względne zużycie EE na 1 mln PLN przychodu (średnia z 3 lat) przekracza 15 MW\nB) Zaobserwowano wzrost względnego zużycia EE na 1 mln PLN przychodu pomiędzy obserwacją za 1Y a obserwacją za 3Y o więcej niż 30%\nC) niespełnienie kryterium A",null,null,null,null,{"$f":"IF(F83=\"brak danych\",1,IF(F83=\"kryterium A\",1,IF(F83=\"kryterium A i B\",2,IF(F83=\"kryterium C\",0,\"\"))))","v":""},null,null,null,null,null,null,null,null,1]
[null,"Zużycie energii elektrycznej (MWh) na 1 mln PLN przychodu - za ostatnie 3 lata - wartości liczbowe / brak danych",null,null,null,null,null,null,null,null,null,null,null,null,null,{"$f":"IF(F83=\"BRAK DANYCH\",0,COUNTBLANK(F84))","v":1}]
[null,"Environmental - Ryzyko przejścia, zarządzanie zużyciem wody",null,null,null,null,null,null,null,null,null,null,null,null,null,0]
[null,"Zużycie wody (w m3) na 1 mln PLN przychodu - za ostatnie 3 lata\nDO WYLICZENIA PRZEZ DORADCĘ NA BAZIE DANYCH O ZUŻYCIU WODY I O PRZYCHODACH POZYSKANYCH OD KLIENTA\n\nKRYTERIA DODATKOWE\nA) Względne zużycie wody na 1 mln PLN przychodu (średnia z 3 lat) przekracza 200 m3\nB) Zaobserwowano wzrost względnego zużycia wody na 1 mln PLN przychodu pomiędzy obserwacją za 1Y a obserwacją za 3Y o więcej niż 30%\nC) niespełnienie kryterium A",null,null,null,null,{"$f":"IF(F86=\"brak danych\",1,IF(F86=\"kryterium A\",1,IF(F86=\"kryterium A i B\",2,IF(F86=\"kryterium C\",0,\"\"))))","v":""},null,null,null,null,null,null,null,null,1]
[null,"Zużycie wody (w m3) na 1 mln PLN przychodu - za ostatnie 3 lata - wartości liczbowe / brak danych",null,null,null,null,null,null,null,null,null,null,null,null,null,{"$f":"IF(F86=\"BRAK DANYCH\",0,COUNTBLANK(F87))","v":1}]
[null,"Environmental - Ryzyko przejścia - mitygacja ryzyka",null,null,null,null,null,null,null,null,null,null,null,null,null,0]
[null,"Czy Kredytobiorca korzysta z energii elektrycznej pochodzącej z odnawialnych źródeł energii (przynajmniej 10% zużycia EE)?",null,null,null,null,{"$f":"IF(F89=\"TAK\",-0.5,IF(F89=\"NIE\",0,\"\"))","v":""},null,null,null,null,null,null,null,null,1]
[null,"Czy Kredytobiorca wdrożył plan działania/harmonogram redukcji emisji gazów cieplarnianych / zużycia energii elektrycznej / zużycia wody?",null,null,null,null,{"$f":"IF(F90=\"TAK\",-0.5,IF(F90=\"NIE\",0,\"\"))","v":""},null,null,null,null,null,null,null,null,1]
[null,"Czy Kredytobiorca wdrożył ilościowe cele i KPI związane ze wspomnianym planem wraz z mechanizmem nadzorowania (obejmującym adekwatne kroki eskalacji)?",null,null,null,null,{"$f":"IF(F91=\"TAK\",-0.5,IF(F91=\"NIE\",0,\"\"))","v":""},null,null,null,null,null,null,null,null,1]
[null,"Environmental - Ryzyko fizyczne",null,null,null,null,null,null,null,null,null,null,null,null,null,0]
[null,"Proszę wskazać szacowane negatywne skutki finansowe ryzyka fizycznego zmiany klimatu jako % przychodu w ostatnich 3 latach\nDO WYLICZENIA PRZEZ DORADCĘ NA BAZIE DANYCH O STRATACH I O PRZYCHODACH POZYSKANYCH OD KLIENTA\n\nKRYTERIA DODATKOWE\nA) % przychodu utraconego z tytułu meterializacji ryzyka fizycznego (średnia z 3 lat) przekracza 15%\nB) Zaobserwowano wzrost % utraconych przychodów pomiędzy obserwacją za 1Y a obserwacją za 3Y o więcej niż 30%\nC) niespełnienie kryterium A",null,null,null,null,{"$f":"IF(F93=\"brak danych\",1,IF(F93=\"kryterium A\",1,IF(F93=\"kryterium A i B\",2,IF(F93=\"nie dotyczy\",0,IF(F93=\"kryterium C\",0,\"\")))))","v":""},null,null,null,null,null,null,null,null,1]
[null,"Proszę wskazać szacowane negatywne skutki finansowe ryzyka fizycznego zmiany klimatu jako % przychodu w ostatnich 3 latach - wartości liczbowe / brak danych",null,null,null,null,null,null,null,null,null,null,null,null,null,{"$f":"IF(OR(F93=\"nie dotyczy\",F93=\"brak danych\"),0,COUNTBLANK(F94))","v":1}]
[null,"Environmental - Ryzyko fizyczne - mitygacja ryzyka",null,null,null,null,null,null,null,null,null,null,null,null,null,0]
[null,"Czy Kredytobiorca wdrożył plan działania/harmonogram adaptacji klimatycznej / zarządzania ryzykiem fizycznym? ",null,null,null,null,{"$f":"IF(F96=\"TAK\",-0.5,IF(F96=\"NIE\",0,\"\"))","v":""},null,null,null,null,null,null,null,null,1]
[null,"Czy Kredytobiorca wdrożył ilościowe cele i KPI związane ze wspomnianym planem wraz z mechanizmem nadzorowania (obejmującym adekwatne kroki eskalacji)?",null,null,null,null,{"$f":"IF(F97=\"TAK\",-0.5,IF(F97=\"NIE\",0,\"\"))","v":""},null,null,null,null,null,null,null,null,1]
[null,"Environmental - Kontrowersje",null,null,null,null,null,null,null,null,null,null,null,null,null,0]
[null,"W odniesieniu do ostatnich 3 lat - czy pojawiły się kwestie powiązane z:\nA. karami finansowymi za zanieczyszczanie / niszczenie środowiska / negatywne oddziaływanie na zdrowie ludzi lub zwierząt, lub\nB. publicznymi protestami przeciwko działaniom / wpływowi na środowisko Kredytobiorcy, skandale medialne / kontrowersje związane z działaniami / wpływem na środowisko Kredytobiorcy? ",null,null,null,null,{"$f":"IF(F99=\"TAK\",2,(IF(F99=\"NIE\",0,\"\")))","v":""},null,null,null,null,null,null,null,null,1]
[null,"Social - Kapitał ludzki / Siła robocza",null,null,null,null,null,null,null,null,null,null,null,null,null,0]
[null,"Czy Kredytobiorca wdrożył procedury należytej staranności w przeciwdziałaniu wykorzystywaniu pracowników / pracy dzieci / pracy przymusowej w ramach działalności Kredytobiorcy i jego łańcucha dostaw?",null,null,null,null,{"$f":"IF(OR(F101=\"TAK\",F101=\"NIE DOTYCZY\"),0,IF(F101=\"NIE\",1,\"\"))","v":""},null,null,null,null,null,null,null,null,1]
[null,"Czy działalność biznesowa Kredytobiorcy może narażać jego pracowników na ryzyko poważnych obrażeń lub śmierci na stanowisku pracy / czy miały miejsce przypadki poważnych obrażeń / śmierci podczas wykonywania pracy w ciągu ostatnich 3 lat?",null,null,null,null,{"$f":"IF(F102=\"TAK\",1,IF(F102=\"NIE\",0,\"\"))","v":""},null,null,null,null,null,null,null,null,1]
[null,"Czy Kredytobiorca wdrożył procedury przeciwdziałania dyskryminacji oraz procedury bezpiecznego zgłaszania przypadków dyskryminacji?",null,null,null,null,{"$f":"IF(OR(F103=\"TAK\",F103=\"NIE DOTYCZY\"),0,IF(F103=\"NIE\",1,\"\"))","v":""},null,null,null,null,null,null,null,null,1]
[null,"Czy Kredytobiorca wdrożył plan działania/harmonogram odpowiedzialnego zarządzania kapitałem ludzkim?",null,null,null,null,{"$f":"IF(F104=\"TAK\",-0.5,IF(F104=\"NIE\",0,\"\"))","v":""},null,null,null,null,null,null,null,null,1]
[null,"Czy Kredytobiorca wdrożył ilościowe cele i KPI związane ze wspomnianym planem wraz z mechanizmem nadzorowania (obejmującym adekwatne kroki eskalacji)?",null,null,null,null,{"$f":"IF(F105=\"TAK\",-0.5,IF(F105=\"NIE\",0,\"\"))","v":""},null,null,null,null,null,null,null,null,1]
[null,"Social - Klienci - odpowiedzialność za produkt & ochrona danych",null,null,null,null,null,null,null,null,null,null,null,null,null,0]
[null,"Czy Kredytobiorca wdrożył formalnie zatwierdzone procedury zarządzania reklamacjami klientów?",null,null,null,null,{"$f":"IF(OR(F107=\"TAK\",F107=\"NIE DOTYCZY\"),0,IF(F107=\"NIE\",1,\"\"))","v":""},null,null,null,null,null,null,null,null,1]
[null,"Czy Kredytobiorca wdrożył procedury wycofywania produktów z rynku (ze względu na kwestie bezpieczeństwa/zgodności, etc.) - jeśli dotyczy",null,null,null,null,{"$f":"IF(OR(F108=\"TAK\",F108=\"NIE DOTYCZY\"),0,IF(F108=\"NIE\",1,\"\"))","v":""},null,null,null,null,null,null,null,null,1]
[null,"Czy Kredytobiorca wdrożył i aktywnie korzysta z procedur ochrony danych klientów, w szczególności danych osobowych (RODO)?",null,null,null,null,{"$f":"IF(F109=\"TAK\",0,IF(F109=\"NIE\",1,\"\"))","v":""},null,null,null,null,null,null,null,null,1]
[null,"Czy Kredytobiorca wdrożył plan działania/harmonogram odpowiedzialnego zarządzania klientami, produktami i danymi klientów?",null,null,null,null,{"$f":"IF(F110=\"TAK\",-0.5,IF(F110=\"NIE\",0,\"\"))","v":""},null,null,null,null,null,null,null,null,1]
[null,"Czy Kredytobiorca wdrożył ilościowe cele i KPI związane ze wspomnianym planem wraz z mechanizmem nadzorowania (obejmującym adekwatne kroki eskalacji)?",null,null,null,null,{"$f":"IF(F111=\"TAK\",-0.5,IF(F111=\"NIE\",0,\"\"))","v":""},null,null,null,null,null,null,null,null,1]
[null,"Social - Kontrowersje",null,null,null,null,null,null,null,null,null,null,null,null,null,0]
[null,"W odniesieniu do ostatnich 3 lat - czy pojawiły się kwestie (upublicznione przez media lub innych uczestników rynku) powiązane z: mobbingiem, naruszeniem polityki w zakresie zdrowia i bezpieczeństwa (procedur BHP), złamaniem praw człowieka, naruszeniem prawa pracy, etc. - które bezpośrednio (np. poprzez kary finansowe) lub pośrednio (np. poprzez odpływ klientów) negatywnie wpłynęły na wyniki finansowe Kredytobiorcy?",null,null,null,null,{"$f":"IF(F113=\"TAK\",2,(IF(F113=\"NIE\",0,\"\")))","v":""},null,null,null,null,null,null,null,null,1]
[null,"Governance - Kodeks postępowania / Etyka biznesowa",null,null,null,null,null,null,null,null,null,null,null,null,null,0]
[null,"Czy Kredytobiorca wdrożył procedury i mechanizmy zapewniania etycznych zachowań biznesowych - przejrzystości, uczciwości, odpowiedzialności, zgodności z prawem, szacunku, zapobieganiu kwestiom związanym z korupcją)? ",null,null,null,null,{"$f":"IF(OR(F115=\"TAK\",F115=\"NIE DOTYCZY\"),0,IF(F115=\"NIE\",1,\"\"))","v":""},null,null,null,null,null,null,null,null,1]
[null,"Governance - Zarządzanie ciągłością biznesu",null,null,null,null,null,null,null,null,null,null,null,null,null,0]
[null,"Czy Kredytobiorca wdrożył procedury zarządzania ciągłością biznesu / identyfikacji i zarządzania zdarzeniami o skali zbliżonej do klęski żywiołowej oraz czy Kredytobiorca przeprowadza okresowe testy ciągłości biznesowej?",null,null,null,null,{"$f":"IF(OR(F117=\"TAK\",F117=\"NIE DOTYCZY\"),0,IF(F117=\"NIE\",1,\"\"))","v":""},null,null,null,null,null,null,null,null,1]
[null,"Governance - Kodeks postępowania / Etyka biznesowa",null,null,null,null,null,null,null,null,null,null,null,null,null,0]
[null,"Czy Kredytobiorca wdrożył plan działania/harmonogram dla odpowiedzialnego ładu korporacyjnego (np. szkolenia w zakresie etyki / przeciwdziałania łapówkom, ustalanie celów, odpowiedzialne systemy wynagrodzeń)?",null,null,null,null,{"$f":"IF(F119=\"TAK\",-0.5,IF(F119=\"NIE\",0,\"\"))","v":""},null,null,null,null,null,null,null,null,1]
[null,"Czy Kredytobiorca wdrożył ilościowe cele i KPI związane ze wspomnianym planem wraz z mechanizmem nadzorowania (obejmującym adekwatne kroki eskalacji)?",null,null,null,null,{"$f":"IF(F120=\"TAK\",-0.5,IF(F120=\"NIE\",0,\"\"))","v":""},null,null,null,null,null,null,null,null,1]
[null,"Governance - Kontrowersje",null,null,null,null,null,null,null,null,null,null,null,null,null,0]
[null,"W odniesieniu do ostatnich 3 lat - czy pojawiły się kwestie (upublicznione przez media lub innych uczestników rynku) powiązane z reputacją Kredytobiorcy, wynikające ze słabej jakości zarządzania (np. wystąpienia kwestii związanych z łapówkami, płaceniem podatków, etc. - które bezpośrednio (np. poprzez kary finansowe) lub pośrednio (np. poprzez odpływ klientów) negatywnie wpłynęły na wyniki finansowe Kredytobiorcy?",null,null,null,null,{"$f":"IF(F122=\"TAK\",2,(IF(F122=\"NIE\",0,\"\")))","v":""},null,null,null,null,null,null,null,null,1]
[]
[]
[]
[]
[]
[null,"…………………………………………",null,null,null,"…………………………………………"]
[null,"data i podpis pracownika Banku",null,null,null,"data i podpis Klienta"]

{"sheet":"Progi istotności","index":2,"n_rows":11,"n_cols":11,"rows_kept":11,"cut":false,"hidden":true,"merged":[[5,4,7,4],[5,5,8,5]]}
[null,"ARKUSZ STANOWI TYLKO PRZYKŁAD ILUSTRACYJNY - OSTATECZNE PROGI ISTOTNOŚCI DO DECYZJI BANKU"]
[null,null,null,null,null,null,null,"Punkt odniesienia dla progów istotności dla niektórych pytań dla klienta dużego"]
[]
[null,null,null,"Próg istotności (do wyboru przez Bank):","jednostka:","Identyfikacja podwyższonego ryzyka ESG:",{"$f":"IF(G2=\"BRAK PODWYŻSZONEGO RYZYKA ESG\",\"N/A\",IF(OR(G2=\"NIEKOMPLETNE DANE\",G2=\"BRAK PODWYŻSZONEGO RYZYKA ESG\"),\"N/A\",IF(OR(I7=3,I7=2),IF(#REF!>='Progi istotności'!D5,\"Podwyższone ryzyko\",\"N/A\"),IF(OR(#REF!>='Progi istotności'!D7,#REF!>='Progi istotności'!D10),\"Podwyższone ryzyko\",\"N/A\"))))","v":{"$error":"#REF!"}},"#","WSKAŹNIK ESG ","Progi","Komentarz"]
[null,"Klienci średni, mali, mikro:","E, S i G:",2,"pkt. ryzyka ESG","Przypisanie klientowi co najmniej takiej liczby punktów ryzyka ESG jak wskazano w komórce D5",null,3,"SCOPE 1 Emisja gazów cieplarnianych (w tonach ekwiwalentu CO2) - całkowita oraz na 1 mln PLN przychodu (jeśli dostępne) - za ostatnie 3 lata","Średnia z 3 lat przekracza <250-400> ton CO2 na 1 mln PLN przychodu","https://sciencebasedtargets.org/resources/legacy/2014/10/p120329-Randers-on-GEVA-Energy-Policy-color.pdf\n (str. 20 - przeliczone na PLN) Rekomendujemy backtesting tych progów w odniesieniu do rzeczywistych odpowiedzi pozyskiwanych od klientów."]
[null,"Klienci duzi:","E:",0.3,"% punktów ryzyka na maksymalną możliwą liczbę do uzyskania (z wyłączenie punktów za kontrowersje ponieważ są ujmowane jako osobny czynnik podwyższający ryzyko ESG)","Przypisanie klientowi co najmniej tylu punktów za kontrowersje ile wskazano w komórce D10 LUB przypisanie klientowi w obszarze E lub S lub G liczby punktów ESG przekraczających progi procentowe wskazane w komórkach D7, D8, D9",null,4,"SCOPE 2  Emisja gazów cieplarnianych (w tonach ekwiwalentu CO2) - całkowita oraz na 1 mln PLN przychodu (jeśli dostępne) - za ostatnie 3 lata","Średnia z 3 lat przekracza <50-100> ton CO2 na 1 mln PLN przychodu","https://sciencebasedtargets.org/resources/legacy/2014/10/p120329-Randers-on-GEVA-Energy-Policy-color.pdf\n (str. 20 - przeliczone na PLN) Rekomendujemy backtesting tych progów w odniesieniu do rzeczywistych odpowiedzi pozyskiwanych od klientów."]
[null,null,"S:",0.3,null,null,null,6,"Koszty nabywania uprawnień do emisji CO2 w EU ETS na 1 mln PLN przychodu (jeśli dostępne) - za ostatnie 3 lata","Średnia z 3 lat przekracza <10 tys. PLN - 50 tys. PLN> na 1 mln PLN przychodu (do decyzji Banku)","Efektywnie 1%-5% przychodu, w tym obszarze dane są trudno dostępne, proponujemy określenie istotności w kontekście poziomu, który może być istotny dla wskaźników finansowych w analizie zdolności kredytowej.  Rekomendujemy backtesting tych progów w odniesieniu do rzeczywistych odpowiedzi pozyskiwanych od klientów."]
[null,null,"G:",0.5,null,null,null,7,"Zużycie a energii elektrycznej (MWh) na 1 mln PLN przychodu - za ostatnie 3 lata","Średnia z 3 lat przekracza 10-15 MWh na 1 mln PLN przychodu (do decyzji Banku)","Dane są trudno dostępne. Oszacowano na bazie raportów CSR wybranych spółek. Rekomendujemy backtesting tych progów w odniesieniu do rzeczywistych odpowiedzi pozyskiwanych od klientów."]
[null,null,"Kontrowersje:",2,"pkt. ryzyka ESG",null,null,8,"Zużycie wody (w m3) na 1 mln PLN przychodu - za ostatnie 3 lata","Średnia z 3 lat przekracza <150-200> m3 na 1 mln PLN przychodu","Dane są trudno dostępne. Oszacowano na bazie raportów CSR wybranych spółek. Rekomendujemy backtesting tych progów w odniesieniu do rzeczywistych odpowiedzi pozyskiwanych od klientów."]
[null,null,null,null,null,null,null,9,"Czy Kredytobiorca korzysta z energii elektrycznej pochodzącej z odnawialnych źródeł energii (przynajmniej X% zużycia EE)?","Średnia z 3 lat przekracza <5% - 10%>\n(do decyzji Banku)","Udział energii z OZE w elektroenergetyce (w zużyciu EE końcowym brutto) wyniósł 14,35% w 2019 r. w Polsce.\nhttps://stat.gov.pl/obszary-tematyczne/srodowisko-energia/energia/energia-ze-zrodel-odnawialnych-w-2019-roku,3,14.html\nRekomendujemy backtesting tych progów w odniesieniu do rzeczywistych odpowiedzi pozyskiwanych od klientów."]
[null,null,null,null,null,null,null,12,"Proszę wskazać szacowane negatywne skutki finansowe ryzyka fizycznego zmiany klimatu jako % przychodu w ostatnich 3 latach","Średnia z 3 lat przekracza <10 %- 20%>\n(do decyzji Banku)","W tym obszarze dane są trudno dostępne, proponujemy określenie istotności w kontekście poziomu, który może być istotny dla wskaźników finansowych w analizie zdolności kredytowej. W wyniku backtestu ankiet po pewnym czasie z ich korzystania rekomendujemy zweryfikowanie zasadności progów. Rekomendujemy backtesting tych progów w odniesieniu do rzeczywistych odpowiedzi pozyskiwanych od klientów."]

{"sheet":"AMA","index":3,"n_rows":75,"n_cols":4,"rows_kept":75,"cut":false,"hidden":true,"merged":[]}
["Kategoria","Pytanie","Wynik","PUNKTY ESG"]
["FORMULARZ KLIENTA","WYNIK OCENY ISTOTNOŚCI RYZYKA ",{"$f":"ESG!G2","v":"UZUPEŁNIJ FORMULARZ KLIENTA"}]
["FORMULARZ KLIENTA","Nazwa klienta",{"$f":"ESG!$C$3","v":0}]
["FORMULARZ KLIENTA","REGON",{"$f":"ESG!$C$4","v":0}]
["FORMULARZ KLIENTA","Data wniosku",{"$f":"ESG!$C$5","v":"00:00:00"}]
["FORMULARZ KLIENTA","Pracownik wypełniający",{"$f":"ESG!$C$6","v":0}]
["FORMULARZ KLIENTA","Segment klienta",{"$f":"ESG!$C$7","v":0}]
["FORMULARZ KLIENTA","nr PKD",{"$f":"ESG!$C$8","v":0}]
["FORMULARZ KLIENTA","PKD wiodącej działalności gospodarczej",{"$f":"ESG!$C$9","v":0}]
["FORMULARZ KLIENTA","Czy branża charakteryzuje się podwyższonym ryzykiem ESG?",{"$f":"ESG!$C$10","v":"b.d."}]
["WYNIK OCENY ISTOTNOŚCI RYZYKA ESG","Ryzyko środowiskowe (\"E\")",{"$f":"ESG!$G$3","v":"nie dotyczy"}]
["WYNIK OCENY ISTOTNOŚCI RYZYKA ESG","Ryzyko społeczne (\"S\")",{"$f":"ESG!$G$4","v":"nie dotyczy"}]
["WYNIK OCENY ISTOTNOŚCI RYZYKA ESG","Ryzyko związane z zarządzaniem (\"G\")",{"$f":"ESG!$G$5","v":"nie dotyczy"}]
["Wskaźniki do pobrania na potrzeby ujawnień III filara:","SCOPE 1 Emisja gazów cieplarnianych (w tonach ekwiwalentu CO2) - całkowita oraz na 1 mln PLN przychodu (jeśli dostępne) - za ostatnie 3 lata",{"$f":"ESG!$F$15","v":0}]
["Wskaźniki do pobrania na potrzeby ujawnień III filara:","SCOPE 2  Emisja gazów cieplarnianych (w tonach ekwiwalentu CO2) - całkowita oraz na 1 mln PLN przychodu (jeśli dostępne) - za ostatnie 3 lata",{"$f":"ESG!$F$16","v":0}]
["Wskaźniki do pobrania na potrzeby ujawnień III filara:","Czy Kredytobiorca doświadczył negatywnego wpływu (w aspekcie finansowym) chronicznego ryzyka fizycznego związanego ze zmianą klimatu w ciągu ostatnich 3 lat?",{"$f":"ESG!$F$17","v":0},{"$f":"ESG!$G$17","v":""}]
["Wskaźniki do pobrania na potrzeby ujawnień III filara:","wpływ zmiany temperatury (powietrrze, wody słodkie / morskie)",{"$f":"ESG!$J$18","v":0}]
["Wskaźniki do pobrania na potrzeby ujawnień III filara:","wpływ niestandardowo wysokich temperatur / rozmarzanie wiecznej zmarzliny",{"$f":"ESG!$K$18","v":0}]
["Wskaźniki do pobrania na potrzeby ujawnień III filara:","wpływ zmiany rozkładu i typów odpadów (deszcz, grad, śnieg / lód)",{"$f":"ESG!$L$18","v":0}]
["Wskaźniki do pobrania na potrzeby ujawnień III filara:","wpływ podnoszenia się poziomu mórz",{"$f":"ESG!$M$18","v":0}]
["Wskaźniki do pobrania na potrzeby ujawnień III filara:","wpływ zmiany rozkładu wiatrów",{"$f":"ESG!$N$18","v":0}]
["Wskaźniki do pobrania na potrzeby ujawnień III filara:","wpływ niedoboru wody",{"$f":"ESG!$O$18","v":0}]
["Wskaźniki do pobrania na potrzeby ujawnień III filara:","wpływ erozji gleby i wybrzeża",{"$f":"ESG!$P$18","v":0}]
["Wskaźniki do pobrania na potrzeby ujawnień III filara:","wpływ degradacji gleby",{"$f":"ESG!$Q$18","v":0}]
["Wskaźniki do pobrania na potrzeby ujawnień III filara:","Czy Kredytobiorca doświadczył negatywnego wpływu (w aspekcie finansowym) nagłego ryzyka fizycznego związanego ze zmianą klimatu w ciągu ostatnich 3 lat?",{"$f":"ESG!$F$19","v":0},{"$f":"ESG!$F$19","v":0}]
["Wskaźniki do pobrania na potrzeby ujawnień III filara:","wpływ fal upałów",{"$f":"ESG!$J$20","v":0}]
["Wskaźniki do pobrania na potrzeby ujawnień III filara:","wpływ fal chłodów / mrozu",{"$f":"ESG!$K$20","v":0}]
["Wskaźniki do pobrania na potrzeby ujawnień III filara:","wpływ pożarów",{"$f":"ESG!$L$20","v":0}]
["Wskaźniki do pobrania na potrzeby ujawnień III filara:","wpływ cyklonów, huraganów, tajfunów, burz i tornad",{"$f":"ESG!$M$20","v":0}]
["Wskaźniki do pobrania na potrzeby ujawnień III filara:","wpływ susz",{"$f":"ESG!$N$20","v":0}]
["Wskaźniki do pobrania na potrzeby ujawnień III filara:","wpływ silnych opadów atmosferycznych (deszcz, grad, śnieg / lód)",{"$f":"ESG!$O$20","v":0}]
["Wskaźniki do pobrania na potrzeby ujawnień III filara:","wpływ powodzi",{"$f":"ESG!$P$20","v":0}]
["Wskaźniki do pobrania na potrzeby ujawnień III filara:","wpływ osuwisk i zapadania się ziemi",{"$f":"ESG!$Q$20","v":0}]
["WSKAŹNIK ESG - segment klienta mikro/mały/średni","Czy Kredytobiorca identyfikuje, że może być narażony na negatywne skutki finansowe wynikające z ryzyka przejścia (np. z uwagi na konieczność wdrożenia zmian technologicznych, konieczność zmodyfikowania swojego modelu biznesowego, ryzyko reputacji, zmiany w polityce rządu) w horyzoncie czasowym do terminu zapadalności kredytu?",{"$f":"ESG!$F$38","v":0},{"$f":"ESG!$F$38","v":0}]
["WSKAŹNIK ESG - segment klienta mikro/mały/średni","W odniesieniu do ostatnich 3 lat - czy pojawiły się kwestie powiązane z:\n(A) karami finansowymi za zanieczyszczanie / niszczenie środowiska / negatywne oddziaływanie na zdrowie ludzi lub zwierząt, lub\n(B) publicznymi protestami przeciwko działaniom / wpływowi na środowisko Kredytobiorcy, skandale medialne / kontrowersje związane z działaniami / wpływem na środowisko Kredytobiorcy? ",{"$f":"ESG!$F$40","v":0},{"$f":"ESG!$F$40","v":0}]
["WSKAŹNIK ESG - segment klienta mikro/mały/średni","Czy działalność biznesowa Kredytobiorcy może narażać jego pracowników na ryzyko poważnych obrażeń lub śmierci na stanowisku pracy / czy miały miejsce przypadki poważnych obrażeń / śmierci podczas wykonywania pracy w ciągu ostatnich 3 lat?",{"$f":"ESG!$F$42","v":0}]
["WSKAŹNIK ESG - segment klienta mikro/mały/średni","W odniesieniu do ostatnich 3 lat - czy pojawiły się kwestie (upublicznione przez media lub innych uczestników rynku) powiązane z: mobbingiem, naruszeniem polityki w zakresie zdrowia i bezpieczeństwa (procedur BHP), złamaniem praw człowieka, naruszeniem prawa pracy, etc. - które bezpośrednio (np. poprzez kary finansowe) lub pośrednio (np. poprzez odpływ klientów) negatywnie wpłynęły na wyniki finansowe Kredytobiorcy?",{"$f":"ESG!$F$44","v":0}]
["WSKAŹNIK ESG - segment klienta mikro/mały/średni","W odniesieniu do ostatnich 3 lat - czy pojawiły się kwestie (upublicznione przez media lub innych uczestników rynku) powiązane z reputacją Kredytobiorcy, wynikające ze słabej jakości zarządzania (np. wystąpienia kwestii związanych z łapówkami, płaceniem podatków, etc. - które bezpośrednio (np. poprzez kary finansowe) lub pośrednio (np. poprzez odpływ klientów) negatywnie wpłynęły na wyniki finansowe Kredytobiorcy?",{"$f":"ESG!$F$46","v":0}]
["WSKAŹNIK ESG - segment klienta duży","Czy Kredytobiorca identyfikuje, że może być narażony na negatywne skutki finansowe wynikające z ryzyka przejścia (np. z uwagi na konieczność wdrożenia zmian technologicznych, konieczność zmodyfikowania swojego modelu biznesowego, ryzyko reputacji, zmiany w polityce rządu) w horyzoncie czasowym do terminu zapadalności kredytu?",{"$f":"ESG!$F$73","v":0}]
["WSKAŹNIK ESG - segment klienta duży","Czy Kredytobiorca jest w stanie podać wyliczenie / oszacowanie swoich emisji gazów cieplarnianych (w tonach ekwiwalentu CO2)? Jeśli tak, które scope'y są dostępne? ",{"$f":"ESG!$F$74","v":0}]
["WSKAŹNIK ESG - segment klienta duży","SCOPE 1\n Emisja gazów cieplarnianych (w tonach ekwiwalentu CO2) - całkowita oraz na 1 mln PLN przychodu (jeśli dostępne) - za ostatnie 3 lata\nDO WYLICZENIA PRZEZ DORADCĘ NA BAZIE DANYCH O CAŁKOWITYCH EMISJACH I PRZYCHODACH POZYSKANYCH OD KLIENTA\n\nKRYTERIA DODATKOWE\nA) Względna ilość emisji na 1 mln PLN przychodu (średnia z 3 lat) przekracza ustalony przez Bank próg istotności\nB) Zaobserwowano wzrost względnej ilości emisji na 1 mln PLN przychodu pomiędzy obserwacją za 1Y a obserwacją za 3Y o więcej niż X%",{"$f":"ESG!$F$75","v":0}]
["WSKAŹNIK ESG - segment klienta duży","SCOPE 1 - wartość",{"$f":"ESG!$F$76","v":0}]
["WSKAŹNIK ESG - segment klienta duży","SCOPE 2  \nEmisja gazów cieplarnianych (w tonach ekwiwalentu CO2) - całkowita oraz na 1 mln PLN przychodu (jeśli dostępne) - za ostatnie 3 lata\nDO WYLICZENIA PRZEZ DORADCĘ NA BAZIE DANYCH O CAŁKOWITYCH EMISJACH I PRZYCHODACH POZYSKANYCH OD KLIENTA\n\nKRYTERIA DODATKOWE\nA) Względna ilość emisji na 1 mln PLN przychodu (średnia z 3 lat) przekracza ustalony przez Bank próg istotności --> 1 \nB) Zaobserwowano wzrost względnej ilości emisji na 1 mln PLN przychodu pomiędzy obserwacją za 1Y a obserwacją za 3Y o więcej niż X%",{"$f":"ESG!$F$77","v":0}]
["WSKAŹNIK ESG - segment klienta duży","SCOPE 2 - wartość",{"$f":"ESG!$F$78","v":0}]
["WSKAŹNIK ESG - segment klienta duży","Czy Kredytobiorca podlega Europejskiemu Systemowi Handlu Emisjami (EU ETS)?",{"$f":"ESG!$F$79","v":0}]
["WSKAŹNIK ESG - segment klienta duży","Koszty nabywania uprawnień do emisji CO2 w EU ETS na 1 mln PLN przychodu (jeśli dostępne) - za ostatnie 3 lata\nDO WYLICZENIA PRZEZ DORADCĘ NA BAZIE DANYCH O KOSZTACH UCZESTNICTWA W ETS I O PRZYCHODACH POZYSKANYCH OD KLIENTA\na) Udział kosztów EU ETS w 1 mln PLN przychodu (średnia z 3 lat) przekracza 30 tys.PLN\nb) Zaobserwowano wzrost udziału kosztów EU ETS w 1 mln PLN przychodu pomiędzy obserwacją za 1Y a obserwacją za 3Y o więcej niż 30%",{"$f":"ESG!$F$80","v":0}]
["WSKAŹNIK ESG - segment klienta duży","Koszty nabywania uprawnień do emisji CO2 w EU ETS na 1 mln PLN przychodu (jeśli dostępne) - za ostatnie 3 lata - wartość",{"$f":"ESG!$F$81","v":0}]
["WSKAŹNIK ESG - segment klienta duży","Zużycie energii elektrycznej (MWh) na 1 mln PLN przychodu - za ostatnie 3 lata\nDO WYLICZENIA PRZEZ DORADCĘ NA BAZIE DANYCH O ZUŻYCIU ENERGII I O PRZYCHODACH POZYSKANYCH OD KLIENTA\n\nKRYTERIA DODATKOWE\nA) Względne zużycie EE na 1 mln PLN przychodu (średnia z 3 lat) przekracza ustalony przez Bank próg istotności\nB) Zaobserwowano wzrost względnego zużycia EE na 1 mln PLN przychodu pomiędzy obserwacją za 1Y a obserwacją za 3Y o więcej niż X%",{"$f":"ESG!$F$83","v":0}]
["WSKAŹNIK ESG - segment klienta duży","Zużycie energii elektrycznej (MWh) na 1 mln PLN przychodu - za ostatnie 3 lata - wartość",{"$f":"ESG!$F$84","v":0}]
["WSKAŹNIK ESG - segment klienta duży","Zużycie wody (w m3) na 1 mln PLN przychodu - za ostatnie 3 lata\nDO WYLICZENIA PRZEZ DORADCĘ NA BAZIE DANYCH O ZUŻYCIU WODY I O PRZYCHODACH POZYSKANYCH OD KLIENTA\n\nKRYTERIA DODATKOWE\nA) Względne zużycie wody na 1 mln PLN przychodu (średnia z 3 lat) przekracza ustalony przez Bank próg istotności \nB) Zaobserwowano wzrost względnego zużycia wody na 1 mln PLN przychodu pomiędzy obserwacją za 1Y a obserwacją za 3Y o więcej niż X%",{"$f":"ESG!$F$86","v":0}]
["WSKAŹNIK ESG - segment klienta duży","Zużycie wody (w m3) na 1 mln PLN przychodu - za ostatnie 3 lata - wartość",{"$f":"ESG!$F$87","v":0}]
["WSKAŹNIK ESG - segment klienta duży","Czy Kredytobiorca korzysta z energii elektrycznej pochodzącej z odnawialnych źródeł energii (przynajmniej X% zużycia EE)?",{"$f":"ESG!$F$89","v":0}]
["WSKAŹNIK ESG - segment klienta duży","Czy Kredytobiorca wdrożył plan działania/harmonogram redukcji emisji gazów cieplarnianych / zużycia energii elektrycznej / zużycia wody?",{"$f":"ESG!$F$90","v":0}]
["WSKAŹNIK ESG - segment klienta duży","Czy Kredytobiorca wdrożył ilościowe cele i KPI związane ze wspomnianym planem wraz z mechanizmem nadzorowania (obejmującym adekwatne kroki eskalacji)?",{"$f":"ESG!$F$91","v":0}]
["WSKAŹNIK ESG - segment klienta duży","Proszę wskazać szacowane negatywne skutki finansowe ryzyka fizycznego zmiany klimatu jako % przychodu w ostatnich 3 latach\nDO WYLICZENIA PRZEZ DORADCĘ NA BAZIE DANYCH O STRATACH I O PRZYCHODACH POZYSKANYCH OD KLIENTA\n\nKRYTERIA DODATKOWE\na) % przychodu utraconego z tytułu meterializacji ryzyka fizycznego (średnia z 3 lat) przekracza ustalony przez Bank próg istotności \nb) Zaobserwowano wzrost % utraconych przychodów pomiędzy obserwacją za 1Y a obserwacją za 3Y o więcej niż X p.p.",{"$f":"ESG!$F$93","v":0}]
["WSKAŹNIK ESG - segment klienta duży","Proszę wskazać szacowane negatywne skutki finansowe ryzyka fizycznego zmiany klimatu jako % przychodu w ostatnich 3 latach - wartość",{"$f":"ESG!$F$94","v":0}]
["WSKAŹNIK ESG - segment klienta duży","Czy Kredytobiorca wdrożył plan działania/harmonogram adaptacji klimatycznej / zarządzania ryzykiem fizycznym? ",{"$f":"ESG!$F$96","v":0}]
["WSKAŹNIK ESG - segment klienta duży","Czy Kredytobiorca wdrożył ilościowe cele i KPI związane ze wspomnianym planem wraz z mechanizmem nadzorowania (obejmującym adekwatne kroki eskalacji)?",{"$f":"ESG!$F$97","v":0}]
["WSKAŹNIK ESG - segment klienta duży","W odniesieniu do ostatnich 3 lat - czy pojawiły się kwestie powiązane z:\nA. karami finansowymi za zanieczyszczanie / niszczenie środowiska / negatywne oddziaływanie na zdrowie ludzi lub zwierząt, lub\nB. publicznymi protestami przeciwko działaniom / wpływowi na środowisko Kredytobiorcy, skandale medialne / kontrowersje związane z działaniami / wpływem na środowisko Kredytobiorcy? ",{"$f":"ESG!$F$99","v":0}]
["WSKAŹNIK ESG - segment klienta duży","Czy Kredytobiorca wdrożył procedury należytej staranności w przeciwdziałaniu wykorzystywaniu pracowników / pracy dzieci / pracy przymusowej w ramach działalności Kredytobiorcy i jego łańcucha dostaw?",{"$f":"ESG!$F$101","v":0}]
["WSKAŹNIK ESG - segment klienta duży","Czy działalność biznesowa Kredytobiorcy może narażać jego pracowników na ryzyko poważnych obrażeń lub śmierci na stanowisku pracy / czy miały miejsce przypadki poważnych obrażeń / śmierci podczas wykonywania pracy w ciągu ostatnich 3 lat?",{"$f":"ESG!$F$102","v":0}]
["WSKAŹNIK ESG - segment klienta duży","Czy Kredytobiorca wdrożył procedury przeciwdziałania dyskryminacji oraz procedury bezpiecznego zgłaszania przypadków dyskryminacji?",{"$f":"ESG!$F$103","v":0}]
["WSKAŹNIK ESG - segment klienta duży","Czy Kredytobiorca wdrożył plan działania/harmonogram odpowiedzialnego zarządzania kapitałem ludzkim?",{"$f":"ESG!$F$104","v":0}]
["WSKAŹNIK ESG - segment klienta duży","Czy Kredytobiorca wdrożył ilościowe cele i KPI związane ze wspomnianym planem wraz z mechanizmem nadzorowania (obejmującym adekwatne kroki eskalacji)?",{"$f":"ESG!$F$105","v":0}]
["WSKAŹNIK ESG - segment klienta duży","Czy Kredytobiorca wdrożył formalnie zatwierdzone procedury zarządzania reklamacjami klientów?",{"$f":"ESG!$F$107","v":0}]
["WSKAŹNIK ESG - segment klienta duży","Czy Kredytobiorca wdrożył procedury wycofywania produktów z rynku (ze względu na kwestie bezpieczeństwa/zgodności, etc.) - jeśli dotyczy",{"$f":"ESG!$F$108","v":0}]
["WSKAŹNIK ESG - segment klienta duży","Czy Kredytobiorca wdrożył i aktywnie korzysta z procedur ochrony danych klientów, w szczególności danych osobowych (RODO)?",{"$f":"ESG!$F$109","v":0}]
["WSKAŹNIK ESG - segment klienta duży","Czy Kredytobiorca wdrożył plan działania/harmonogram odpowiedzialnego zarządzania klientami, produktami i danymi klientów?",{"$f":"ESG!$F$110","v":0}]
["WSKAŹNIK ESG - segment klienta duży","Czy Kredytobiorca wdrożył ilościowe cele i KPI związane ze wspomnianym planem wraz z mechanizmem nadzorowania (obejmującym adekwatne kroki eskalacji)?",{"$f":"ESG!$F$111","v":0}]
["WSKAŹNIK ESG - segment klienta duży","W odniesieniu do ostatnich 3 lat - czy pojawiły się kwestie (upublicznione przez media lub innych uczestników rynku) powiązane z: mobbingiem, naruszeniem polityki w zakresie zdrowia i bezpieczeństwa (procedur BHP), złamaniem praw człowieka, naruszeniem prawa pracy, etc. - które bezpośrednio (np. poprzez kary finansowe) lub pośrednio (np. poprzez odpływ klientów) negatywnie wpłynęły na wyniki finansowe Kredytobiorcy?",{"$f":"ESG!$F$113","v":0}]
["WSKAŹNIK ESG - segment klienta duży","Czy Kredytobiorca wdrożył procedury i mechanizmy zapewniania etycznych zachowań biznesowych - przejrzystości, uczciwości, odpowiedzialności, zgodności z prawem, szacunku, zapobieganiu kwestiom związanym z korupcją)? ",{"$f":"ESG!$F$115","v":0}]
["WSKAŹNIK ESG - segment klienta duży","Czy Kredytobiorca wdrożył procedury zarządzania ciągłością biznesu / identyfikacji i zarządzania zdarzeniami o skali zbliżonej do klęski żywiołowej oraz czy Kredytobiorca przeprowadza okresowe testy ciągłości biznesowej?",{"$f":"ESG!$F$117","v":0}]
["WSKAŹNIK ESG - segment klienta duży","Czy Kredytobiorca wdrożył plan działania/harmonogram dla odpowiedzialnego ładu korporacyjnego (np. szkolenia w zakresie etyki / przeciwdziałania łapówkom, ustalanie celów, odpowiedzialne systemy wynagrodzeń)?",{"$f":"ESG!$F$119","v":0}]
["WSKAŹNIK ESG - segment klienta duży","Czy Kredytobiorca wdrożył ilościowe cele i KPI związane ze wspomnianym planem wraz z mechanizmem nadzorowania (obejmującym adekwatne kroki eskalacji)?",{"$f":"ESG!$F$120","v":0}]
["WSKAŹNIK ESG - segment klienta duży","W odniesieniu do ostatnich 3 lat - czy pojawiły się kwestie (upublicznione przez media lub innych uczestników rynku) powiązane z reputacją Kredytobiorcy, wynikające ze słabej jakości zarządzania (np. wystąpienia kwestii związanych z łapówkami, płaceniem podatków, etc. - które bezpośrednio (np. poprzez kary finansowe) lub pośrednio (np. poprzez odpływ klientów) negatywnie wpłynęły na wyniki finansowe Kredytobiorcy?",{"$f":"ESG!$F$122","v":0}]

{"sheet":"PKD","index":4,"n_rows":656,"n_cols":4,"rows_kept":656,"cut":false,"hidden":false,"merged":[]}
["Lista PKD","Czy branża podwyższonego ryzyka","nr PKD","nazwa PKD"]
["01.11.Z Uprawa zbóż, roślin strączkowych i roślin oleistych na nasiona, z wyłączeniem ryżu","TAK","01.11.Z","Uprawa zbóż, roślin strączkowych i roślin oleistych na nasiona, z wyłączeniem ryżu"]
["01.12.Z Uprawa ryżu","TAK","01.12.Z","Uprawa ryżu"]
["01.13.Z Uprawa warzyw, włączając melony oraz uprawa roślin korzeniowych i roślin bulwiastych","TAK","01.13.Z","Uprawa warzyw, włączając melony oraz uprawa roślin korzeniowych i roślin bulwiastych"]
["01.14.Z Uprawa trzciny cukrowej","TAK","01.14.Z","Uprawa trzciny cukrowej"]
["01.15.Z Uprawa tytoniu","TAK","01.15.Z","Uprawa tytoniu"]
["01.16.Z Uprawa roślin włóknistych","TAK","01.16.Z","Uprawa roślin włóknistych"]
["01.19.Z Pozostałe uprawy rolne inne niż wieloletnie","TAK","01.19.Z","Pozostałe uprawy rolne inne niż wieloletnie"]
["01.21.Z Uprawa winogron","TAK","01.21.Z","Uprawa winogron"]
["01.22.Z Uprawa drzew i krzewów owocowych tropikalnych i podzwrotnikowych","TAK","01.22.Z","Uprawa drzew i krzewów owocowych tropikalnych i podzwrotnikowych"]
["01.23.Z Uprawa drzew i krzewów owocowych cytrusowych","TAK","01.23.Z","Uprawa drzew i krzewów owocowych cytrusowych"]
["01.24.Z Uprawa drzew i krzewów owocowych ziarnkowych i pestkowych","TAK","01.24.Z","Uprawa drzew i krzewów owocowych ziarnkowych i pestkowych"]
["01.25.Z Uprawa pozostałych drzew i krzewów owocowych oraz orzechów","TAK","01.25.Z","Uprawa pozostałych drzew i krzewów owocowych oraz orzechów"]
["01.26.Z Uprawa drzew oleistych","TAK","01.26.Z","Uprawa drzew oleistych"]
["01.27.Z Uprawa roślin wykorzystywanych do produkcji napojów","TAK","01.27.Z","Uprawa roślin wykorzystywanych do produkcji napojów"]
["01.28.Z Uprawa roślin przyprawowych i aromatycznych oraz roślin wykorzystywanych do produkcji leków i wyrobów farmaceutycznych","TAK","01.28.Z","Uprawa roślin przyprawowych i aromatycznych oraz roślin wykorzystywanych do produkcji leków i wyrobów farmaceutycznych"]
["01.29.Z Uprawa pozostałych roślin wieloletnich","TAK","01.29.Z","Uprawa pozostałych roślin wieloletnich"]
["01.30.Z Rozmnażanie roślin","NIE","01.30.Z","Rozmnażanie roślin"]
["01.41.Z Chów i hodowla bydła mlecznego","TAK","01.41.Z","Chów i hodowla bydła mlecznego"]
["01.42.Z Chów i hodowla pozostałego bydła i bawołów","TAK","01.42.Z","Chów i hodowla pozostałego bydła i bawołów"]
["01.43.Z Chów i hodowla koni i pozostałych zwierząt koniowatych","TAK","01.43.Z","Chów i hodowla koni i pozostałych zwierząt koniowatych"]
["01.44.Z Chów i hodowla wielbłądów i zwierząt wielbłądowatych","TAK","01.44.Z","Chów i hodowla wielbłądów i zwierząt wielbłądowatych"]
["01.45.Z Chów i hodowla owiec i kóz","TAK","01.45.Z","Chów i hodowla owiec i kóz"]
["01.46.Z Chów i hodowla świń","TAK","01.46.Z","Chów i hodowla świń"]
["01.47.Z Chów i hodowla drobiu","TAK","01.47.Z","Chów i hodowla drobiu"]
["01.49.Z Chów i hodowla pozostałych zwierząt","NIE","01.49.Z","Chów i hodowla pozostałych zwierząt"]
["01.50.Z Uprawy rolne połączone z chowem i hodowlą zwierząt (działalność mieszana)","TAK","01.50.Z","Uprawy rolne połączone z chowem i hodowlą zwierząt (działalność mieszana)"]
["01.61.Z Działalność usługowa wspomagająca produkcję roślinną","TAK","01.61.Z","Działalność usługowa wspomagająca produkcję roślinną"]
["01.62.Z Działalność usługowa wspomagająca chów i hodowlę zwierząt gospodarskich","TAK","01.62.Z","Działalność usługowa wspomagająca chów i hodowlę zwierząt gospodarskich"]
["01.63.Z Działalność usługowa następująca po zbiorach","TAK","01.63.Z","Działalność usługowa następująca po zbiorach"]
["01.64.Z Obróbka nasion dla celów rozmnażania roślin","TAK","01.64.Z","Obróbka nasion dla celów rozmnażania roślin"]
["01.70.Z Łowiectwo i pozyskiwanie zwierząt łownych, włączając działalność usługową","TAK","01.70.Z","Łowiectwo i pozyskiwanie zwierząt łownych, włączając działalność usługową"]
["02.10.Z Gospodarka leśna i pozostała działalność leśna, z wyłączeniem pozyskiwania produktów leśnych","TAK","02.10.Z","Gospodarka leśna i pozostała działalność leśna, z wyłączeniem pozyskiwania produktów leśnych"]
["02.20.Z Pozyskiwanie drewna","TAK","02.20.Z","Pozyskiwanie drewna"]
["02.30.Z Pozyskiwanie dziko rosnących produktów leśnych, z wyłączeniem drewna","TAK","02.30.Z","Pozyskiwanie dziko rosnących produktów leśnych, z wyłączeniem drewna"]
["02.40.Z Działalność usługowa związana z leśnictwem","TAK","02.40.Z","Działalność usługowa związana z leśnictwem"]
["03.11.Z Rybołówstwo w wodach morskich","TAK","03.11.Z","Rybołówstwo w wodach morskich"]
["03.12.Z Rybołówstwo w wodach śródlądowych","TAK","03.12.Z","Rybołówstwo w wodach śródlądowych"]
["03.21.Z Chów i hodowla ryb oraz pozostałych organizmów wodnych w wodach morskich","TAK","03.21.Z","Chów i hodowla ryb oraz pozostałych organizmów wodnych w wodach morskich"]
["03.22.Z Chów i hodowla ryb oraz pozostałych organizmów wodnych w wodach śródlądowych","TAK","03.22.Z","Chów i hodowla ryb oraz pozostałych organizmów wodnych w wodach śródlądowych"]
["05.10.Z Wydobywanie węgla kamiennego","TAK","05.10.Z","Wydobywanie węgla kamiennego"]
["05.20.Z Wydobywanie węgla brunatnego (lignitu)","TAK","05.20.Z","Wydobywanie węgla brunatnego (lignitu)"]
["06.10.Z Górnictwo ropy naftowej","TAK","06.10.Z","Górnictwo ropy naftowej"]
["06.20.Z Górnictwo gazu ziemnego","TAK","06.20.Z","Górnictwo gazu ziemnego"]
["07.10.Z Górnictwo rud żelaza","TAK","07.10.Z","Górnictwo rud żelaza"]
["07.21.Z Górnictwo rud uranu i toru","TAK","07.21.Z","Górnictwo rud uranu i toru"]
["07.29.Z Górnictwo pozostałych rud metali nieżelaznych","TAK","07.29.Z","Górnictwo pozostałych rud metali nieżelaznych"]
["08.11.Z Wydobywanie kamieni ozdobnych oraz kamienia dla potrzeb budownictwa, skał wapiennych, gipsu, kredy i łupków","TAK","08.11.Z","Wydobywanie kamieni ozdobnych oraz kamienia dla potrzeb budownictwa, skał wapiennych, gipsu, kredy i łupków"]
["08.12.Z Wydobywanie żwiru i piasku; wydobywanie gliny i kaolinu","TAK","08.12.Z","Wydobywanie żwiru i piasku; wydobywanie gliny i kaolinu"]
["08.91.Z Wydobywanie minerałów dla przemysłu chemicznego oraz do produkcji nawozów","TAK","08.91.Z","Wydobywanie minerałów dla przemysłu chemicznego oraz do produkcji nawozów"]
["08.92.Z Wydobywanie torfu","TAK","08.92.Z","Wydobywanie torfu"]
["08.93.Z Wydobywanie soli","TAK","08.93.Z","Wydobywanie soli"]
["08.99.Z Pozostałe górnictwo i wydobywanie, gdzie indziej niesklasyfikowane","TAK","08.99.Z","Pozostałe górnictwo i wydobywanie, gdzie indziej niesklasyfikowane"]
["09.10.Z Działalność usługowa wspomagająca eksploatację złóż ropy naftowej i gazu ziemnego","TAK","09.10.Z","Działalność usługowa wspomagająca eksploatację złóż ropy naftowej i gazu ziemnego"]
["09.90.Z Działalność usługowa wspomagająca pozostałe górnictwo i wydobywanie","TAK","09.90.Z","Działalność usługowa wspomagająca pozostałe górnictwo i wydobywanie"]
["10.11.Z Przetwarzanie i konserwowanie mięsa, z wyłączeniem mięsa z drobiu","TAK","10.11.Z","Przetwarzanie i konserwowanie mięsa, z wyłączeniem mięsa z drobiu"]
["10.12.Z Przetwarzanie i konserwowanie mięsa z drobiu","TAK","10.12.Z","Przetwarzanie i konserwowanie mięsa z drobiu"]
["10.13.Z Produkcja wyrobów z mięsa, włączając wyroby z mięsa drobiowego","TAK","10.13.Z","Produkcja wyrobów z mięsa, włączając wyroby z mięsa drobiowego"]
["10.20.Z Przetwarzanie i konserwowanie ryb, skorupiaków i mięczaków","TAK","10.20.Z","Przetwarzanie i konserwowanie ryb, skorupiaków i mięczaków"]
["10.31.Z Przetwarzanie i konserwowanie ziemniaków","TAK","10.31.Z","Przetwarzanie i konserwowanie ziemniaków"]
["10.32.Z Produkcja soków z owoców i warzyw","TAK","10.32.Z","Produkcja soków z owoców i warzyw"]
["10.39.Z Pozostałe przetwarzanie i konserwowanie owoców i warzyw","TAK","10.39.Z","Pozostałe przetwarzanie i konserwowanie owoców i warzyw"]
["10.41.Z Produkcja olejów i pozostałych tłuszczów płynnych","TAK","10.41.Z","Produkcja olejów i pozostałych tłuszczów płynnych"]
["10.42.Z Produkcja margaryny i podobnych tłuszczów jadalnych","TAK","10.42.Z","Produkcja margaryny i podobnych tłuszczów jadalnych"]
["10.51.Z Przetwórstwo mleka i wyrób serów","TAK","10.51.Z","Przetwórstwo mleka i wyrób serów"]
["10.52.Z Produkcja lodów","TAK","10.52.Z","Produkcja lodów"]
["10.61.Z Wytwarzanie produktów przemiału zbóż","TAK","10.61.Z","Wytwarzanie produktów przemiału zbóż"]
["10.62.Z Wytwarzanie skrobi i wyrobów skrobiowych","TAK","10.62.Z","Wytwarzanie skrobi i wyrobów skrobiowych"]
["10.71.Z Produkcja pieczywa; produkcja świeżych wyrobów ciastkarskich i ciastek","TAK","10.71.Z","Produkcja pieczywa; produkcja świeżych wyrobów ciastkarskich i ciastek"]
["10.72.Z Produkcja sucharów i herbatników; produkcja konserwowanych wyrobów ciastkarskich i ciastek","TAK","10.72.Z","Produkcja sucharów i herbatników; produkcja konserwowanych wyrobów ciastkarskich i ciastek"]
["10.73.Z Produkcja makaronów, klusek, kuskusu i podobnych wyrobów mącznych","TAK","10.73.Z","Produkcja makaronów, klusek, kuskusu i podobnych wyrobów mącznych"]
["10.81.Z Produkcja cukru","TAK","10.81.Z","Produkcja cukru"]
["10.82.Z Produkcja kakao, czekolady i wyrobów cukierniczych","TAK","10.82.Z","Produkcja kakao, czekolady i wyrobów cukierniczych"]
["10.83.Z Przetwórstwo herbaty i kawy","TAK","10.83.Z","Przetwórstwo herbaty i kawy"]
["10.84.Z Produkcja przypraw","TAK","10.84.Z","Produkcja przypraw"]
["10.85.Z Wytwarzanie gotowych posiłków i dań","TAK","10.85.Z","Wytwarzanie gotowych posiłków i dań"]
["10.86.Z Produkcja artykułów spożywczych homogenizowanych i żywności dietetycznej","TAK","10.86.Z","Produkcja artykułów spożywczych homogenizowanych i żywności dietetycznej"]
["10.89.Z Produkcja pozostałych artykułów spożywczych, gdzie indziej niesklasyfikowana","TAK","10.89.Z","Produkcja pozostałych artykułów spożywczych, gdzie indziej niesklasyfikowana"]
["10.91.Z Produkcja gotowej paszy dla zwierząt gospodarskich","TAK","10.91.Z","Produkcja gotowej paszy dla zwierząt gospodarskich"]
["10.92.Z Produkcja gotowej karmy dla zwierząt domowych","TAK","10.92.Z","Produkcja gotowej karmy dla zwierząt domowych"]
["11.01.Z Destylowanie, rektyfikowanie i mieszanie alkoholi","TAK","11.01.Z","Destylowanie, rektyfikowanie i mieszanie alkoholi"]
["11.02.Z Produkcja win gronowych","TAK","11.02.Z","Produkcja win gronowych"]
["11.03.Z Produkcja cydru i pozostałych win owocowych","TAK","11.03.Z","Produkcja cydru i pozostałych win owocowych"]
["11.04.Z Produkcja pozostałych niedestylowanych napojów fermentowanych","TAK","11.04.Z","Produkcja pozostałych niedestylowanych napojów fermentowanych"]
["11.05.Z Produkcja piwa","TAK","11.05.Z","Produkcja piwa"]
["11.06.Z Produkcja słodu","TAK","11.06.Z","Produkcja słodu"]
["11.07.Z Produkcja napojów bezalkoholowych; produkcja wód mineralnych i pozostałych wód butelkowanych","TAK","11.07.Z","Produkcja napojów bezalkoholowych; produkcja wód mineralnych i pozostałych wód butelkowanych"]
["12.00.Z PRODUKCJA WYROBÓW TYTONIOWYCH","TAK","12.00.Z","PRODUKCJA WYROBÓW TYTONIOWYCH"]
["13.10.A Produkcja przędzy bawełnianej","TAK","13.10.A","Produkcja przędzy bawełnianej"]
["13.10.B Produkcja przędzy wełnianej","TAK","13.10.B","Produkcja przędzy wełnianej"]
["13.10.C Produkcja przędzy z włókien chemicznych","TAK","13.10.C","Produkcja przędzy z włókien chemicznych"]
["13.10.D Produkcja przędzy z pozostałych włókien tekstylnych, włączając produkcję nici","TAK","13.10.D","Produkcja przędzy z pozostałych włókien tekstylnych, włączając produkcję nici"]
["13.20.A Produkcja tkanin bawełnianych","TAK","13.20.A","Produkcja tkanin bawełnianych"]
["13.20.B Produkcja tkanin wełnianych","TAK","13.20.B","Produkcja tkanin wełnianych"]
["13.20.C Produkcja tkanin z włókien chemicznych","TAK","13.20.C","Produkcja tkanin z włókien chemicznych"]
["13.20.D Produkcja pozostałych tkanin","TAK","13.20.D","Produkcja pozostałych tkanin"]
["13.30.Z Wykończanie wyrobów włókienniczych","TAK","13.30.Z","Wykończanie wyrobów włókienniczych"]
["13.91.Z Produkcja dzianin metrażowych","TAK","13.91.Z","Produkcja dzianin metrażowych"]
["13.92.Z Produkcja gotowych wyrobów tekstylnych","TAK","13.92.Z","Produkcja gotowych wyrobów tekstylnych"]
["13.93.Z Produkcja dywanów i chodników","TAK","13.93.Z","Produkcja dywanów i chodników"]
["13.94.Z Produkcja wyrobów powroźniczych, lin, szpagatów i wyrobów sieciowych","TAK","13.94.Z","Produkcja wyrobów powroźniczych, lin, szpagatów i wyrobów sieciowych"]
["13.95.Z Produkcja włóknin i wyrobów wykonanych z włóknin, z wyłączeniem odzieży","TAK","13.95.Z","Produkcja włóknin i wyrobów wykonanych z włóknin, z wyłączeniem odzieży"]
["13.96.Z Produkcja pozostałych technicznych i przemysłowych wyrobów tekstylnych","TAK","13.96.Z","Produkcja pozostałych technicznych i przemysłowych wyrobów tekstylnych"]
["13.99.Z Produkcja pozostałych wyrobów tekstylnych, gdzie indziej niesklasyfikowana","TAK","13.99.Z","Produkcja pozostałych wyrobów tekstylnych, gdzie indziej niesklasyfikowana"]
["14.11.Z Produkcja odzieży skórzanej","TAK","14.11.Z","Produkcja odzieży skórzanej"]
["14.12.Z Produkcja odzieży roboczej","TAK","14.12.Z","Produkcja odzieży roboczej"]
["14.13.Z Produkcja pozostałej odzieży wierzchniej","TAK","14.13.Z","Produkcja pozostałej odzieży wierzchniej"]
["14.14.Z Produkcja bielizny","TAK","14.14.Z","Produkcja bielizny"]
["14.19.Z Produkcja pozostałej odzieży i dodatków do odzieży","TAK","14.19.Z","Produkcja pozostałej odzieży i dodatków do odzieży"]
["14.20.Z Produkcja wyrobów futrzarskich","TAK","14.20.Z","Produkcja wyrobów futrzarskich"]
["14.31.Z Produkcja wyrobów pończoszniczych","TAK","14.31.Z","Produkcja wyrobów pończoszniczych"]
["14.39.Z Produkcja pozostałej odzieży dzianej","TAK","14.39.Z","Produkcja pozostałej odzieży dzianej"]
["15.11.Z Wyprawa skór, garbowanie; wyprawa i barwienie skór futerkowych","TAK","15.11.Z","Wyprawa skór, garbowanie; wyprawa i barwienie skór futerkowych"]
["15.12.Z Produkcja toreb bagażowych, toreb ręcznych i podobnych wyrobów kaletniczych; produkcja wyrobów rymarskich","TAK","15.12.Z","Produkcja toreb bagażowych, toreb ręcznych i podobnych wyrobów kaletniczych; produkcja wyrobów rymarskich"]
["15.20.Z Produkcja obuwia","TAK","15.20.Z","Produkcja obuwia"]
["16.10.Z Produkcja wyrobów tartacznych","TAK","16.10.Z","Produkcja wyrobów tartacznych"]
["16.21.Z Produkcja arkuszy fornirowych i płyt wykonanych na bazie drewna","TAK","16.21.Z","Produkcja arkuszy fornirowych i płyt wykonanych na bazie drewna"]
["16.22.Z Produkcja gotowych parkietów podłogowych","TAK","16.22.Z","Produkcja gotowych parkietów podłogowych"]
["16.23.Z Produkcja pozostałych wyrobów stolarskich i ciesielskich dla budownictwa","TAK","16.23.Z","Produkcja pozostałych wyrobów stolarskich i ciesielskich dla budownictwa"]
["16.24.Z Produkcja opakowań drewnianych","TAK","16.24.Z","Produkcja opakowań drewnianych"]
["16.29.Z Produkcja pozostałych wyrobów z drewna; produkcja wyrobów z korka, słomy i materiałów używanych do wyplatania","TAK","16.29.Z","Produkcja pozostałych wyrobów z drewna; produkcja wyrobów z korka, słomy i materiałów używanych do wyplatania"]
["17.11.Z Produkcja masy włóknistej","TAK","17.11.Z","Produkcja masy włóknistej"]
["17.12.Z Produkcja papieru i tektury","TAK","17.12.Z","Produkcja papieru i tektury"]
["17.21.Z Produkcja papieru falistego i tektury falistej oraz opakowań z papieru i tektury","TAK","17.21.Z","Produkcja papieru falistego i tektury falistej oraz opakowań z papieru i tektury"]
["17.22.Z Produkcja artykułów gospodarstwa domowego, toaletowych i sanitarnych","TAK","17.22.Z","Produkcja artykułów gospodarstwa domowego, toaletowych i sanitarnych"]
["17.23.Z Produkcja artykułów piśmiennych","TAK","17.23.Z","Produkcja artykułów piśmiennych"]
["17.24.Z Produkcja tapet","TAK","17.24.Z","Produkcja tapet"]
["17.29.Z Produkcja pozostałych wyrobów z papieru i tektury","TAK","17.29.Z","Produkcja pozostałych wyrobów z papieru i tektury"]
["18.11.Z Drukowanie gazet","NIE","18.11.Z","Drukowanie gazet"]
["18.12.Z Pozostałe drukowanie","NIE","18.12.Z","Pozostałe drukowanie"]
["18.13.Z Działalność usługowa związana z przygotowywaniem do druku","NIE","18.13.Z","Działalność usługowa związana z przygotowywaniem do druku"]
["18.14.Z Introligatorstwo i podobne usługi","NIE","18.14.Z","Introligatorstwo i podobne usługi"]
["18.20.Z Reprodukcja zapisanych nośników informacji","NIE","18.20.Z","Reprodukcja zapisanych nośników informacji"]
["19.10.Z Wytwarzanie i przetwarzanie koksu","TAK","19.10.Z","Wytwarzanie i przetwarzanie koksu"]
["19.20.Z Wytwarzanie i przetwarzanie produktów rafinacji ropy naftowej","TAK","19.20.Z","Wytwarzanie i przetwarzanie produktów rafinacji ropy naftowej"]
["20.11.Z Produkcja gazów technicznych","TAK","20.11.Z","Produkcja gazów technicznych"]
["20.12.Z Produkcja barwników i pigmentów","TAK","20.12.Z","Produkcja barwników i pigmentów"]
["20.13.Z Produkcja pozostałych podstawowych chemikaliów nieorganicznych","TAK","20.13.Z","Produkcja pozostałych podstawowych chemikaliów nieorganicznych"]
["20.14.Z Produkcja pozostałych podstawowych chemikaliów organicznych","TAK","20.14.Z","Produkcja pozostałych podstawowych chemikaliów organicznych"]
["20.15.Z Produkcja nawozów i związków azotowych","TAK","20.15.Z","Produkcja nawozów i związków azotowych"]
["20.16.Z Produkcja tworzyw sztucznych w formach podstawowych","TAK","20.16.Z","Produkcja tworzyw sztucznych w formach podstawowych"]
["20.17.Z Produkcja kauczuku syntetycznego w formach podstawowych","TAK","20.17.Z","Produkcja kauczuku syntetycznego w formach podstawowych"]
["20.20.Z Produkcja pestycydów i pozostałych środków agrochemicznych","TAK","20.20.Z","Produkcja pestycydów i pozostałych środków agrochemicznych"]
["20.30.Z Produkcja farb, lakierów i podobnych powłok, farb drukarskich i mas uszczelniających","TAK","20.30.Z","Produkcja farb, lakierów i podobnych powłok, farb drukarskich i mas uszczelniających"]
["20.41.Z Produkcja mydła i detergentów, środków myjących i czyszczących","TAK","20.41.Z","Produkcja mydła i detergentów, środków myjących i czyszczących"]
["20.42.Z Produkcja wyrobów kosmetycznych i toaletowych","TAK","20.42.Z","Produkcja wyrobów kosmetycznych i toaletowych"]
["20.51.Z Produkcja materiałów wybuchowych","TAK","20.51.Z","Produkcja materiałów wybuchowych"]
["20.52.Z Produkcja klejów","TAK","20.52.Z","Produkcja klejów"]
["20.53.Z Produkcja olejków eterycznych","TAK","20.53.Z","Produkcja olejków eterycznych"]
["20.59.Z Produkcja pozostałych wyrobów chemicznych, gdzie indziej niesklasyfikowana","TAK","20.59.Z","Produkcja pozostałych wyrobów chemicznych, gdzie indziej niesklasyfikowana"]
["20.60.Z Produkcja włókien chemicznych","TAK","20.60.Z","Produkcja włókien chemicznych"]
["21.10.Z Produkcja podstawowych substancji farmaceutycznych","TAK","21.10.Z","Produkcja podstawowych substancji farmaceutycznych"]
["21.20.Z Produkcja leków i pozostałych wyrobów farmaceutycznych","TAK","21.20.Z","Produkcja leków i pozostałych wyrobów farmaceutycznych"]
["22.11.Z Produkcja opon i dętek z gumy; bieżnikowanie i regenerowanie opon z gumy","TAK","22.11.Z","Produkcja opon i dętek z gumy; bieżnikowanie i regenerowanie opon z gumy"]
["22.19.Z Produkcja pozostałych wyrobów z gumy","TAK","22.19.Z","Produkcja pozostałych wyrobów z gumy"]
["22.21.Z Produkcja płyt, arkuszy, rur i kształtowników z tworzyw sztucznych","TAK","22.21.Z","Produkcja płyt, arkuszy, rur i kształtowników z tworzyw sztucznych"]
["22.22.Z Produkcja opakowań z tworzyw sztucznych","TAK","22.22.Z","Produkcja opakowań z tworzyw sztucznych"]
["22.23.Z Produkcja wyrobów dla budownictwa z tworzyw sztucznych","TAK","22.23.Z","Produkcja wyrobów dla budownictwa z tworzyw sztucznych"]
["22.29.Z Produkcja pozostałych wyrobów z tworzyw sztucznych","TAK","22.29.Z","Produkcja pozostałych wyrobów z tworzyw sztucznych"]
["23.11.Z Produkcja szkła płaskiego","TAK","23.11.Z","Produkcja szkła płaskiego"]
["23.12.Z Kształtowanie i obróbka szkła płaskiego","TAK","23.12.Z","Kształtowanie i obróbka szkła płaskiego"]
["23.13.Z Produkcja szkła gospodarczego","TAK","23.13.Z","Produkcja szkła gospodarczego"]
["23.14.Z Produkcja włókien szklanych","TAK","23.14.Z","Produkcja włókien szklanych"]
["23.19.Z Produkcja i obróbka pozostałego szkła, włączając szkło techniczne","TAK","23.19.Z","Produkcja i obróbka pozostałego szkła, włączając szkło techniczne"]
["23.20.Z Produkcja wyrobów ogniotrwałych","TAK","23.20.Z","Produkcja wyrobów ogniotrwałych"]
["23.31.Z Produkcja ceramicznych kafli i płytek","TAK","23.31.Z","Produkcja ceramicznych kafli i płytek"]
["23.32.Z Produkcja cegieł, dachówek i materiałów budowlanych, z wypalanej gliny","TAK","23.32.Z","Produkcja cegieł, dachówek i materiałów budowlanych, z wypalanej gliny"]
["23.41.Z Produkcja ceramicznych wyrobów stołowych i ozdobnych","TAK","23.41.Z","Produkcja ceramicznych wyrobów stołowych i ozdobnych"]
["23.42.Z Produkcja ceramicznych wyrobów sanitarnych","TAK","23.42.Z","Produkcja ceramicznych wyrobów sanitarnych"]
["23.43.Z Produkcja ceramicznych izolatorów i osłon izolacyjnych","TAK","23.43.Z","Produkcja ceramicznych izolatorów i osłon izolacyjnych"]
["23.44.Z Produkcja pozostałych technicznych wyrobów ceramicznych","TAK","23.44.Z","Produkcja pozostałych technicznych wyrobów ceramicznych"]
["23.49.Z Produkcja pozostałych wyrobów ceramicznych","TAK","23.49.Z","Produkcja pozostałych wyrobów ceramicznych"]
["23.51.Z Produkcja cementu","TAK","23.51.Z","Produkcja cementu"]
["23.52.Z Produkcja wapna i gipsu","TAK","23.52.Z","Produkcja wapna i gipsu"]
["23.61.Z Produkcja wyrobów budowlanych z betonu","TAK","23.61.Z","Produkcja wyrobów budowlanych z betonu"]
["23.62.Z Produkcja wyrobów budowlanych z gipsu","TAK","23.62.Z","Produkcja wyrobów budowlanych z gipsu"]
["23.63.Z Produkcja masy betonowej prefabrykowanej","TAK","23.63.Z","Produkcja masy betonowej prefabrykowanej"]
["23.64.Z Produkcja zaprawy murarskiej","TAK","23.64.Z","Produkcja zaprawy murarskiej"]
["23.65.Z Produkcja cementu wzmocnionego włóknem","TAK","23.65.Z","Produkcja cementu wzmocnionego włóknem"]
["23.69.Z Produkcja pozostałych wyrobów z betonu, gipsu i cementu","TAK","23.69.Z","Produkcja pozostałych wyrobów z betonu, gipsu i cementu"]
["23.70.Z Cięcie, formowanie i wykańczanie kamienia","TAK","23.70.Z","Cięcie, formowanie i wykańczanie kamienia"]
["23.91.Z Produkcja wyrobów ściernych","TAK","23.91.Z","Produkcja wyrobów ściernych"]
["23.99.Z Produkcja pozostałych wyrobów z mineralnych surowców niemetalicznych, gdzie indziej niesklasyfikowana","TAK","23.99.Z","Produkcja pozostałych wyrobów z mineralnych surowców niemetalicznych, gdzie indziej niesklasyfikowana"]
["24.10.Z Produkcja surówki, żelazostopów, żeliwa i stali oraz wyrobów hutniczych","TAK","24.10.Z","Produkcja surówki, żelazostopów, żeliwa i stali oraz wyrobów hutniczych"]
["24.20.Z Produkcja rur, przewodów, kształtowników zamkniętych i łączników, ze stali","TAK","24.20.Z","Produkcja rur, przewodów, kształtowników zamkniętych i łączników, ze stali"]
["24.31.Z Produkcja prętów ciągnionych na zimno","TAK","24.31.Z","Produkcja prętów ciągnionych na zimno"]
["24.32.Z Produkcja wyrobów płaskich walcowanych na zimno","TAK","24.32.Z","Produkcja wyrobów płaskich walcowanych na zimno"]
["24.33.Z Produkcja wyrobów formowanych na zimno","TAK","24.33.Z","Produkcja wyrobów formowanych na zimno"]
["24.34.Z Produkcja drutu","TAK","24.34.Z","Produkcja drutu"]
["24.41.Z Produkcja metali szlachetnych","TAK","24.41.Z","Produkcja metali szlachetnych"]
["24.42.A Produkcja aluminium hutniczego","TAK","24.42.A","Produkcja aluminium hutniczego"]
["24.42.B Produkcja wyrobów z aluminium i stopów aluminium","TAK","24.42.B","Produkcja wyrobów z aluminium i stopów aluminium"]
["24.43.Z Produkcja ołowiu, cynku i cyny","TAK","24.43.Z","Produkcja ołowiu, cynku i cyny"]
["24.44.Z Produkcja miedzi","TAK","24.44.Z","Produkcja miedzi"]
["24.45.Z Produkcja pozostałych metali nieżelaznych","TAK","24.45.Z","Produkcja pozostałych metali nieżelaznych"]
["24.46.Z Wytwarzanie paliw jądrowych","TAK","24.46.Z","Wytwarzanie paliw jądrowych"]
["24.51.Z Odlewnictwo żeliwa","TAK","24.51.Z","Odlewnictwo żeliwa"]
["24.52.Z Odlewnictwo staliwa","TAK","24.52.Z","Odlewnictwo staliwa"]
["24.53.Z Odlewnictwo metali lekkich","TAK","24.53.Z","Odlewnictwo metali lekkich"]
["24.54.A Odlewnictwo miedzi i stopów miedzi","TAK","24.54.A","Odlewnictwo miedzi i stopów miedzi"]
["24.54.B Odlewnictwo pozostałych metali nieżelaznych, gdzie indziej niesklasyfikowane","TAK","24.54.B","Odlewnictwo pozostałych metali nieżelaznych, gdzie indziej niesklasyfikowane"]
["25.11.Z Produkcja konstrukcji metalowych i ich części","NIE","25.11.Z","Produkcja konstrukcji metalowych i ich części"]
["25.12.Z Produkcja metalowych elementów stolarki budowlanej","NIE","25.12.Z","Produkcja metalowych elementów stolarki budowlanej"]
["25.21.Z Produkcja grzejników i kotłów centralnego ogrzewania","NIE","25.21.Z","Produkcja grzejników i kotłów centralnego ogrzewania"]
["25.29.Z Produkcja pozostałych zbiorników, cystern i pojemników metalowych","NIE","25.29.Z","Produkcja pozostałych zbiorników, cystern i pojemników metalowych"]
["25.30.Z Produkcja wytwornic pary, z wyłączeniem kotłów do centralnego ogrzewania gorącą wodą","NIE","25.30.Z","Produkcja wytwornic pary, z wyłączeniem kotłów do centralnego ogrzewania gorącą wodą"]
["25.40.Z Produkcja broni i amunicji","TAK","25.40.Z","Produkcja broni i amunicji"]
["25.50.Z Kucie, prasowanie, wytłaczanie i walcowanie metali; metalurgia proszków","TAK","25.50.Z","Kucie, prasowanie, wytłaczanie i walcowanie metali; metalurgia proszków"]
["25.61.Z Obróbka metali i nakładanie powłok na metale","TAK","25.61.Z","Obróbka metali i nakładanie powłok na metale"]
["25.62.Z Obróbka mechaniczna elementów metalowych","NIE","25.62.Z","Obróbka mechaniczna elementów metalowych"]
["25.71.Z Produkcja wyrobów nożowniczych i sztućców","TAK","25.71.Z","Produkcja wyrobów nożowniczych i sztućców"]
["25.72.Z Produkcja zamków i zawiasów","TAK","25.72.Z","Produkcja zamków i zawiasów"]
["25.73.Z Produkcja narzędzi","TAK","25.73.Z","Produkcja narzędzi"]
["25.91.Z Produkcja pojemników metalowych","TAK","25.91.Z","Produkcja pojemników metalowych"]
["25.92.Z Produkcja opakowań z metali ","TAK","25.92.Z","Produkcja opakowań z metali"]
["25.93.Z Produkcja wyrobów z drutu, łańcuchów i sprężyn","TAK","25.93.Z","Produkcja wyrobów z drutu, łańcuchów i sprężyn"]
["25.94.Z Produkcja złączy i śrub","TAK","25.94.Z","Produkcja złączy i śrub"]
["25.99.Z Produkcja pozostałych gotowych wyrobów metalowych, gdzie indziej niesklasyfikowana","TAK","25.99.Z","Produkcja pozostałych gotowych wyrobów metalowych, gdzie indziej niesklasyfikowana"]
["26.11.Z Produkcja elementów elektronicznych","NIE","26.11.Z","Produkcja elementów elektronicznych"]
["26.12.Z Produkcja elektronicznych obwodów drukowanych","NIE","26.12.Z","Produkcja elektronicznych obwodów drukowanych"]
["26.20.Z Produkcja komputerów i urządzeń peryferyjnych","NIE","26.20.Z","Produkcja komputerów i urządzeń peryferyjnych"]
["26.30.Z Produkcja sprzętu (tele)komunikacyjnego","NIE","26.30.Z","Produkcja sprzętu (tele)komunikacyjnego"]
["26.40.Z Produkcja elektronicznego sprzętu powszechnego użytku","NIE","26.40.Z","Produkcja elektronicznego sprzętu powszechnego użytku"]
["26.51.Z Produkcja instrumentów i przyrządów pomiarowych, kontrolnych i nawigacyjnych","NIE","26.51.Z","Produkcja instrumentów i przyrządów pomiarowych, kontrolnych i nawigacyjnych"]
["26.52.Z Produkcja zegarków i zegarów","NIE","26.52.Z","Produkcja zegarków i zegarów"]
["26.60.Z Produkcja urządzeń napromieniowujących, sprzętu elektromedycznego i elektroterapeutycznego","NIE","26.60.Z","Produkcja urządzeń napromieniowujących, sprzętu elektromedycznego i elektroterapeutycznego"]
["26.70.Z Produkcja instrumentów optycznych i sprzętu fotograficznego","NIE","26.70.Z","Produkcja instrumentów optycznych i sprzętu fotograficznego"]
["26.80.Z Produkcja magnetycznych i optycznych niezapisanych nośników informacji","NIE","26.80.Z","Produkcja magnetycznych i optycznych niezapisanych nośników informacji"]
["27.11.Z Produkcja elektrycznych silników, prądnic i transformatorów","TAK","27.11.Z","Produkcja elektrycznych silników, prądnic i transformatorów"]
["27.12.Z Produkcja aparatury rozdzielczej i sterowniczej energii elektrycznej","TAK","27.12.Z","Produkcja aparatury rozdzielczej i sterowniczej energii elektrycznej"]
["27.20.Z Produkcja baterii i akumulatorów","TAK","27.20.Z","Produkcja baterii i akumulatorów"]
["27.31.Z Produkcja kabli światłowodowych","TAK","27.31.Z","Produkcja kabli światłowodowych"]
["27.32.Z Produkcja pozostałych elektronicznych i elektrycznych przewodów i kabli","TAK","27.32.Z","Produkcja pozostałych elektronicznych i elektrycznych przewodów i kabli"]
["27.33.Z Produkcja sprzętu instalacyjnego","TAK","27.33.Z","Produkcja sprzętu instalacyjnego"]
["27.40.Z Produkcja elektrycznego sprzętu oświetleniowego","TAK","27.40.Z","Produkcja elektrycznego sprzętu oświetleniowego"]
["27.51.Z Produkcja elektrycznego sprzętu gospodarstwa domowego","TAK","27.51.Z","Produkcja elektrycznego sprzętu gospodarstwa domowego"]
["27.52.Z Produkcja nieelektrycznego sprzętu gospodarstwa domowego","TAK","27.52.Z","Produkcja nieelektrycznego sprzętu gospodarstwa domowego"]
["27.90.Z Produkcja pozostałego sprzętu elektrycznego","TAK","27.90.Z","Produkcja pozostałego sprzętu elektrycznego"]
["28.11.Z Produkcja silników i turbin, z wyłączeniem silników lotniczych, samochodowych i motocyklowych","TAK","28.11.Z","Produkcja silników i turbin, z wyłączeniem silników lotniczych, samochodowych i motocyklowych"]
["28.12.Z Produkcja sprzętu i wyposażenia do napędu hydraulicznego i pneumatycznego","TAK","28.12.Z","Produkcja sprzętu i wyposażenia do napędu hydraulicznego i pneumatycznego"]
["28.13.Z Produkcja pozostałych pomp i sprężarek","TAK","28.13.Z","Produkcja pozostałych pomp i sprężarek"]
["28.14.Z Produkcja pozostałych kurków i zaworów","TAK","28.14.Z","Produkcja pozostałych kurków i zaworów"]
["28.15.Z Produkcja łożysk, kół zębatych, przekładni zębatych i elementów napędowych","TAK","28.15.Z","Produkcja łożysk, kół zębatych, przekładni zębatych i elementów napędowych"]
["28.21.Z Produkcja pieców, palenisk i palników piecowych","TAK","28.21.Z","Produkcja pieców, palenisk i palników piecowych"]
["28.22.Z Produkcja urządzeń dźwigowych i chwytaków","TAK","28.22.Z","Produkcja urządzeń dźwigowych i chwytaków"]
["28.23.Z Produkcja maszyn i sprzętu biurowego, z wyłączeniem komputerów i urządzeń peryferyjnych","TAK","28.23.Z","Produkcja maszyn i sprzętu biurowego, z wyłączeniem komputerów i urządzeń peryferyjnych"]
["28.24.Z Produkcja narzędzi ręcznych mechanicznych","TAK","28.24.Z","Produkcja narzędzi ręcznych mechanicznych"]
["28.25.Z Produkcja przemysłowych urządzeń chłodniczych i wentylacyjnych","TAK","28.25.Z","Produkcja przemysłowych urządzeń chłodniczych i wentylacyjnych"]
["28.29.Z Produkcja pozostałych maszyn ogólnego przeznaczenia, gdzie indziej niesklasyfikowana","TAK","28.29.Z","Produkcja pozostałych maszyn ogólnego przeznaczenia, gdzie indziej niesklasyfikowana"]
["28.30.Z Produkcja maszyn dla rolnictwa i leśnictwa","TAK","28.30.Z","Produkcja maszyn dla rolnictwa i leśnictwa"]
["28.41.Z Produkcja maszyn do obróbki metalu","TAK","28.41.Z","Produkcja maszyn do obróbki metalu"]
["28.49.Z Produkcja pozostałych narzędzi mechanicznych","TAK","28.49.Z","Produkcja pozostałych narzędzi mechanicznych"]
["28.91.Z Produkcja maszyn dla metalurgii","TAK","28.91.Z","Produkcja maszyn dla metalurgii"]
["28.92.Z Produkcja maszyn dla górnictwa i do wydobywania oraz budownictwa","TAK","28.92.Z","Produkcja maszyn dla górnictwa i do wydobywania oraz budownictwa"]
["28.93.Z Produkcja maszyn stosowanych w przetwórstwie żywności, tytoniu i produkcji napojów","TAK","28.93.Z","Produkcja maszyn stosowanych w przetwórstwie żywności, tytoniu i produkcji napojów"]
["28.94.Z Produkcja maszyn dla przemysłu tekstylnego, odzieżowego i skórzanego","TAK","28.94.Z","Produkcja maszyn dla przemysłu tekstylnego, odzieżowego i skórzanego"]
["28.95.Z Produkcja maszyn dla przemysłu papierniczego","TAK","28.95.Z","Produkcja maszyn dla przemysłu papierniczego"]
["28.96.Z Produkcja maszyn do obróbki gumy lub tworzyw sztucznych oraz wytwarzania wyrobów z tych materiałów","TAK","28.96.Z","Produkcja maszyn do obróbki gumy lub tworzyw sztucznych oraz wytwarzania wyrobów z tych materiałów"]
["28.99.Z Produkcja pozostałych maszyn specjalnego przeznaczenia, gdzie indziej niesklasyfikowana","TAK","28.99.Z","Produkcja pozostałych maszyn specjalnego przeznaczenia, gdzie indziej niesklasyfikowana"]
["29.10.A Produkcja silników do pojazdów samochodowych (z wyłączeniem motocykli) oraz do ciągników rolniczych","TAK","29.10.A","Produkcja silników do pojazdów samochodowych (z wyłączeniem motocykli) oraz do ciągników rolniczych"]
["29.10.B Produkcja samochodów osobowych","TAK","29.10.B","Produkcja samochodów osobowych"]
["29.10.C Produkcja autobusów","TAK","29.10.C","Produkcja autobusów"]
["29.10.D Produkcja pojazdów samochodowych przeznaczonych do przewozu towarów","TAK","29.10.D","Produkcja pojazdów samochodowych przeznaczonych do przewozu towarów"]
["29.10.E Produkcja pozostałych pojazdów samochodowych, z wyłączeniem motocykli","TAK","29.10.E","Produkcja pozostałych pojazdów samochodowych, z wyłączeniem motocykli"]
["29.20.Z Produkcja nadwozi do pojazdów silnikowych; produkcja przyczep i naczep","TAK","29.20.Z","Produkcja nadwozi do pojazdów silnikowych; produkcja przyczep i naczep"]
["29.31.Z Produkcja wyposażenia elektrycznego i elektronicznego do pojazdów silnikowych","TAK","29.31.Z","Produkcja wyposażenia elektrycznego i elektronicznego do pojazdów silnikowych"]
["29.32.Z Produkcja pozostałych części i akcesoriów do pojazdów silnikowych, z wyłączeniem motocykli","TAK","29.32.Z","Produkcja pozostałych części i akcesoriów do pojazdów silnikowych, z wyłączeniem motocykli"]
["30.11.Z Produkcja statków i konstrukcji pływających","TAK","30.11.Z","Produkcja statków i konstrukcji pływających"]
["30.12.Z Produkcja łodzi wycieczkowych i sportowych","TAK","30.12.Z","Produkcja łodzi wycieczkowych i sportowych"]
["30.20.Z Produkcja lokomotyw kolejowych oraz taboru szynowego","TAK","30.20.Z","Produkcja lokomotyw kolejowych oraz taboru szynowego"]
["30.30.Z Produkcja statków powietrznych, statków kosmicznych i podobnych maszyn","TAK","30.30.Z","Produkcja statków powietrznych, statków kosmicznych i podobnych maszyn"]
["30.40.Z Produkcja wojskowych pojazdów bojowych","TAK","30.40.Z","Produkcja wojskowych pojazdów bojowych"]
["30.91.Z Produkcja motocykli","TAK","30.91.Z","Produkcja motocykli"]
["30.92.Z Produkcja rowerów i wózków inwalidzkich","TAK","30.92.Z","Produkcja rowerów i wózków inwalidzkich"]
["30.99.Z Produkcja pozostałego sprzętu transportowego, gdzie indziej niesklasyfikowana","TAK","30.99.Z","Produkcja pozostałego sprzętu transportowego, gdzie indziej niesklasyfikowana"]
["31.01.Z Produkcja mebli biurowych i sklepowych","TAK","31.01.Z","Produkcja mebli biurowych i sklepowych"]
["31.02.Z Produkcja mebli kuchennych","TAK","31.02.Z","Produkcja mebli kuchennych"]
["31.03.Z Produkcja materaców","TAK","31.03.Z","Produkcja materaców"]
["31.09.Z Produkcja pozostałych mebli","TAK","31.09.Z","Produkcja pozostałych mebli"]
["32.11.Z Produkcja monet","TAK","32.11.Z","Produkcja monet"]
["32.12.Z Produkcja wyrobów jubilerskich i podobnych","TAK","32.12.Z","Produkcja wyrobów jubilerskich i podobnych"]
["32.13.Z Produkcja sztucznej biżuterii i wyrobów podobnych","TAK","32.13.Z","Produkcja sztucznej biżuterii i wyrobów podobnych"]
["32.20.Z Produkcja instrumentów muzycznych","TAK","32.20.Z","Produkcja instrumentów muzycznych"]
["32.30.Z Produkcja sprzętu sportowego","TAK","32.30.Z","Produkcja sprzętu sportowego"]
["32.40.Z Produkcja gier i zabawek","TAK","32.40.Z","Produkcja gier i zabawek"]
["32.50.Z Produkcja urządzeń, instrumentów oraz wyrobów medycznych, włączając dentystyczne","TAK","32.50.Z","Produkcja urządzeń, instrumentów oraz wyrobów medycznych, włączając dentystyczne"]
["32.91.Z Produkcja mioteł, szczotek i pędzli","TAK","32.91.Z","Produkcja mioteł, szczotek i pędzli"]
["32.99.Z Produkcja pozostałych wyrobów, gdzie indziej niesklasyfikowana","TAK","32.99.Z","Produkcja pozostałych wyrobów, gdzie indziej niesklasyfikowana"]
["33.11.Z Naprawa i konserwacja metalowych wyrobów gotowych","NIE","33.11.Z","Naprawa i konserwacja metalowych wyrobów gotowych"]
["33.12.Z Naprawa i konserwacja maszyn","NIE","33.12.Z","Naprawa i konserwacja maszyn"]
["33.13.Z Naprawa i konserwacja urządzeń elektronicznych i optycznych","NIE","33.13.Z","Naprawa i konserwacja urządzeń elektronicznych i optycznych"]
["33.14.Z Naprawa i konserwacja urządzeń elektrycznych","NIE","33.14.Z","Naprawa i konserwacja urządzeń elektrycznych"]
["33.15.Z Naprawa i konserwacja statków i łodzi","NIE","33.15.Z","Naprawa i konserwacja statków i łodzi"]
["33.16.Z Naprawa i konserwacja statków powietrznych i statków kosmicznych","NIE","33.16.Z","Naprawa i konserwacja statków powietrznych i statków kosmicznych"]
["33.17.Z Naprawa i konserwacja pozostałego sprzętu transportowego","NIE","33.17.Z","Naprawa i konserwacja pozostałego sprzętu transportowego"]
["33.19.Z Naprawa i konserwacja pozostałego sprzętu i wyposażenia","NIE","33.19.Z","Naprawa i konserwacja pozostałego sprzętu i wyposażenia"]
["33.20.Z Instalowanie maszyn przemysłowych, sprzętu i wyposażenia","NIE","33.20.Z","Instalowanie maszyn przemysłowych, sprzętu i wyposażenia"]
["35.11.Z Wytwarzanie energii elektrycznej","TAK","35.11.Z","Wytwarzanie energii elektrycznej"]
["35.12.Z Przesyłanie energii elektrycznej","TAK","35.12.Z","Przesyłanie energii elektrycznej"]
["35.13.Z Dystrybucja energii elektrycznej","TAK","35.13.Z","Dystrybucja energii elektrycznej"]
["35.14.Z Handel energią elektryczną","NIE","35.14.Z","Handel energią elektryczną"]
["35.21.Z Wytwarzanie paliw gazowych","TAK","35.21.Z","Wytwarzanie paliw gazowych"]
["35.22.Z Dystrybucja paliw gazowych w systemie sieciowym","TAK","35.22.Z","Dystrybucja paliw gazowych w systemie sieciowym"]
["35.23.Z Handel paliwami gazowymi w systemie sieciowym","NIE","35.23.Z","Handel paliwami gazowymi w systemie sieciowym"]
["35.30.Z Wytwarzanie i zaopatrywanie w parę wodną, gorącą wodę i powietrze do układów klimatyzacyjnych","TAK","35.30.Z","Wytwarzanie i zaopatrywanie w parę wodną, gorącą wodę i powietrze do układów klimatyzacyjnych"]
["36.00.Z POBÓR, UZDATNIANIE I DOSTARCZANIE WODY","TAK","36.00.Z","POBÓR, UZDATNIANIE I DOSTARCZANIE WODY"]
["37.00.Z ODPROWADZANIE I OCZYSZCZANIE ŚCIEKÓW","TAK","37.00.Z","ODPROWADZANIE I OCZYSZCZANIE ŚCIEKÓW"]
["38.11.Z Zbieranie odpadów innych niż niebezpieczne","TAK","38.11.Z","Zbieranie odpadów innych niż niebezpieczne"]
["38.12.Z Zbieranie odpadów niebezpiecznych","TAK","38.12.Z","Zbieranie odpadów niebezpiecznych"]
["38.21.Z Obróbka i usuwanie odpadów innych niż niebezpieczne","TAK","38.21.Z","Obróbka i usuwanie odpadów innych niż niebezpieczne"]
["38.22.Z Przetwarzanie i unieszkodliwianie odpadów niebezpiecznych","TAK","38.22.Z","Przetwarzanie i unieszkodliwianie odpadów niebezpiecznych"]
["38.31.Z Demontaż wyrobów zużytych","TAK","38.31.Z","Demontaż wyrobów zużytych"]
["38.32.Z Odzysk surowców z materiałów segregowanych","TAK","38.32.Z","Odzysk surowców z materiałów segregowanych"]
["39.00.Z DZIAŁALNOŚĆ ZWIĄZANA Z REKULTYWACJĄ I POZOSTAŁA DZIAŁALNOŚĆ USŁUGOWA ZWIĄZANA Z GOSPODARKĄ ODPADAMI","TAK","39.00.Z","DZIAŁALNOŚĆ ZWIĄZANA Z REKULTYWACJĄ I POZOSTAŁA DZIAŁALNOŚĆ USŁUGOWA ZWIĄZANA Z GOSPODARKĄ ODPADAMI"]
["41.10.Z Realizacja projektów budowlanych związanych ze wznoszeniem budynków","NIE","41.10.Z","Realizacja projektów budowlanych związanych ze wznoszeniem budynków"]
["41.20.Z Roboty budowlane związane ze wznoszeniem budynków mieszkalnych i niemieszkalnych","TAK","41.20.Z","Roboty budowlane związane ze wznoszeniem budynków mieszkalnych i niemieszkalnych"]
["42.11.Z Roboty związane z budową dróg i autostrad","TAK","42.11.Z","Roboty związane z budową dróg i autostrad"]
["42.12.Z Roboty związane z budową dróg szynowych i kolei podziemnej","TAK","42.12.Z","Roboty związane z budową dróg szynowych i kolei podziemnej"]
["42.13.Z Roboty związane z budową mostów i tuneli","TAK","42.13.Z","Roboty związane z budową mostów i tuneli"]
["42.21.Z Roboty związane z budową rurociągów przesyłowych i sieci rozdzielczych","TAK","42.21.Z","Roboty związane z budową rurociągów przesyłowych i sieci rozdzielczych"]
["42.22.Z Roboty związane z budową linii telekomunikacyjnych i elektroenergetycznych","TAK","42.22.Z","Roboty związane z budową linii telekomunikacyjnych i elektroenergetycznych"]
["42.91.Z Roboty związane z budową obiektów inżynierii wodnej","TAK","42.91.Z","Roboty związane z budową obiektów inżynierii wodnej"]
["42.99.Z Roboty związane z budową pozostałych obiektów inżynierii lądowej i wodnej, gdzie indziej niesklasyfikowane","TAK","42.99.Z","Roboty związane z budową pozostałych obiektów inżynierii lądowej i wodnej, gdzie indziej niesklasyfikowane"]
["43.11.Z Rozbiórka i burzenie obiektów budowlanych","TAK","43.11.Z","Rozbiórka i burzenie obiektów budowlanych"]
["43.12.Z Przygotowanie terenu pod budowę","TAK","43.12.Z","Przygotowanie terenu pod budowę"]
["43.13.Z Wykonywanie wykopów i wierceń geologiczno-inżynierskich","TAK","43.13.Z","Wykonywanie wykopów i wierceń geologiczno-inżynierskich"]
["43.21.Z Wykonywanie instalacji elektrycznych","NIE","43.21.Z","Wykonywanie instalacji elektrycznych"]
["43.22.Z Wykonywanie instalacji wodno-kanalizacyjnych, cieplnych, gazowych i klimatyzacyjnych","NIE","43.22.Z","Wykonywanie instalacji wodno-kanalizacyjnych, cieplnych, gazowych i klimatyzacyjnych"]
["43.29.Z Wykonywanie pozostałych instalacji budowlanych","NIE","43.29.Z","Wykonywanie pozostałych instalacji budowlanych"]
["43.31.Z Tynkowanie","NIE","43.31.Z","Tynkowanie"]
["43.32.Z Zakładanie stolarki budowlanej","NIE","43.32.Z","Zakładanie stolarki budowlanej"]
["43.33.Z Posadzkarstwo; tapetowanie i oblicowywanie ścian","NIE","43.33.Z","Posadzkarstwo; tapetowanie i oblicowywanie ścian"]
["43.34.Z Malowanie i szklenie","NIE","43.34.Z","Malowanie i szklenie"]
["43.39.Z Wykonywanie pozostałych robót budowlanych wykończeniowych","NIE","43.39.Z","Wykonywanie pozostałych robót budowlanych wykończeniowych"]
["43.91.Z Wykonywanie konstrukcji i pokryć dachowych","TAK","43.91.Z","Wykonywanie konstrukcji i pokryć dachowych"]
["43.99.Z Pozostałe specjalistyczne roboty budowlane, gdzie indziej niesklasyfikowane","TAK","43.99.Z","Pozostałe specjalistyczne roboty budowlane, gdzie indziej niesklasyfikowane"]
["45.11.Z Sprzedaż hurtowa i detaliczna samochodów osobowych i furgonetek","NIE","45.11.Z","Sprzedaż hurtowa i detaliczna samochodów osobowych i furgonetek"]
["45.19.Z Sprzedaż hurtowa i detaliczna pozostałych pojazdów samochodowych, z wyłączeniem motocykli","NIE","45.19.Z","Sprzedaż hurtowa i detaliczna pozostałych pojazdów samochodowych, z wyłączeniem motocykli"]
["45.20.Z Konserwacja i naprawa pojazdów samochodowych, z wyłączeniem motocykli","NIE","45.20.Z","Konserwacja i naprawa pojazdów samochodowych, z wyłączeniem motocykli"]
["45.31.Z Sprzedaż hurtowa części i akcesoriów do pojazdów samochodowych, z wyłączeniem motocykli","NIE","45.31.Z","Sprzedaż hurtowa części i akcesoriów do pojazdów samochodowych, z wyłączeniem motocykli"]
["45.32.Z Sprzedaż detaliczna części i akcesoriów do pojazdów samochodowych, z wyłączeniem motocykli","NIE","45.32.Z","Sprzedaż detaliczna części i akcesoriów do pojazdów samochodowych, z wyłączeniem motocykli"]
["45.40.Z Sprzedaż hurtowa i detaliczna motocykli, ich naprawa i konserwacja oraz sprzedaż hurtowa i detaliczna części i akcesoriów do nich","NIE","45.40.Z","Sprzedaż hurtowa i detaliczna motocykli, ich naprawa i konserwacja oraz sprzedaż hurtowa i detaliczna części i akcesoriów do nich"]
["46.11.Z Działalność agentów zajmujących się sprzedażą płodów rolnych, żywych zwierząt, surowców dla przemysłu tekstylnego i półproduktów","NIE","46.11.Z","Działalność agentów zajmujących się sprzedażą płodów rolnych, żywych zwierząt, surowców dla przemysłu tekstylnego i półproduktów"]
["46.12.Z Działalność agentów zajmujących się sprzedażą paliw, rud, metali i chemikaliów przemysłowych","NIE","46.12.Z","Działalność agentów zajmujących się sprzedażą paliw, rud, metali i chemikaliów przemysłowych"]
["46.13.Z Działalność agentów zajmujących się sprzedażą drewna i materiałów budowlanych","NIE","46.13.Z","Działalność agentów zajmujących się sprzedażą drewna i materiałów budowlanych"]
["46.14.Z Działalność agentów zajmujących się sprzedażą maszyn, urządzeń przemysłowych, statków i samolotów","NIE","46.14.Z","Działalność agentów zajmujących się sprzedażą maszyn, urządzeń przemysłowych, statków i samolotów"]
["46.15.Z Działalność agentów zajmujących się sprzedażą mebli, artykułów gospodarstwa domowego i drobnych wyrobów metalowych","NIE","46.15.Z","Działalność agentów zajmujących się sprzedażą mebli, artykułów gospodarstwa domowego i drobnych wyrobów metalowych"]
["46.16.Z Działalność agentów zajmujących się sprzedażą wyrobów tekstylnych, odzieży, wyrobów futrzarskich, obuwia i artykułów skórzanych","NIE","46.16.Z","Działalność agentów zajmujących się sprzedażą wyrobów tekstylnych, odzieży, wyrobów futrzarskich, obuwia i artykułów skórzanych"]
["46.17.Z Działalność agentów zajmujących się sprzedażą żywności, napojów i wyrobów tytoniowych","NIE","46.17.Z","Działalność agentów zajmujących się sprzedażą żywności, napojów i wyrobów tytoniowych"]
["46.18.Z Działalność agentów specjalizujących się w sprzedaży pozostałych określonych towarów","NIE","46.18.Z","Działalność agentów specjalizujących się w sprzedaży pozostałych określonych towarów"]
["46.19.Z Działalność agentów zajmujących się sprzedażą towarów różnego rodzaju","NIE","46.19.Z","Działalność agentów zajmujących się sprzedażą towarów różnego rodzaju"]
["46.21.Z Sprzedaż hurtowa zboża, nieprzetworzonego tytoniu, nasion i pasz dla zwierząt","NIE","46.21.Z","Sprzedaż hurtowa zboża, nieprzetworzonego tytoniu, nasion i pasz dla zwierząt"]
["46.22.Z Sprzedaż hurtowa kwiatów i roślin","NIE","46.22.Z","Sprzedaż hurtowa kwiatów i roślin"]
["46.23.Z Sprzedaż hurtowa żywych zwierząt","NIE","46.23.Z","Sprzedaż hurtowa żywych zwierząt"]
["46.24.Z Sprzedaż hurtowa skór","NIE","46.24.Z","Sprzedaż hurtowa skór"]
["46.31.Z Sprzedaż hurtowa owoców i warzyw","NIE","46.31.Z","Sprzedaż hurtowa owoców i warzyw"]
["46.32.Z Sprzedaż hurtowa mięsa i wyrobów z mięsa","NIE","46.32.Z","Sprzedaż hurtowa mięsa i wyrobów z mięsa"]
["46.33.Z Sprzedaż hurtowa mleka, wyrobów mleczarskich, jaj, olejów i tłuszczów jadalnych","NIE","46.33.Z","Sprzedaż hurtowa mleka, wyrobów mleczarskich, jaj, olejów i tłuszczów jadalnych"]
["46.34.A Sprzedaż hurtowa napojów alkoholowych","NIE","46.34.A","Sprzedaż hurtowa napojów alkoholowych"]
["46.34.B Sprzedaż hurtowa napojów bezalkoholowych","NIE","46.34.B","Sprzedaż hurtowa napojów bezalkoholowych"]
["46.35.Z Sprzedaż hurtowa wyrobów tytoniowych","NIE","46.35.Z","Sprzedaż hurtowa wyrobów tytoniowych"]
["46.36.Z Sprzedaż hurtowa cukru, czekolady, wyrobów cukierniczych i piekarskich","NIE","46.36.Z","Sprzedaż hurtowa cukru, czekolady, wyrobów cukierniczych i piekarskich"]
["46.37.Z Sprzedaż hurtowa herbaty, kawy, kakao i przypraw","NIE","46.37.Z","Sprzedaż hurtowa herbaty, kawy, kakao i przypraw"]
["46.38.Z Sprzedaż hurtowa pozostałej żywności, włączając ryby, skorupiaki i mięczaki","NIE","46.38.Z","Sprzedaż hurtowa pozostałej żywności, włączając ryby, skorupiaki i mięczaki"]
["46.39.Z Sprzedaż hurtowa niewyspecjalizowana żywności, napojów i wyrobów tytoniowych","NIE","46.39.Z","Sprzedaż hurtowa niewyspecjalizowana żywności, napojów i wyrobów tytoniowych"]
["46.41.Z Sprzedaż hurtowa wyrobów tekstylnych","NIE","46.41.Z","Sprzedaż hurtowa wyrobów tekstylnych"]
["46.42.Z Sprzedaż hurtowa odzieży i obuwia","NIE","46.42.Z","Sprzedaż hurtowa odzieży i obuwia"]
["46.43.Z Sprzedaż hurtowa elektrycznych artykułów użytku domowego","NIE","46.43.Z","Sprzedaż hurtowa elektrycznych artykułów użytku domowego"]
["46.44.Z Sprzedaż hurtowa wyrobów porcelanowych, ceramicznych i szklanych oraz środków czyszczących","NIE","46.44.Z","Sprzedaż hurtowa wyrobów porcelanowych, ceramicznych i szklanych oraz środków czyszczących"]
["46.45.Z Sprzedaż hurtowa perfum i kosmetyków","NIE","46.45.Z","Sprzedaż hurtowa perfum i kosmetyków"]
["46.46.Z Sprzedaż hurtowa wyrobów farmaceutycznych i medycznych","NIE","46.46.Z","Sprzedaż hurtowa wyrobów farmaceutycznych i medycznych"]
["46.47.Z Sprzedaż hurtowa mebli, dywanów i sprzętu oświetleniowego","NIE","46.47.Z","Sprzedaż hurtowa mebli, dywanów i sprzętu oświetleniowego"]
["46.48.Z Sprzedaż hurtowa zegarków, zegarów i biżuterii","NIE","46.48.Z","Sprzedaż hurtowa zegarków, zegarów i biżuterii"]
["46.49.Z Sprzedaż hurtowa pozostałych artykułów użytku domowego","NIE","46.49.Z","Sprzedaż hurtowa pozostałych artykułów użytku domowego"]
["46.51.Z Sprzedaż hurtowa komputerów, urządzeń peryferyjnych i oprogramowania","NIE","46.51.Z","Sprzedaż hurtowa komputerów, urządzeń peryferyjnych i oprogramowania"]
["46.52.Z Sprzedaż hurtowa sprzętu elektronicznego i telekomunikacyjnego oraz części do niego","NIE","46.52.Z","Sprzedaż hurtowa sprzętu elektronicznego i telekomunikacyjnego oraz części do niego"]
["46.61.Z Sprzedaż hurtowa maszyn i urządzeń rolniczych oraz dodatkowego wyposażenia","NIE","46.61.Z","Sprzedaż hurtowa maszyn i urządzeń rolniczych oraz dodatkowego wyposażenia"]
["46.62.Z Sprzedaż hurtowa obrabiarek","NIE","46.62.Z","Sprzedaż hurtowa obrabiarek"]
["46.63.Z Sprzedaż hurtowa maszyn wykorzystywanych w górnictwie, budownictwie oraz inżynierii lądowej i wodnej","NIE","46.63.Z","Sprzedaż hurtowa maszyn wykorzystywanych w górnictwie, budownictwie oraz inżynierii lądowej i wodnej"]
["46.64.Z Sprzedaż hurtowa maszyn dla przemysłu tekstylnego oraz maszyn do szycia i maszyn dziewiarskich","NIE","46.64.Z","Sprzedaż hurtowa maszyn dla przemysłu tekstylnego oraz maszyn do szycia i maszyn dziewiarskich"]
["46.65.Z Sprzedaż hurtowa mebli biurowych","NIE","46.65.Z","Sprzedaż hurtowa mebli biurowych"]
["46.66.Z Sprzedaż hurtowa pozostałych maszyn i urządzeń biurowych","NIE","46.66.Z","Sprzedaż hurtowa pozostałych maszyn i urządzeń biurowych"]
["46.69.Z Sprzedaż hurtowa pozostałych maszyn i urządzeń","NIE","46.69.Z","Sprzedaż hurtowa pozostałych maszyn i urządzeń"]
["46.71.Z Sprzedaż hurtowa paliw i produktów pochodnych","TAK","46.71.Z","Sprzedaż hurtowa paliw i produktów pochodnych"]
["46.72.Z Sprzedaż hurtowa metali i rud metali","TAK","46.72.Z","Sprzedaż hurtowa metali i rud metali"]
["46.73.Z Sprzedaż hurtowa drewna, materiałów budowlanych i wyposażenia sanitarnego","NIE","46.73.Z","Sprzedaż hurtowa drewna, materiałów budowlanych i wyposażenia sanitarnego"]
["46.74.Z Sprzedaż hurtowa wyrobów metalowych oraz sprzętu i dodatkowego wyposażenia hydraulicznego i grzejnego","NIE","46.74.Z","Sprzedaż hurtowa wyrobów metalowych oraz sprzętu i dodatkowego wyposażenia hydraulicznego i grzejnego"]
["46.75.Z Sprzedaż hurtowa wyrobów chemicznych","TAK","46.75.Z","Sprzedaż hurtowa wyrobów chemicznych"]
["46.76.Z Sprzedaż hurtowa pozostałych półproduktów","NIE","46.76.Z","Sprzedaż hurtowa pozostałych półproduktów"]
["46.77.Z Sprzedaż hurtowa odpadów i złomu","TAK","46.77.Z","Sprzedaż hurtowa odpadów i złomu"]
["46.90.Z Sprzedaż hurtowa niewyspecjalizowana","NIE","46.90.Z","Sprzedaż hurtowa niewyspecjalizowana"]
["47.11.Z Sprzedaż detaliczna prowadzona w niewyspecjalizowanych sklepach z przewagą żywności, napojów i wyrobów tytoniowych","NIE","47.11.Z","Sprzedaż detaliczna prowadzona w niewyspecjalizowanych sklepach z przewagą żywności, napojów i wyrobów tytoniowych"]
["47.19.Z Pozostała sprzedaż detaliczna prowadzona w niewyspecjalizowanych sklepach","NIE","47.19.Z","Pozostała sprzedaż detaliczna prowadzona w niewyspecjalizowanych sklepach"]
["47.21.Z Sprzedaż detaliczna owoców i warzyw prowadzona w wyspecjalizowanych sklepach","NIE","47.21.Z","Sprzedaż detaliczna owoców i warzyw prowadzona w wyspecjalizowanych sklepach"]
["47.22.Z Sprzedaż detaliczna mięsa i wyrobów z mięsa prowadzona w wyspecjalizowanych sklepach","NIE","47.22.Z","Sprzedaż detaliczna mięsa i wyrobów z mięsa prowadzona w wyspecjalizowanych sklepach"]
["47.23.Z Sprzedaż detaliczna ryb, skorupiaków i mięczaków prowadzona w wyspecjalizowanych sklepach","NIE","47.23.Z","Sprzedaż detaliczna ryb, skorupiaków i mięczaków prowadzona w wyspecjalizowanych sklepach"]
["47.24.Z Sprzedaż detaliczna pieczywa, ciast, wyrobów ciastkarskich i cukierniczych prowadzona w wyspecjalizowanych sklepach","NIE","47.24.Z","Sprzedaż detaliczna pieczywa, ciast, wyrobów ciastkarskich i cukierniczych prowadzona w wyspecjalizowanych sklepach"]
["47.25.Z Sprzedaż detaliczna napojów alkoholowych i bezalkoholowych prowadzona w wyspecjalizowanych sklepach","NIE","47.25.Z","Sprzedaż detaliczna napojów alkoholowych i bezalkoholowych prowadzona w wyspecjalizowanych sklepach"]
["47.26.Z Sprzedaż detaliczna wyrobów tytoniowych prowadzona w wyspecjalizowanych sklepach","NIE","47.26.Z","Sprzedaż detaliczna wyrobów tytoniowych prowadzona w wyspecjalizowanych sklepach"]
["47.29.Z Sprzedaż detaliczna pozostałej żywności prowadzona w wyspecjalizowanych sklepach","NIE","47.29.Z","Sprzedaż detaliczna pozostałej żywności prowadzona w wyspecjalizowanych sklepach"]
["47.30.Z Sprzedaż detaliczna paliw do pojazdów silnikowych na stacjach paliw","TAK","47.30.Z","Sprzedaż detaliczna paliw do pojazdów silnikowych na stacjach paliw"]
["47.41.Z Sprzedaż detaliczna komputerów, urządzeń peryferyjnych i oprogramowania prowadzona w wyspecjalizowanych sklepach","NIE","47.41.Z","Sprzedaż detaliczna komputerów, urządzeń peryferyjnych i oprogramowania prowadzona w wyspecjalizowanych sklepach"]
["47.42.Z Sprzedaż detaliczna sprzętu telekomunikacyjnego prowadzona w wyspecjalizowanych sklepach","NIE","47.42.Z","Sprzedaż detaliczna sprzętu telekomunikacyjnego prowadzona w wyspecjalizowanych sklepach"]
["47.43.Z Sprzedaż detaliczna sprzętu audiowizualnego prowadzona w wyspecjalizowanych sklepach","NIE","47.43.Z","Sprzedaż detaliczna sprzętu audiowizualnego prowadzona w wyspecjalizowanych sklepach"]
["47.51.Z Sprzedaż detaliczna wyrobów tekstylnych prowadzona w wyspecjalizowanych sklepach","NIE","47.51.Z","Sprzedaż detaliczna wyrobów tekstylnych prowadzona w wyspecjalizowanych sklepach"]
["47.52.Z Sprzedaż detaliczna drobnych wyrobów metalowych, farb i szkła prowadzona w wyspecjalizowanych sklepach","NIE","47.52.Z","Sprzedaż detaliczna drobnych wyrobów metalowych, farb i szkła prowadzona w wyspecjalizowanych sklepach"]
["47.53.Z Sprzedaż detaliczna dywanów, chodników i innych pokryć podłogowych oraz pokryć ściennych prowadzona w wyspecjalizowanych sklepach","NIE","47.53.Z","Sprzedaż detaliczna dywanów, chodników i innych pokryć podłogowych oraz pokryć ściennych prowadzona w wyspecjalizowanych sklepach"]
["47.54.Z Sprzedaż detaliczna elektrycznego sprzętu gospodarstwa domowego prowadzona w wyspecjalizowanych sklepach","NIE","47.54.Z","Sprzedaż detaliczna elektrycznego sprzętu gospodarstwa domowego prowadzona w wyspecjalizowanych sklepach"]
["47.59.Z Sprzedaż detaliczna mebli, sprzętu oświetleniowego i pozostałych artykułów użytku domowego prowadzona w wyspecjalizowanych sklepach","NIE","47.59.Z","Sprzedaż detaliczna mebli, sprzętu oświetleniowego i pozostałych artykułów użytku domowego prowadzona w wyspecjalizowanych sklepach"]
["47.61.Z Sprzedaż detaliczna książek prowadzona w wyspecjalizowanych sklepach","NIE","47.61.Z","Sprzedaż detaliczna książek prowadzona w wyspecjalizowanych sklepach"]
["47.62.Z Sprzedaż detaliczna gazet i artykułów piśmiennych prowadzona w wyspecjalizowanych sklepach","NIE","47.62.Z","Sprzedaż detaliczna gazet i artykułów piśmiennych prowadzona w wyspecjalizowanych sklepach"]
["47.63.Z Sprzedaż detaliczna nagrań dźwiękowych i audiowizualnych prowadzona w wyspecjalizowanych sklepach","NIE","47.63.Z","Sprzedaż detaliczna nagrań dźwiękowych i audiowizualnych prowadzona w wyspecjalizowanych sklepach"]
["47.64.Z Sprzedaż detaliczna sprzętu sportowego prowadzona w wyspecjalizowanych sklepach","NIE","47.64.Z","Sprzedaż detaliczna sprzętu sportowego prowadzona w wyspecjalizowanych sklepach"]
["47.65.Z Sprzedaż detaliczna gier i zabawek prowadzona w wyspecjalizowanych sklepach","NIE","47.65.Z","Sprzedaż detaliczna gier i zabawek prowadzona w wyspecjalizowanych sklepach"]
["47.71.Z Sprzedaż detaliczna odzieży prowadzona w wyspecjalizowanych sklepach","NIE","47.71.Z","Sprzedaż detaliczna odzieży prowadzona w wyspecjalizowanych sklepach"]
["47.72.Z Sprzedaż detaliczna obuwia i wyrobów skórzanych prowadzona w wyspecjalizowanych sklepach","NIE","47.72.Z","Sprzedaż detaliczna obuwia i wyrobów skórzanych prowadzona w wyspecjalizowanych sklepach"]
["47.73.Z Sprzedaż detaliczna wyrobów farmaceutycznych prowadzona w wyspecjalizowanych sklepach","NIE","47.73.Z","Sprzedaż detaliczna wyrobów farmaceutycznych prowadzona w wyspecjalizowanych sklepach"]
["47.74.Z Sprzedaż detaliczna wyrobów medycznych, włączając ortopedyczne, prowadzona w wyspecjalizowanych sklepach","NIE","47.74.Z","Sprzedaż detaliczna wyrobów medycznych, włączając ortopedyczne, prowadzona w wyspecjalizowanych sklepach"]
["47.75.Z Sprzedaż detaliczna kosmetyków i artykułów toaletowych prowadzona w wyspecjalizowanych sklepach","NIE","47.75.Z","Sprzedaż detaliczna kosmetyków i artykułów toaletowych prowadzona w wyspecjalizowanych sklepach"]
["47.76.Z Sprzedaż detaliczna kwiatów, roślin, nasion, nawozów, żywych zwierząt domowych, karmy dla zwierząt domowych prowadzona w wyspecjalizowanych sklepach","NIE","47.76.Z","Sprzedaż detaliczna kwiatów, roślin, nasion, nawozów, żywych zwierząt domowych, karmy dla zwierząt domowych prowadzona w wyspecjalizowanych sklepach"]
["47.77.Z Sprzedaż detaliczna zegarków, zegarów i biżuterii prowadzona w wyspecjalizowanych sklepach","NIE","47.77.Z","Sprzedaż detaliczna zegarków, zegarów i biżuterii prowadzona w wyspecjalizowanych sklepach"]
["47.78.Z Sprzedaż detaliczna pozostałych nowych wyrobów prowadzona w wyspecjalizowanych sklepach","NIE","47.78.Z","Sprzedaż detaliczna pozostałych nowych wyrobów prowadzona w wyspecjalizowanych sklepach"]
["47.79.Z Sprzedaż detaliczna artykułów używanych prowadzona w wyspecjalizowanych sklepach","NIE","47.79.Z","Sprzedaż detaliczna artykułów używanych prowadzona w wyspecjalizowanych sklepach"]
["47.81.Z Sprzedaż detaliczna żywności, napojów i wyrobów tytoniowych prowadzona na straganach i targowiskach","NIE","47.81.Z","Sprzedaż detaliczna żywności, napojów i wyrobów tytoniowych prowadzona na straganach i targowiskach"]
["47.82.Z Sprzedaż detaliczna wyrobów tekstylnych, odzieży i obuwia prowadzona na straganach i targowiskach","NIE","47.82.Z","Sprzedaż detaliczna wyrobów tekstylnych, odzieży i obuwia prowadzona na straganach i targowiskach"]
["47.89.Z Sprzedaż detaliczna pozostałych wyrobów prowadzona na straganach i targowiskach","NIE","47.89.Z","Sprzedaż detaliczna pozostałych wyrobów prowadzona na straganach i targowiskach"]
["47.91.Z Sprzedaż detaliczna prowadzona przez domy sprzedaży wysyłkowej lub Internet","NIE","47.91.Z","Sprzedaż detaliczna prowadzona przez domy sprzedaży wysyłkowej lub Internet"]
["47.99.Z Pozostała sprzedaż detaliczna prowadzona poza siecią sklepową, straganami i targowiskami","NIE","47.99.Z","Pozostała sprzedaż detaliczna prowadzona poza siecią sklepową, straganami i targowiskami"]
["49.10.Z Transport kolejowy pasażerski międzymiastowy","NIE","49.10.Z","Transport kolejowy pasażerski międzymiastowy"]
["49.20.Z Transport kolejowy towarów","NIE","49.20.Z","Transport kolejowy towarów"]
["49.31.Z Transport lądowy pasażerski, miejski i podmiejski","NIE","49.31.Z","Transport lądowy pasażerski, miejski i podmiejski"]
["49.32.Z Działalność taksówek osobowych","NIE","49.32.Z","Działalność taksówek osobowych"]
["49.39.Z Pozostały transport lądowy pasażerski, gdzie indziej niesklasyfikowany","NIE","49.39.Z","Pozostały transport lądowy pasażerski, gdzie indziej niesklasyfikowany"]
["49.41.Z Transport drogowy towarów","NIE","49.41.Z","Transport drogowy towarów"]
["49.42.Z Działalność usługowa związana z przeprowadzkami","NIE","49.42.Z","Działalność usługowa związana z przeprowadzkami"]
["49.50.A Transport rurociągami paliw gazowych","TAK","49.50.A","Transport rurociągami paliw gazowych"]
["49.50.B Transport rurociągowy pozostałych towarów","TAK","49.50.B","Transport rurociągowy pozostałych towarów"]
["50.10.Z Transport morski i przybrzeżny pasażerski","TAK","50.10.Z","Transport morski i przybrzeżny pasażerski"]
["50.20.Z Transport morski i przybrzeżny towarów","TAK","50.20.Z","Transport morski i przybrzeżny towarów"]
["50.30.Z Transport wodny śródlądowy pasażerski ","NIE","50.30.Z","Transport wodny śródlądowy pasażerski "]
["50.40.Z Transport wodny śródlądowy towarów","TAK","50.40.Z","Transport wodny śródlądowy towarów"]
["51.10.Z Transport lotniczy pasażerski","NIE","51.10.Z","Transport lotniczy pasażerski"]
["51.21.Z Transport lotniczy towarów","NIE","51.21.Z","Transport lotniczy towarów"]
["51.22.Z Transport kosmiczny","TAK","51.22.Z","Transport kosmiczny"]
["52.10.A Magazynowanie i przechowywanie paliw gazowych","TAK","52.10.A","Magazynowanie i przechowywanie paliw gazowych"]
["52.10.B Magazynowanie i przechowywanie pozostałych towarów","TAK","52.10.B","Magazynowanie i przechowywanie pozostałych towarów"]
["52.21.Z Działalność usługowa wspomagająca transport lądowy","TAK","52.21.Z","Działalność usługowa wspomagająca transport lądowy"]
["52.22.A Działalność usługowa wspomagająca transport morski","TAK","52.22.A","Działalność usługowa wspomagająca transport morski"]
["52.22.B Działalność usługowa wspomagająca transport śródlądowy","TAK","52.22.B","Działalność usługowa wspomagająca transport śródlądowy"]
["52.23.Z Działalność usługowa wspomagająca transport lotniczy","TAK","52.23.Z","Działalność usługowa wspomagająca transport lotniczy"]
["52.24.A Przeładunek towarów w portach morskich","TAK","52.24.A","Przeładunek towarów w portach morskich"]
["52.24.B Przeładunek towarów w portach śródlądowych","TAK","52.24.B","Przeładunek towarów w portach śródlądowych"]
["52.24.C Przeładunek towarów w pozostałych punktach przeładunkowych","TAK","52.24.C","Przeładunek towarów w pozostałych punktach przeładunkowych"]
["52.29.A Działalność morskich agencji transportowych","TAK","52.29.A","Działalność morskich agencji transportowych"]
["52.29.B Działalność śródlądowych agencji transportowych","TAK","52.29.B","Działalność śródlądowych agencji transportowych"]
["52.29.C Działalność pozostałych agencji transportowych","TAK","52.29.C","Działalność pozostałych agencji transportowych"]
["53.10.Z Działalność pocztowa objęta obowiązkiem świadczenia usług powszechnych (operatora publicznego)","NIE","53.10.Z","Działalność pocztowa objęta obowiązkiem świadczenia usług powszechnych (operatora publicznego)"]
["53.20.Z Pozostała działalność pocztowa i kurierska","NIE","53.20.Z","Pozostała działalność pocztowa i kurierska"]
["55.10.Z Hotele i podobne obiekty zakwaterowania","NIE","55.10.Z","Hotele i podobne obiekty zakwaterowania"]
["55.20.Z Obiekty noclegowe turystyczne i miejsca krótkotrwałego zakwaterowania","NIE","55.20.Z","Obiekty noclegowe turystyczne i miejsca krótkotrwałego zakwaterowania"]
["55.30.Z Pola kempingowe (włączając pola dla pojazdów kempingowych) i pola namiotowe","NIE","55.30.Z","Pola kempingowe (włączając pola dla pojazdów kempingowych) i pola namiotowe"]
["55.90.Z Pozostałe zakwaterowanie","NIE","55.90.Z","Pozostałe zakwaterowanie"]
["56.10.A Restauracje i inne stałe placówki gastronomiczne","NIE","56.10.A","Restauracje i inne stałe placówki gastronomiczne"]
["56.10.B Ruchome placówki gastronomiczne","NIE","56.10.B","Ruchome placówki gastronomiczne"]
["56.21.Z Przygotowywanie i dostarczanie żywności dla odbiorców zewnętrznych (katering)","NIE","56.21.Z","Przygotowywanie i dostarczanie żywności dla odbiorców zewnętrznych (katering)"]
["56.29.Z Pozostała usługowa działalność gastronomiczna","NIE","56.29.Z","Pozostała usługowa działalność gastronomiczna"]
["56.30.Z Przygotowywanie i podawanie napojów","NIE","56.30.Z","Przygotowywanie i podawanie napojów"]
["58.11.Z Wydawanie książek","NIE","58.11.Z","Wydawanie książek"]
["58.12.Z Wydawanie wykazów oraz list (np. adresowych, telefonicznych)","NIE","58.12.Z","Wydawanie wykazów oraz list (np. adresowych, telefonicznych)"]
["58.13.Z Wydawanie gazet","NIE","58.13.Z","Wydawanie gazet"]
["58.14.Z Wydawanie czasopism i pozostałych periodyków","NIE","58.14.Z","Wydawanie czasopism i pozostałych periodyków"]
["58.19.Z Pozostała działalność wydawnicza","NIE","58.19.Z","Pozostała działalność wydawnicza"]
["58.21.Z Działalność wydawnicza w zakresie gier komputerowych","NIE","58.21.Z","Działalność wydawnicza w zakresie gier komputerowych"]
["58.29.Z Działalność wydawnicza w zakresie pozostałego oprogramowania","NIE","58.29.Z","Działalność wydawnicza w zakresie pozostałego oprogramowania"]
["59.11.Z Działalność związana z produkcją filmów, nagrań wideo i programów telewizyjnych","NIE","59.11.Z","Działalność związana z produkcją filmów, nagrań wideo i programów telewizyjnych"]
["59.12.Z Działalność postprodukcyjna związana z filmami, nagraniami wideo i programami telewizyjnymi","NIE","59.12.Z","Działalność postprodukcyjna związana z filmami, nagraniami wideo i programami telewizyjnymi"]
["59.13.Z Działalność związana z dystrybucją filmów, nagrań wideo i programów telewizyjnych","NIE","59.13.Z","Działalność związana z dystrybucją filmów, nagrań wideo i programów telewizyjnych"]
["59.14.Z Działalność związana z projekcją filmów","NIE","59.14.Z","Działalność związana z projekcją filmów"]
["59.20.Z Działalność w zakresie nagrań dźwiękowych i muzycznych","NIE","59.20.Z","Działalność w zakresie nagrań dźwiękowych i muzycznych"]
["60.10.Z Nadawanie programów radiofonicznych","NIE","60.10.Z","Nadawanie programów radiofonicznych"]
["60.20.Z Nadawanie programów telewizyjnych ogólnodostępnych i abonamentowych","NIE","60.20.Z","Nadawanie programów telewizyjnych ogólnodostępnych i abonamentowych"]
["61.10.Z Działalność w zakresie telekomunikacji przewodowej","NIE","61.10.Z","Działalność w zakresie telekomunikacji przewodowej"]
["61.20.Z Działalność w zakresie telekomunikacji bezprzewodowej, z wyłączeniem telekomunikacji satelitarnej","NIE","61.20.Z","Działalność w zakresie telekomunikacji bezprzewodowej, z wyłączeniem telekomunikacji satelitarnej"]
["61.30.Z Działalność w zakresie telekomunikacji satelitarnej","NIE","61.30.Z","Działalność w zakresie telekomunikacji satelitarnej"]
["61.90.Z Działalność w zakresie pozostałej telekomunikacji","NIE","61.90.Z","Działalność w zakresie pozostałej telekomunikacji"]
["62.01.Z Działalność związana z oprogramowaniem","NIE","62.01.Z","Działalność związana z oprogramowaniem"]
["62.02.Z Działalność związana z doradztwem w zakresie informatyki","NIE","62.02.Z","Działalność związana z doradztwem w zakresie informatyki"]
["62.03.Z Działalność związana z zarządzaniem urządzeniami informatycznymi","NIE","62.03.Z","Działalność związana z zarządzaniem urządzeniami informatycznymi"]
["62.09.Z Pozostała działalność usługowa w zakresie technologii informatycznych i komputerowych","NIE","62.09.Z","Pozostała działalność usługowa w zakresie technologii informatycznych i komputerowych"]
["63.11.Z Przetwarzanie danych; zarządzanie stronami internetowymi (hosting) i podobna działalność","NIE","63.11.Z","Przetwarzanie danych; zarządzanie stronami internetowymi (hosting) i podobna działalność"]
["63.12.Z Działalność portali internetowych","NIE","63.12.Z","Działalność portali internetowych"]
["63.91.Z Działalność agencji informacyjnych","NIE","63.91.Z","Działalność agencji informacyjnych"]
["63.99.Z Pozostała działalność usługowa w zakresie informacji, gdzie indziej niesklasyfikowana","NIE","63.99.Z","Pozostała działalność usługowa w zakresie informacji, gdzie indziej niesklasyfikowana"]
["64.11.Z Działalność banku centralnego","NIE","64.11.Z","Działalność banku centralnego"]
["64.19.Z Pozostałe pośrednictwo pieniężne","NIE","64.19.Z","Pozostałe pośrednictwo pieniężne"]
["64.20.Z Działalność holdingów finansowych","NIE","64.20.Z","Działalność holdingów finansowych"]
["64.30.Z Działalność trustów, funduszów i podobnych instytucji finansowych","NIE","64.30.Z","Działalność trustów, funduszów i podobnych instytucji finansowych"]
["64.91.Z Leasing finansowy","NIE","64.91.Z","Leasing finansowy"]
["64.92.Z Pozostałe formy udzielania kredytów","NIE","64.92.Z","Pozostałe formy udzielania kredytów"]
["64.99.Z Pozostała finansowa działalność usługowa, gdzie indziej niesklasyfikowana, z wyłączeniem ubezpieczeń i funduszów emerytalnych","NIE","64.99.Z","Pozostała finansowa działalność usługowa, gdzie indziej niesklasyfikowana, z wyłączeniem ubezpieczeń i funduszów emerytalnych"]
["65.11.Z Ubezpieczenia na życie","NIE","65.11.Z","Ubezpieczenia na życie"]
["65.12.Z Pozostałe ubezpieczenia osobowe oraz ubezpieczenia majątkowe","NIE","65.12.Z","Pozostałe ubezpieczenia osobowe oraz ubezpieczenia majątkowe"]
["65.20.Z Reasekuracja","NIE","65.20.Z","Reasekuracja"]
["65.30.Z Fundusze emerytalne","NIE","65.30.Z","Fundusze emerytalne"]
["66.11.Z Zarządzanie rynkami finansowymi","NIE","66.11.Z","Zarządzanie rynkami finansowymi"]
["66.12.Z Działalność maklerska związana z rynkiem papierów wartościowych i towarów giełdowych","NIE","66.12.Z","Działalność maklerska związana z rynkiem papierów wartościowych i towarów giełdowych"]
["66.19.Z Pozostała działalność wspomagająca usługi finansowe, z wyłączeniem ubezpieczeń i funduszów emerytalnych","NIE","66.19.Z","Pozostała działalność wspomagająca usługi finansowe, z wyłączeniem ubezpieczeń i funduszów emerytalnych"]
["66.21.Z Działalność związana z oceną ryzyka i szacowaniem poniesionych strat","NIE","66.21.Z","Działalność związana z oceną ryzyka i szacowaniem poniesionych strat"]
["66.22.Z Działalność agentów i brokerów ubezpieczeniowych","NIE","66.22.Z","Działalność agentów i brokerów ubezpieczeniowych"]
["66.29.Z Pozostała działalność wspomagająca ubezpieczenia i fundusze emerytalne","NIE","66.29.Z","Pozostała działalność wspomagająca ubezpieczenia i fundusze emerytalne"]
["66.30.Z Działalność związana z zarządzaniem funduszami","NIE","66.30.Z","Działalność związana z zarządzaniem funduszami"]
["68.10.Z Kupno i sprzedaż nieruchomości na własny rachunek","NIE","68.10.Z","Kupno i sprzedaż nieruchomości na własny rachunek"]
["68.20.Z Wynajem i zarządzanie nieruchomościami własnymi lub dzierżawionymi","TAK","68.20.Z","Wynajem i zarządzanie nieruchomościami własnymi lub dzierżawionymi"]
["68.31.Z Pośrednictwo w obrocie nieruchomościami","NIE","68.31.Z","Pośrednictwo w obrocie nieruchomościami"]
["68.32.Z Zarządzanie nieruchomościami wykonywane na zlecenie","NIE","68.32.Z","Zarządzanie nieruchomościami wykonywane na zlecenie"]
["69.10.Z Działalność prawnicza","NIE","69.10.Z","Działalność prawnicza"]
["69.20.Z Działalność rachunkowo-księgowa; doradztwo podatkowe","NIE","69.20.Z","Działalność rachunkowo-księgowa; doradztwo podatkowe"]
["70.10.Z Działalność firm centralnych (head offices) i holdingów, z wyłączeniem holdingów finansowych","NIE","70.10.Z","Działalność firm centralnych (head offices) i holdingów, z wyłączeniem holdingów finansowych"]
["70.21.Z Stosunki międzyludzkie (public relations) i komunikacja","NIE","70.21.Z","Stosunki międzyludzkie (public relations) i komunikacja"]
["70.22.Z Pozostałe doradztwo w zakresie prowadzenia działalności gospodarczej i zarządzania","NIE","70.22.Z","Pozostałe doradztwo w zakresie prowadzenia działalności gospodarczej i zarządzania"]
["71.11.Z Działalność w zakresie architektury","NIE","71.11.Z","Działalność w zakresie architektury"]
["71.12.Z Działalność w zakresie inżynierii i związane z nią doradztwo techniczne","NIE","71.12.Z","Działalność w zakresie inżynierii i związane z nią doradztwo techniczne"]
["71.20.A Badania i analizy związane z jakością żywności","NIE","71.20.A","Badania i analizy związane z jakością żywności"]
["71.20.B Pozostałe badania i analizy techniczne","NIE","71.20.B","Pozostałe badania i analizy techniczne"]
["72.11.Z Badania naukowe i prace rozwojowe w dziedzinie biotechnologii","NIE","72.11.Z","Badania naukowe i prace rozwojowe w dziedzinie biotechnologii"]
["72.19.Z Badania naukowe i prace rozwojowe w dziedzinie pozostałych nauk przyrodniczych i technicznych","NIE","72.19.Z","Badania naukowe i prace rozwojowe w dziedzinie pozostałych nauk przyrodniczych i technicznych"]
["72.20.Z Badania naukowe i prace rozwojowe w dziedzinie nauk społecznych i humanistycznych","NIE","72.20.Z","Badania naukowe i prace rozwojowe w dziedzinie nauk społecznych i humanistycznych"]
["73.11.Z Działalność agencji reklamowych","NIE","73.11.Z","Działalność agencji reklamowych"]
["73.12.A Pośrednictwo w sprzedaży czasu i miejsca na cele reklamowe w radio i telewizji","NIE","73.12.A","Pośrednictwo w sprzedaży czasu i miejsca na cele reklamowe w radio i telewizji"]
["73.12.B Pośrednictwo w sprzedaży miejsca na cele reklamowe w mediach drukowanych","NIE","73.12.B","Pośrednictwo w sprzedaży miejsca na cele reklamowe w mediach drukowanych"]
["73.12.C Pośrednictwo w sprzedaży miejsca na cele reklamowe w mediach elektronicznych (Internet)","NIE","73.12.C","Pośrednictwo w sprzedaży miejsca na cele reklamowe w mediach elektronicznych (Internet)"]
["73.12.D Pośrednictwo w sprzedaży miejsca na cele reklamowe w pozostałych mediach","NIE","73.12.D","Pośrednictwo w sprzedaży miejsca na cele reklamowe w pozostałych mediach"]
["73.20.Z Badanie rynku i opinii publicznej","NIE","73.20.Z","Badanie rynku i opinii publicznej"]
["74.10.Z Działalność w zakresie specjalistycznego projektowania","NIE","74.10.Z","Działalność w zakresie specjalistycznego projektowania"]
["74.20.Z Działalność fotograficzna","NIE","74.20.Z","Działalność fotograficzna"]
["74.30.Z Działalność związana z tłumaczeniami","NIE","74.30.Z","Działalność związana z tłumaczeniami"]
["74.90.Z Pozostała działalność profesjonalna, naukowa i techniczna, gdzie indziej niesklasyfikowana","NIE","74.90.Z","Pozostała działalność profesjonalna, naukowa i techniczna, gdzie indziej niesklasyfikowana"]
["75.00.Z DZIAŁALNOŚĆ WETERYNARYJNA","NIE","75.00.Z","DZIAŁALNOŚĆ WETERYNARYJNA"]
["77.11.Z Wynajem i dzierżawa samochodów osobowych i furgonetek","NIE","77.11.Z","Wynajem i dzierżawa samochodów osobowych i furgonetek"]
["77.12.Z Wynajem i dzierżawa pozostałych pojazdów samochodowych, z wyłączeniem motocykli","NIE","77.12.Z","Wynajem i dzierżawa pozostałych pojazdów samochodowych, z wyłączeniem motocykli"]
["77.21.Z Wypożyczanie i dzierżawa sprzętu rekreacyjnego i sportowego","NIE","77.21.Z","Wypożyczanie i dzierżawa sprzętu rekreacyjnego i sportowego"]
["77.22.Z Wypożyczanie kaset wideo, płyt CD, DVD itp.","NIE","77.22.Z","Wypożyczanie kaset wideo, płyt CD, DVD itp."]
["77.29.Z Wypożyczanie i dzierżawa pozostałych artykułów użytku osobistego i domowego","NIE","77.29.Z","Wypożyczanie i dzierżawa pozostałych artykułów użytku osobistego i domowego"]
["77.31.Z Wynajem i dzierżawa maszyn i urządzeń rolniczych","NIE","77.31.Z","Wynajem i dzierżawa maszyn i urządzeń rolniczych"]
["77.32.Z Wynajem i dzierżawa maszyn i urządzeń budowlanych","NIE","77.32.Z","Wynajem i dzierżawa maszyn i urządzeń budowlanych"]
["77.33.Z Wynajem i dzierżawa maszyn i urządzeń biurowych, włączając komputery","NIE","77.33.Z","Wynajem i dzierżawa maszyn i urządzeń biurowych, włączając komputery"]
["77.34.Z Wynajem i dzierżawa środków transportu wodnego","NIE","77.34.Z","Wynajem i dzierżawa środków transportu wodnego"]
["77.35.Z Wynajem i dzierżawa środków transportu lotniczego","NIE","77.35.Z","Wynajem i dzierżawa środków transportu lotniczego"]
["77.39.Z Wynajem i dzierżawa pozostałych maszyn, urządzeń oraz dóbr materialnych, gdzie indziej niesklasyfikowane","NIE","77.39.Z","Wynajem i dzierżawa pozostałych maszyn, urządzeń oraz dóbr materialnych, gdzie indziej niesklasyfikowane"]
["77.40.Z Dzierżawa własności intelektualnej i podobnych produktów, z wyłączeniem prac chronionych prawem autorskim","NIE","77.40.Z","Dzierżawa własności intelektualnej i podobnych produktów, z wyłączeniem prac chronionych prawem autorskim"]
["78.10.Z Działalność związana z wyszukiwaniem miejsc pracy i pozyskiwaniem pracowników","NIE","78.10.Z","Działalność związana z wyszukiwaniem miejsc pracy i pozyskiwaniem pracowników"]
["78.20.Z Działalność agencji pracy tymczasowej","NIE","78.20.Z","Działalność agencji pracy tymczasowej"]
["78.30.Z Pozostała działalność związana z udostępnianiem pracowników","NIE","78.30.Z","Pozostała działalność związana z udostępnianiem pracowników"]
["79.11.A Działalność agentów turystycznych","NIE","79.11.A","Działalność agentów turystycznych"]
["79.11.B Działalność pośredników turystycznych","NIE","79.11.B","Działalność pośredników turystycznych"]
["79.12.Z Działalność organizatorów turystyki","NIE","79.12.Z","Działalność organizatorów turystyki"]
["79.90.A Działalność pilotów wycieczek i przewodników turystycznych","NIE","79.90.A","Działalność pilotów wycieczek i przewodników turystycznych"]
["79.90.B Działalność w zakresie informacji turystycznej","NIE","79.90.B","Działalność w zakresie informacji turystycznej"]
["79.90.C Pozostała działalność usługowa w zakresie rezerwacji, gdzie indziej niesklasyfikowana","NIE","79.90.C","Pozostała działalność usługowa w zakresie rezerwacji, gdzie indziej niesklasyfikowana"]
["80.10.Z Działalność ochroniarska, z wyłączeniem obsługi systemów bezpieczeństwa","TAK","80.10.Z","Działalność ochroniarska, z wyłączeniem obsługi systemów bezpieczeństwa"]
["80.20.Z Działalność ochroniarska w zakresie obsługi systemów bezpieczeństwa","NIE","80.20.Z","Działalność ochroniarska w zakresie obsługi systemów bezpieczeństwa"]
["80.30.Z Działalność detektywistyczna","NIE","80.30.Z","Działalność detektywistyczna"]
["81.10.Z Działalność pomocnicza związana z utrzymaniem porządku w budynkach","NIE","81.10.Z","Działalność pomocnicza związana z utrzymaniem porządku w budynkach"]
["81.21.Z Niespecjalistyczne sprzątanie budynków i obiektów przemysłowych","NIE","81.21.Z","Niespecjalistyczne sprzątanie budynków i obiektów przemysłowych"]
["81.22.Z Specjalistyczne sprzątanie budynków i obiektów przemysłowych","NIE","81.22.Z","Specjalistyczne sprzątanie budynków i obiektów przemysłowych"]
["81.29.Z Pozostałe sprzątanie","NIE","81.29.Z","Pozostałe sprzątanie"]
["81.30.Z Działalność usługowa związana z zagospodarowaniem terenów zieleni","NIE","81.30.Z","Działalność usługowa związana z zagospodarowaniem terenów zieleni"]
["82.11.Z Działalność usługowa związana z administracyjną obsługą biura","NIE","82.11.Z","Działalność usługowa związana z administracyjną obsługą biura"]
["82.19.Z Wykonywanie fotokopii, przygotowywanie dokumentów i pozostała specjalistyczna działalność wspomagająca prowadzenie biura","NIE","82.19.Z","Wykonywanie fotokopii, przygotowywanie dokumentów i pozostała specjalistyczna działalność wspomagająca prowadzenie biura"]
["82.20.Z Działalność centrów telefonicznych (call center)","NIE","82.20.Z","Działalność centrów telefonicznych (call center)"]
["82.30.Z Działalność związana z organizacją targów, wystaw i kongresów","NIE","82.30.Z","Działalność związana z organizacją targów, wystaw i kongresów"]
["82.91.Z Działalność świadczona przez agencje inkasa i biura kredytowe","TAK","82.91.Z","Działalność świadczona przez agencje inkasa i biura kredytowe"]
["82.92.Z Działalność związana z pakowaniem","NIE","82.92.Z","Działalność związana z pakowaniem"]
["82.99.Z Pozostała działalność wspomagająca prowadzenie działalności gospodarczej, gdzie indziej niesklasyfikowana","NIE","82.99.Z","Pozostała działalność wspomagająca prowadzenie działalności gospodarczej, gdzie indziej niesklasyfikowana"]
["84.11.Z Kierowanie podstawowymi rodzajami działalności publicznej","NIE","84.11.Z","Kierowanie podstawowymi rodzajami działalności publicznej"]
["84.12.Z Kierowanie w zakresie działalności związanej z ochroną zdrowia, edukacją, kulturą oraz pozostałymi usługami społecznymi, z wyłączeniem zabezpieczeń społecznych","NIE","84.12.Z","Kierowanie w zakresie działalności związanej z ochroną zdrowia, edukacją, kulturą oraz pozostałymi usługami społecznymi, z wyłączeniem zabezpieczeń społecznych"]
["84.13.Z Kierowanie w zakresie efektywności gospodarowania","NIE","84.13.Z","Kierowanie w zakresie efektywności gospodarowania"]
["84.21.Z Sprawy zagraniczne","NIE","84.21.Z","Sprawy zagraniczne"]
["84.22.Z Obrona narodowa","NIE","84.22.Z","Obrona narodowa"]
["84.23.Z Wymiar sprawiedliwości","NIE","84.23.Z","Wymiar sprawiedliwości"]
["84.24.Z Bezpieczeństwo państwa, porządek i bezpieczeństwo publiczne","NIE","84.24.Z","Bezpieczeństwo państwa, porządek i bezpieczeństwo publiczne"]
["84.25.Z Ochrona przeciwpożarowa","NIE","84.25.Z","Ochrona przeciwpożarowa"]
["84.30.Z Obowiązkowe zabezpieczenia społeczne","NIE","84.30.Z","Obowiązkowe zabezpieczenia społeczne"]
["85.10.Z Placówki wychowania przedszkolnego","NIE","85.10.Z","Placówki wychowania przedszkolnego"]
["85.20.Z Szkoły podstawowe","NIE","85.20.Z","Szkoły podstawowe"]
["85.31.A Gimnazja","NIE","85.31.A","Gimnazja"]
["85.31.B Licea ogólnokształcące","NIE","85.31.B","Licea ogólnokształcące"]
["85.32.A Technika","NIE","85.32.A","Technika"]
["85.32.B Branżowe szkoły I stopnia","NIE","85.32.B","Branżowe szkoły I stopnia"]
["85.32.C Szkoły specjalne przysposabiające do pracy","NIE","85.32.C","Szkoły specjalne przysposabiające do pracy"]
["85.32.D Branżowe szkoły II stopnia","NIE","85.32.D","Branżowe szkoły II stopnia"]
["85.41.A Szkoły policealne","NIE","85.41.A","Szkoły policealne"]
["85.41.B Kolegia pracowników służb społecznych","NIE","85.41.B","Kolegia pracowników służb społecznych"]
["85.41.C Placówki doskonalenia nauczycieli","NIE","85.41.C","Placówki doskonalenia nauczycieli"]
["85.42.Z Szkoły wyższe","NIE","85.42.Z","Szkoły wyższe"]
["85.51.Z Pozaszkolne formy edukacji sportowej oraz zajęć sportowych i rekreacyjnych","NIE","85.51.Z","Pozaszkolne formy edukacji sportowej oraz zajęć sportowych i rekreacyjnych"]
["85.52.Z Pozaszkolne formy edukacji artystycznej","NIE","85.52.Z","Pozaszkolne formy edukacji artystycznej"]
["85.53.Z Pozaszkolne formy edukacji z zakresu nauki jazdy i pilotażu","NIE","85.53.Z","Pozaszkolne formy edukacji z zakresu nauki jazdy i pilotażu"]
["85.59.A Nauka języków obcych","NIE","85.59.A","Nauka języków obcych"]
["85.59.B Pozostałe pozaszkolne formy edukacji, gdzie indziej niesklasyfikowane","NIE","85.59.B","Pozostałe pozaszkolne formy edukacji, gdzie indziej niesklasyfikowane"]
["85.60.Z Działalność wspomagająca edukację","NIE","85.60.Z","Działalność wspomagająca edukację"]
["86.10.Z Działalność szpitali","TAK","86.10.Z","Działalność szpitali"]
["86.21.Z Praktyka lekarska ogólna","TAK","86.21.Z","Praktyka lekarska ogólna"]
["86.22.Z Praktyka lekarska specjalistyczna","TAK","86.22.Z","Praktyka lekarska specjalistyczna"]
["86.23.Z Praktyka lekarska dentystyczna","TAK","86.23.Z","Praktyka lekarska dentystyczna"]
["86.90.A Działalność fizjoterapeutyczna","TAK","86.90.A","Działalność fizjoterapeutyczna"]
["86.90.B Działalność pogotowia ratunkowego","TAK","86.90.B","Działalność pogotowia ratunkowego"]
["86.90.C Praktyka pielęgniarek i położnych","TAK","86.90.C","Praktyka pielęgniarek i położnych"]
["86.90.D Działalność paramedyczna","TAK","86.90.D","Działalność paramedyczna"]
["86.90.E Pozostała działalność w zakresie opieki zdrowotnej, gdzie indziej niesklasyfikowana","TAK","86.90.E","Pozostała działalność w zakresie opieki zdrowotnej, gdzie indziej niesklasyfikowana"]
["87.10.Z Pomoc społeczna z zakwaterowaniem zapewniająca opiekę pielęgniarską","NIE","87.10.Z","Pomoc społeczna z zakwaterowaniem zapewniająca opiekę pielęgniarską"]
["87.20.Z Pomoc społeczna z zakwaterowaniem dla osób z zaburzeniami psychicznymi","NIE","87.20.Z","Pomoc społeczna z zakwaterowaniem dla osób z zaburzeniami psychicznymi"]
["87.30.Z Pomoc społeczna z zakwaterowaniem dla osób w podeszłym wieku i osób niepełnosprawnych","NIE","87.30.Z","Pomoc społeczna z zakwaterowaniem dla osób w podeszłym wieku i osób niepełnosprawnych"]
["87.90.Z Pozostała pomoc społeczna z zakwaterowaniem","NIE","87.90.Z","Pozostała pomoc społeczna z zakwaterowaniem"]
["88.10.Z Pomoc społeczna bez zakwaterowania dla osób w podeszłym wieku i osób niepełnosprawnych","NIE","88.10.Z","Pomoc społeczna bez zakwaterowania dla osób w podeszłym wieku i osób niepełnosprawnych"]
["88.91.Z Opieka dzienna nad dziećmi","NIE","88.91.Z","Opieka dzienna nad dziećmi"]
["88.99.Z Pozostała pomoc społeczna bez zakwaterowania, gdzie indziej niesklasyfikowana","NIE","88.99.Z","Pozostała pomoc społeczna bez zakwaterowania, gdzie indziej niesklasyfikowana"]
["90.01.Z Działalność związana z wystawianiem przedstawień artystycznych","NIE","90.01.Z","Działalność związana z wystawianiem przedstawień artystycznych"]
["90.02.Z Działalność wspomagająca wystawianie przedstawień artystycznych","NIE","90.02.Z","Działalność wspomagająca wystawianie przedstawień artystycznych"]
["90.03.Z Artystyczna i literacka działalność twórcza","NIE","90.03.Z","Artystyczna i literacka działalność twórcza"]
["90.04.Z Działalność obiektów kulturalnych","NIE","90.04.Z","Działalność obiektów kulturalnych"]
["91.01.A Działalność bibliotek","NIE","91.01.A","Działalność bibliotek"]
["91.01.B Działalność archiwów","NIE","91.01.B","Działalność archiwów"]
["91.02.Z Działalność muzeów","NIE","91.02.Z","Działalność muzeów"]
["91.03.Z Działalność historycznych miejsc i budynków oraz podobnych atrakcji turystycznych","NIE","91.03.Z","Działalność historycznych miejsc i budynków oraz podobnych atrakcji turystycznych"]
["91.04.Z Działalność ogrodów botanicznych i zoologicznych oraz obszarów i obiektów ochrony przyrody","NIE","91.04.Z","Działalność ogrodów botanicznych i zoologicznych oraz obszarów i obiektów ochrony przyrody"]
["92.00.Z DZIAŁALNOŚĆ ZWIĄZANA Z GRAMI LOSOWYMI I ZAKŁADAMI WZAJEMNYMI","TAK","92.00.Z","DZIAŁALNOŚĆ ZWIĄZANA Z GRAMI LOSOWYMI I ZAKŁADAMI WZAJEMNYMI"]
["93.11.Z Działalność obiektów sportowych","NIE","93.11.Z","Działalność obiektów sportowych"]
["93.12.Z Działalność klubów sportowych","NIE","93.12.Z","Działalność klubów sportowych"]
["93.13.Z Działalność obiektów służących poprawie kondycji fizycznej","NIE","93.13.Z","Działalność obiektów służących poprawie kondycji fizycznej"]
["93.19.Z Pozostała działalność związana ze sportem","NIE","93.19.Z","Pozostała działalność związana ze sportem"]
["93.21.Z Działalność wesołych miasteczek i parków rozrywki","NIE","93.21.Z","Działalność wesołych miasteczek i parków rozrywki"]
["93.29.Z Pozostała działalność rozrywkowa i rekreacyjna","NIE","93.29.Z","Pozostała działalność rozrywkowa i rekreacyjna"]
["94.11.Z Działalność organizacji komercyjnych i pracodawców","NIE","94.11.Z","Działalność organizacji komercyjnych i pracodawców"]
["94.12.Z Działalność organizacji profesjonalnych","NIE","94.12.Z","Działalność organizacji profesjonalnych"]
["94.20.Z Działalność związków zawodowych","NIE","94.20.Z","Działalność związków zawodowych"]
["94.91.Z Działalność organizacji religijnych","NIE","94.91.Z","Działalność organizacji religijnych"]
["94.92.Z Działalność organizacji politycznych","NIE","94.92.Z","Działalność organizacji politycznych"]
["94.99.Z Działalność pozostałych organizacji członkowskich, gdzie indziej niesklasyfikowana","NIE","94.99.Z","Działalność pozostałych organizacji członkowskich, gdzie indziej niesklasyfikowana"]
["95.11.Z Naprawa i konserwacja komputerów i urządzeń peryferyjnych","NIE","95.11.Z","Naprawa i konserwacja komputerów i urządzeń peryferyjnych"]
["95.12.Z Naprawa i konserwacja sprzętu (tele)komunikacyjnego","NIE","95.12.Z","Naprawa i konserwacja sprzętu (tele)komunikacyjnego"]
["95.21.Z Naprawa i konserwacja elektronicznego sprzętu powszechnego użytku","NIE","95.21.Z","Naprawa i konserwacja elektronicznego sprzętu powszechnego użytku"]
["95.22.Z Naprawa i konserwacja urządzeń gospodarstwa domowego oraz sprzętu użytku domowego i ogrodniczego","NIE","95.22.Z","Naprawa i konserwacja urządzeń gospodarstwa domowego oraz sprzętu użytku domowego i ogrodniczego"]
["95.23.Z Naprawa obuwia i wyrobów skórzanych","NIE","95.23.Z","Naprawa obuwia i wyrobów skórzanych"]
["95.24.Z Naprawa i konserwacja mebli i wyposażenia domowego","NIE","95.24.Z","Naprawa i konserwacja mebli i wyposażenia domowego"]
["95.25.Z Naprawa zegarów, zegarków oraz biżuterii","NIE","95.25.Z","Naprawa zegarów, zegarków oraz biżuterii"]
["95.29.Z Naprawa pozostałych artykułów użytku osobistego i domowego","NIE","95.29.Z","Naprawa pozostałych artykułów użytku osobistego i domowego"]
["96.01.Z Pranie i czyszczenie wyrobów włókienniczych i futrzarskich","TAK","96.01.Z","Pranie i czyszczenie wyrobów włókienniczych i futrzarskich"]
["96.02.Z Fryzjerstwo i pozostałe zabiegi kosmetyczne","NIE","96.02.Z","Fryzjerstwo i pozostałe zabiegi kosmetyczne"]
["96.03.Z Pogrzeby i działalność pokrewna","NIE","96.03.Z","Pogrzeby i działalność pokrewna"]
["96.04.Z Działalność usługowa związana z poprawą kondycji fizycznej","NIE","96.04.Z","Działalność usługowa związana z poprawą kondycji fizycznej"]
["96.09.Z Pozostała działalność usługowa, gdzie indziej niesklasyfikowana","NIE","96.09.Z","Pozostała działalność usługowa, gdzie indziej niesklasyfikowana"]
["97.00.Z GOSPODARSTWA DOMOWE ZATRUDNIAJĄCE PRACOWNIKÓW","NIE","97.00.Z","GOSPODARSTWA DOMOWE ZATRUDNIAJĄCE PRACOWNIKÓW"]
["98.10.Z Gospodarstwa domowe produkujące wyroby na własne potrzeby","NIE","98.10.Z","Gospodarstwa domowe produkujące wyroby na własne potrzeby"]
["98.20.Z Gospodarstwa domowe świadczące usługi na własne potrzeby","NIE","98.20.Z","Gospodarstwa domowe świadczące usługi na własne potrzeby"]
["99.00.Z ORGANIZACJE I ZESPOŁY EKSTERYTORIALNE","NIE","99.00.Z","ORGANIZACJE I ZESPOŁY EKSTERYTORIALNE"]

{"sheet":"Słowniki","index":5,"n_rows":5,"n_cols":9,"rows_kept":5,"cut":false,"hidden":true,"merged":[]}
[]
["duży","TAK","TAK - SCOPE 1","brak danych","TAK",null,"kryterium A",null,"kryterium A"]
["średni","NIE","TAK - SCOPE 2","kryterium A","NIE",null,"kryterium A i B",null,"kryterium A i B"]
["mały/mikro",null,"TAK - SCOPE 1 i 2","kryterium B","nie dotyczy",null,"kryterium C",null,"kryterium C"]
[null,null,"NIE",null,null,null,null,null,"brak danych"]

{"sheet":"EBRD_PKD_ESG risk","index":6,"n_rows":410,"n_cols":10,"rows_kept":410,"cut":false,"hidden":true,"merged":[[408,5,408,8],[319,5,319,8],[326,5,326,8],[330,5,330,8],[334,5,334,8],[342,5,342,8],[387,5,387,8],[389,5,389,8],[391,5,391,8],[395,5,395,8],[400,5,400,8],[405,5,405,8],[316,5,316,8],[0,4,0,8],[1,4,1,5],[1,6,1,8],[3,5,3,8],[41,5,41,8],[63,5,63,8],[219,5,219,8],[231,5,231,8],[244,5,244,8],[257,5,257,8],[298,5,298,8]]}
[null,null,null,null,"EBRD Environmental and Social Risk Categorisation\nList – Revised 2014"]
[null,null,null,null,null,null,"Risk Level"]
["PKD level","PKD code","PKD code for vlookup to PL version","PKD description","Code NACE Rev. 2","Category and Subcategory","Environmental","Social","Overall","Czy ryzyko ESG potencjalnie podwyższone (co najmniej 1 exluded LUB co najmniej 1 high LUB 2 medium)?"]
["1","A","A","AGRICULTURE, FORESTRY, HUNTING AND FISHING","A","Agriculture, forestry and fishing"]
["2","1","01","CROP AND ANIMAL PRODUCTION, HUNTING, INCLUDING SERVICE ACTIVITIES",1,"Crop and animal production, hunting and related service activities",null,null,null,{"$f":"IF(I5=\"\",\"\",IF(OR(AND(G5=\"medium\",H5=\"medium\"),G5=\"high\",H5=\"high\",G5=\"excluded\",H5=\"excluded\"),\"TAK\",\"NIE\"))","v":""}]
["3","1.1","01.1","Growing of non-perennial crops","1.1","Growing of non-perennial crops",null,null,null,{"$f":"IF(I6=\"\",\"\",IF(OR(AND(G6=\"medium\",H6=\"medium\"),G6=\"high\",H6=\"high\",G6=\"excluded\",H6=\"excluded\"),\"TAK\",\"NIE\"))","v":""}]
["4","1.11","01.11","Growing of cereals, leguminous crops and oil plants, for seeds, except rice","1.11","Growing of cereals (except rice), leguminous crops and oil seeds","Medium","High","Medium","TAK"]
["4","1.12","01.12","Growing of rice","1.12","Growing of rice","Medium","High","High","TAK"]
["4","1.13","01.13","Growing of vegetables, including melons, and growing of roots and tubers","1.13","Growing of vegetables and melons, roots and tubers","Medium","High","High","TAK"]
["4","1.14","01.14","Growing of sugar cane","1.14","Growing of sugar cane","Medium","High","High","TAK"]
["4","1.15","01.15","Growing of tobacco","1.15","Growing of tobacco\nNote: This activity is typically excluded from financing using EBRD funds – check your agreement with EBRD for details.","Excluded","Excluded","Excluded","TAK"]
["4","1.16","01.16","Growing of fibre crops","1.16","Growing of fibre crops (e.g. jute, flax, hemp, cotton)","Medium","High","High","TAK"]
["4","1.19","01.19","Growing of other non-perennial crops","1.19","Growing of other non-perennial crops, e.g. growing of flowers, flower seeds,  production of cut flowers and flower buds, etc.","Medium","High","High","TAK"]
["3","1.2","01.2","Growing of perennial crops","1.2","Growing of perennial crops (i.e. plants that last for more than two growing seasons, e.g. grapes, tropical and subtropical fruits, citrus fruits, bush fruits and nuts, apples, cherries, etc.)","Medium","High","High","TAK"]
["3","1.3","01.3","Plant propagation","1.3","Plant propagation (e.g. growing of plants for planting, ornamental purposes, including turf for transplanting, etc.)","Low","Low","Low","NIE"]
["3","1.4","01.4","Animal production","1.4","Animal products",null,null,null,""]
["4","1.41","01.41","Raising of dairy cattle","1.41","Raising of dairy cattle","Medium","Medium","Medium","TAK"]
["4","1.42","01.42","Raising of other cattle and buffaloes","1.42","Raising of other cattle and buffaloes","Medium","Medium","Medium","TAK"]
["4","1.43","01.43","Raising of horses and other equines","1.43","Raising of horses and other equines","Medium","Medium","Medium","TAK"]
["4","1.44","01.44","Raising of camels and camelids","1.44","Raising of camels and camelids","Medium","Medium","Medium","TAK"]
["4","1.45","01.45","Raising of sheep and goats","1.45","Raising of sheep and goats","Medium","Medium","Medium","TAK"]
["4","1.46","01.46","Raising of swine/pigs","1.46","Raising of swine/pigs","Medium","Medium","Medium","TAK"]
["4","1.47","01.47","Raising of poultry","1.47","Raising of poultry","Medium","Medium","Medium","TAK"]
["4","1.49","01.49","Raising of other animals","1.49","Raising of other animals (example dogs & cats)","Medium","Low","Medium","NIE"]
["3","1.5","01.5","Agricultural cultivation together with raising of animals (mixed activity)","1.5","Mixed farming","Medium","High","High","TAK"]
["3","1.6","01.6","Support activities to agriculture and post-harvest crop activities","1.6","Support activities to agriculture and post-harvest crop activities",null,null,null,""]
["4","1.61","01.61","Support activities for crop production","1.61","Support activities for crop production","Medium","Medium","Medium","TAK"]
["4","1.62","01.62","Support activities for farm animal production","1.62","Support activities for animal production","Medium","Medium","Medium","TAK"]
["4","1.63","01.63","Post-harvest crop activities","1.63","Post-harvest crop activities","Medium","Medium","Medium","TAK"]
["4","1.64","01.64","Seed processing for propagation","1.64","Seed process and propagation","Medium","Medium","Medium","TAK"]
["3","1.7","01.7","Hunting and acquiring of hunting animals, including service activity","1.7","Hunting, trapping and related service activities","High","Medium","High","TAK"]
["2","2","02","FORESTRY AND LOGGING",2,"Forestry and logging",null,null,null,""]
["3","2.1","02.1","Silviculture and other forestry activities, excluding gathering of forestry products","2.1","Silviculture and other forestry activities","High","High","High","TAK"]
["3","2.2","02.2","Logging","2.2","Logging","High","High","High","TAK"]
["3","2.3","02.3","Gathering of wild growing forestry products, excluding wood ","2.3","Gathering of wild growing non-wood products","Medium","Medium","Medium","TAK"]
["3","2.4","02.4","Service activity related to forestry","2.4","Support services to forestry","Medium","Medium","Medium","TAK"]
["2","3","03","FISHING AND AQUACULTURE",3,"Fishing and aquaculture",null,null,null,""]
["4","3.11","03.11","Marine fishing","3.11","Marine Fishing","High","High","High","TAK"]
["4","3.12","03.12","Freshwater fishing","3.12","Freshwater Fishing","High","Medium","HIgh","TAK"]
["4","3.21","03.21","Marine aquaculture","3.21","Marine Aquaculture","High","Medium","High","TAK"]
["4","3.22","03.22","Freshwater aquaculture","3.22","Freshwater aquaculture","High","Medium","High","TAK"]
["1","B","B","MINING AND QUARRYING","B","Mining and quarrying",null,null,null,""]
["2","5","05","MINING OF COAL AND LIGNITE",5,"Mining of coal and lignite",null,null,null,""]
["3","5.1","05.1","Mining of hard coal","5.1","Mining of hard coal","High","High","High","TAK"]
["3","5.2","05.2","Mining of lignite","5.2","Mining of lignite","High","High","High","TAK"]
["2","6","06","EXTRACTION OF CRUDE PETROLEUM AND NATURAL GAS",6,"Extraction of crude petroleum and natural gas",null,null,null,""]
["3","6.1","06.1","Extraction of crude petroleum","6.1","Extraction of crude petroleum","High","High","High","TAK"]
["3","6.2","06.2","Extraction of natural gas","6.2","Extraction of natural gas","High","High","High","TAK"]
["2","7","07","MINING OF METAL ORES",7,"Mining of metal ores",null,null,null,""]
["3","7.1","07.1","Mining of iron ores","7.1","Mining of iron ores","High","High","High","TAK"]
["4","7.21","07.21","Mining of uranium and thorium ores","7.21","Mining of uranium and thorium ores","High","High","High","TAK"]
["4","7.29","07.29","Mining of other non-ferrous metal ores","7.29","Mining of other non-ferrous metal ores","High","High","High","TAK"]
["2","8","08","OTHER MINING AND QUARRYING",8,"Other mining and quarrying",null,null,null,""]
["3","8.1","08.1","Quarrying of stone, sand and clay","8.1","Quarrying of stone, sand and clay","High","High","High","TAK"]
["4","8.11","08.11","Quarrying of ornamental and building stone, limestone, gypsum, chalk and slate","8.11","Quarrying of ornamental and building stone, limestone, gypsum, chalk and slate","High","High","High","TAK"]
["4","8.12","08.12","Operation of gravel and sand pits; mining of clays and kaolin","8.12","Operation of gravel and sand pits; mining of clays and kaolin","High","High","High","TAK"]
["4","8.91","08.91","Mining of minerals for chemical industry and for production of fertilizers","8.91","Mining of chemical and fertiliser minerals","High","High","High","TAK"]
["4","8.92","08.92","Extraction of peat","8.92","Extraction of peat","High","High","High","TAK"]
["4","8.93","08.93","Extraction of salt","8.93","Extraction of salt","High","High","High","TAK"]
["4","8.99","08.99","Other mining and quarrying not elsewhere classified","8.99","Other mining and quarrying not else classified. (abrasive materials, asbestos, siliceous fossil meals, natural graphite, natural asphalt, natural solid bitumen)","High","High","High","TAK"]
["2","9","09","MINING AND QUARRYING SUPPORT SERVICE ACTIVITIES",9,"Mining support service activities",null,null,null,""]
["3","9.1","09.1","Support activities for petroleum and natural gas extraction","9.1","Support activities for petroleum and natural gas extraction","High","High","High","TAK"]
["3","9.9","09.9","Support activities for other mining and quarrying","9.9","Support for other mining and quarrying, e.g. exploration service, geological observations, draining and pumping services","High","High","High","TAK"]
["1","C","C","MANUFACTURING","C","Manufacturing",null,null,null,""]
["2","10","10","MANUFACTURE OF FOOD PRODUCTS",10,"Manufacture of food products",null,null,null,""]
["3","10.1","10.1","Processing and preserving of meat and production of meat products","10.1","Processing preserving of meat and production of meat products",null,null,null,""]
["4","10.11","10.11","Processing and preserving of meat, excluding poultry meat","10.11","Processing and preserving of meat","Medium","High","Medium","TAK"]
["4","10.12","10.12","Processing and preserving of poultry meat","10.12","Processing and preserving of poultry meat","Medium","High","Medium","TAK"]
["4","10.13","10.13","Production of meat products, including poultry meat products","10.13","Production of meat and poultry meat products","Medium","HIgh","Medium","TAK"]
["3","10.2","10.2","Processing and preserving of fish, crustaceans and molluscs","10.2","Processing and preserving of fish, crustaceans and molluscs","Medium","Medium","Medium",{"$f":"IF(I70=\"\",\"\",IF(OR(AND(G70=\"medium\",H70=\"medium\"),G70=\"high\",H70=\"high\",G70=\"excluded\",H70=\"excluded\"),\"TAK\",\"NIE\"))","v":"TAK"}]
["3","10.3","10.3","Processing and preserving of fruit and vegetables","10.3","Processing and preserving of fruit and vegetables",null,null,null,""]
["4","10.31","10.31","Processing and preserving of potatoes","10.31","Processing and preserving of potatoes","Medium","Medium","Medium","TAK"]
["4","10.32","10.32","Manufacture of fruit and vegetable juice","10.32","Manufacture of fruit and vegetable juice","Medium","Medium","Medium","TAK"]
["4","10.39","10.39","Other processing and preserving of fruit and vegetables","10.39","Other processing and preserving of fruit and vegetables","Medium","Medium","Medium","TAK"]
["3","10.4","10.4","Manufacture of vegetable and animal oils and fats","10.4","Manufacture of vegetable and animal oils and fats",null,null,null,""]
["4","10.41","10.41","Manufacture of oils and other fluid fats","10.41","Manufacture of oils and fats","Medium","Medium","Medium","TAK"]
["4","10.42","10.42","Manufacture of margarine and similar edible fats","10.42","Manufacture of margarine and similar edible fats","Medium","Medium","Medium","TAK"]
["3","10.5","10.5","Manufacture of dairy products","10.5","Manufacture of dairy products",null,null,null,""]
["4","10.51","10.51","Operation of dairies and cheese making","10.51","Operation of dairies and cheese making","Medium","Medium","Medium","TAK"]
["4","10.52","10.52","Manufacture of ice cream","10.52","Manufacture of ice cream","Medium","Medium","Medium","TAK"]
["3","10.6","10.6","Manufacture of grain mill products, starches and starch products","10.6","Manufacture of grain mill products, starches and starch products","Medium","Medium","Medium","TAK"]
["3","10.7","10.7","Manufacture of bakery and farinaceous products","10.7","Manufacture of bakery and farinaceous products",null,null,null,""]
["4","10.71","10.71","Manufacture of bread; manufacture of fresh pastry goods and cakes","10.71","Manufacture of bread, manufacture of fresh pastry goods and cakes","Medium","Medium","Medium","TAK"]
["4","10.72","10.72","Manufacture of rusks and biscuits; manufacture of preserved pastry goods and cakes","10.72","Manufacture of rusks and biscuits; manufacture of preserved pastry goods and cakes","Medium","Medium","Medium","TAK"]
["4","10.73","10.73","Manufacture of macaroni, noodles, couscous and similar farinaceous products","10.73","Manufacture of macaroni, noodles, couscous and similar farinaceous products","Medium","Medium","Medium","TAK"]
["3","10.8","10.8","Manufacture of other food products","10.8","Manufacture of other food products (sugar, cocoa, chocolate and sugar confectionery, tea and coffee, condiments and seasoning, prepared meals and dishes, homogenised food preparations and dietetic food, and other food products","Medium","Medium","Medium","TAK"]
["3","10.9","10.9","Manufacture of prepared animal feeds","10.9","Manufacture of prepared animal feeds",null,null,null,""]
["4","10.91","10.91","Manufacture of prepared feeds for farm animals","10.91","Manufacture of prepared feeds for farm animals","Medium","Medium","Medium","TAK"]
["4","10.92","10.92","Manufacture of prepared pet foods","10.92","Manufacture of prepared pet foods","Medium","Medium","Medium","TAK"]
["2","11","11","MANUFACTURE OF BEVERAGES",11,"Manufacture of beverages (distilled alcoholic beverages, wines, cider and other fruit wines, beer malt, mineral waters and soft drinks)\nNote: Projects involving distilled alcoholic beverages are typically excluded from financing under EBRD funds – check your agreement with EBRD for details",null,null,null,"TAK"]
["4","11.1","11.01","Distilling, rectifying and blending of spirits","11.1","Distilling, rectifying and blending of spirits","Excluded","Excluded","Excluded","TAK"]
["4","11.2","11.02","Manufacture of wine from grape","11.2","Manufacture of wine from grape","Medium","Medium","Medium","TAK"]
["4","11.3","11.03","Manufacture of cider and other fruit wines","11.3","Manufacture of cider and other fruit wines","Medium","Medium","Medium","TAK"]
["2","12","12","MANUFACTURE OF TOBACCO PRODUCTS",12,"Manufacture of tobacco products\nNote: This activity is typically excluded from financing using EBRD funds – check your agreement with EBRD for details.","Excluded","Excluded","Excluded","TAK"]
["2","13","13","MANUFACTURE OF TEXTILES",13,"Manufacture of textiles",null,null,null,""]
["3","13.1","13.1","Preparation and spinning of textile fibres","13.1","Preparation of spinning of textile fibres","Medium","High","High","TAK"]
["3","13.2","13.2","Manufacture of woven fabrics","13.2","Weaving of textiles","Medium","High","High","TAK"]
["3","13.3","13.3","Finishing of textiles","13.3","Finishing of textiles","High","High","High","TAK"]
["3","13.9","13.9","Manufacture of other textiles","13.9","Manufacture of other textiles (e.g. knitted and crocheted fabrics, made-up textile articles, except apparel, carpets and rugs, cordage, rope, twine and netting, non-wovens and articles made from non-wovens, except apparel, other textiles and industrial textiles)","Medium","High","High","TAK"]
["2","14","14","MANUFACTURE OF WEARING APPAREL",14,"Manufacturing of wearing apparel",null,null,null,""]
["3","14.1","14.1","Manufacture of wearing apparel, except fur apparel","14.1","Manufacture of wearing apparel, except fur apparel (e.g. leather clothes, workwear, outerwear, underwear, other wearing apparel and accessories)","Medium","High","High","TAK"]
["3","14.2","14.2","Manufacture of articles of fur","14.2","Manufacture of articles of fur","Medium","High","High","TAK"]
["3","14.3","14.3","Manufacture of knitted and crocheted apparel","14.3","Manufacture of knotted and crocheted apparel (knitted and crocheted hosiery, other knitted and crocheted apparel)","Medium","High","High","TAK"]
["2","15","15","MANUFACTURE OF LEATHER AND RELATED PRODUCTS",15,"Manufacture of leather and related products",null,null,null,""]
["3","15.1","15.1","Tanning and dressing of leather; dressing and dyeing of fur; manufacture of luggage, handbags and similar leather goods; manufacture of saddlery","15.1","Tanning and dressing for leather, manufacture of luggage, handbags, saddlery and harness; dressing and dyeing of fur","High","High","High","TAK"]
["4","15.11","15.11","Tanning and dressing of leather; dressing and dyeing of fur","15.11","Tanning and dressing of leather; dressing and dyeing of fur","High","High","High","TAK"]
["4","15.12","15.12","Manufacture of luggage, handbags and similar leather goods; manufacture of saddlery ","15.12","Manufacture of luggage, handbags and the like, saddlery and harness","Medium","High","High","TAK"]
["3","15.2","15.2","Manufacture of footwear","15.2","Manufacture of footwear","Medium","High","High","TAK"]
["2","16","16","MANUFACTURE OF PRODUCTS OF WOOD AND CORK, EXCEPT FURNITURE; MANUFACTURE OF ARTICLES OF STRAW AND PLAITING MATERIALS",16,"Manufacture of wood and products of wood and cork, except furniture; manufacture of articles of straw and plaiting materials",null,null,null,""]
["3","16.1","16.1","Sawmilling and planing of wood","16.1","Sawmilling and planing of wood","Medium","Medium","Medium","TAK"]
["3","16.2","16.2","Manufacture of products of wood, cork, straw and plaiting materials","16.2","Manufacture of products of wood, cork, straw and plaiting materials (veneer sheets and wood-based panels, assembled parquet floors, other builders’ carpentry and joinery, wood containers, other products of wood; manufacture of articles of cork, straw and plaiting materials)","Medium","Medium","Medium","TAK"]
["2","17","17","MANUFACTURE OF PAPER AND PAPER PRODUCTS",17,"Manufacture of paper and paper products",null,null,null,""]
["4","17.11","17.11","Manufacture of pulp","17.11","Manufacture of pulp","High","High","High","TAK"]
["4","17.12","17.12","Manufacture of paper and paperboard","17.12","Manufacture of paper and paperboard","Medium","Medium","Medium","TAK"]
["3","17.2","17.2","Manufacture of articles of paper and paperboard ","17.2","Manufacture of articles of paperboard","Medium","Medium","Medium","TAK"]
["2","18","18","PRINTING AND REPRODUCTION OF RECORDED MEDIA",18,"Printing and reproduction of recorded media",null,null,null,""]
["3","18.1","18.1","Printing and service activities related to printing","18.1","Printing and service activities related to printing","Medium","Low","Medium","NIE"]
["3","18.2","18.2","Reproduction of recorded media","18.2","Reproduction of recorded media","Low","Low","Low","NIE"]
["2","19","19","MANUFACTURE AND PROCESSING OF COKE AND REFINED  PETROLEUM PRODUCTS",19,"Manufacture of coke and refined petroleum products",null,null,null,""]
["3","19.1","19.1","Manufacture and processing of coke","19.1","Manufacture of coke oven products","High","High","High","TAK"]
["3","19.2","19.2","Manufacture and processing of refind petroleum products","19.2","Manufacture of refined petroleum products","High","High","High","TAK"]
["2","20","20","MANUFACTURE OF CHEMICALS AND CHEMICAL PRODUCTS",20,"Manufacture of chemicals and chemical products",null,null,null,""]
["3","20.1","20.1","Manufacture of basic chemicals, fertilisers and nitrogen compounds, plastics and synthetic rubber in primary forms","20.1","Manufacture of basic chemicals, fertilisers and nitrogen compounds, plastics and synthetic rubber in primary forms (industrial gases, dyes and pigments, other inorganic and organic basic chemicals, fertilisers and nitrogen compounds, plastics in primary forms, synthetic rubber in primary forms)","High","High","High","TAK"]
["3","20.2","20.2","Manufacture of pesticides and other agrochemical products","20.2","Manufacture of pesticides and other agrochemical products Note: Some types excluded from assistance using EBRD funds: See EBRD’s Environmental and Social Exclusion List.","High","High","High","TAK"]
["3","20.3","20.3","Manufacture of paints, varnishes and similar coatings, printing ink and mastics","20.3","Manufacture of paints, varnishes and similar coatings, printing ink and mastics","High","High","High","TAK"]
["3","20.4","20.4","Manufacture of soap and detergents, cleaning and polishing preparations, perfumes and toilet preparations","20.4","Manufacture of soap and detergents, cleaning and polishing preparations, perfumes and toilet preparations","High","High","High","TAK"]
["3","20.5","20.5","Manufacture of other chemical products","20.5","Manufacture of other chemical products (explosives, glues, essential oils, other chemical products)","High","High","High","TAK"]
["3","20.6","20.6","Manufacture of man-made fibres","20.6","Manufacture of man-made fibres","High","High","High","TAK"]
["2","21","21","MANUFACTURE OF BASIC PHARMACEUTICAL SUBSTANCES AND MEDICINES AND OTHER PHARMACEUTICAL PRODUCTS",21,"Manufacture of basic pharmaceutical products and  pharmaceutical preparations ","High","High","High","TAK"]
["2","22","22","MANUFACTURE OF RUBBER AND PLASTIC PRODUCTS",22,"Manufacture of rubber and plastic products",null,null,null,""]
["3","22.1","22.1","Manufacture of rubber products","22.1","Manufacture of rubber products",null,null,null,""]
["4","22.11","22.11","Manufacture of rubber tyres and tubes; retreading and rebuilding of rubber tyres","22.11","Manufacture of rubber tyres and tubes; re-treading and rebuilding of rubber tyres","High","High","High","TAK"]
["4","22.19","22.19","Manufacture of other rubber products","22.19","Manufacture of other rubber products (plastic plates, sheets, tubes and profiles, plastic packing goods, etc.)","Medium","High","High","TAK"]
["3","22.2","22.2","Manufacture of plastic products","22.2","Manufacture of plastic products","High","High","High",{"$f":"IF(I134=\"\",\"\",IF(OR(AND(G134=\"medium\",H134=\"medium\"),G134=\"high\",H134=\"high\",G134=\"excluded\",H134=\"excluded\"),\"TAK\",\"NIE\"))","v":"TAK"}]
["2","23","23","MANUFACTURE OF OTHER NON-METALLIC MINERAL PRODUCTS",23,"Manufacture of other non-metallic mineral products",null,null,null,""]
["3","23.1","23.1","Manufacture of glass and glass products","23.1","Manufacture of glass and glass products (flat glass, shaping and processing of flat glass, manufacture of hollow glass, glass fibres, processing of other glass, including technical glassware)","Medium","Medium","Medium","TAK"]
["3","23.2","23.2","Manufacture of refractory products","23.2","Manufacture of refractory products","Medium","Medium","Medium","TAK"]
["3","23.3","23.3","Manufacture of ceramic building materials","23.3","Manufacture of clay building materials (ceramic tiles, and flags, bricks, tiles and construction products, in baked clay)","Medium","Medium","Medium","TAK"]
["3","23.4","23.4","Manufacture of other porcelain and ceramic products","23.4","Manufacture of porcelain and ceramic products (ceramic household and ornamental articles, sanitary fixtures; insulators and insulating fittings, other technical ceramic products and other ceramic products)","Medium","Medium","Medium","TAK"]
["3","23.5","23.5","Manufacture of cement, lime and plaster","23.5","Manufacture of cement, lime and plaster","High","Medium","High","TAK"]
["3","23.6","23.6","Manufacture of articles of concrete, cement and plaster","23.6","Manufacture of articles of concrete, cement and plaster","Medium","Medium","Medium","TAK"]
["3","23.7","23.7","Cutting, shaping and finishing of stone","23.7","Cutting, shaping and finishing of stone","Medium","Medium","Medium","TAK"]
["3","23.9","23.9","Manufacture of abrasive products and others non-metallic mineral products not elsewhere classified ","23.9","Manufacture of abrasive products and non-metallic mineral products not elsewhere classified","Medium","Medium","Medium","TAK"]
["2","24","24","MANUFACTURE OF METALS",24,"Manufacture of basic metals",null,null,null,""]
["3","24.1","24.1","Manufacture of pig iron, ferro-alloys, basic iron and steel and metallurgic articles","24.1","Manufacture of basic iron and steel and of ferro-alloys","High","High","High","TAK"]
["3","24.2","24.2","Manufacture of tubes and pipes, conduits, closed sections and connectors, of steel","24.2","Manufacture of tubes, pipes, hollow profiles and related fittings,\nof steel","High","High","High","TAK"]
["3","24.3","24.3","Manufacture of other products of first processing of steel","24.3","Manufacture of other products and first processing of steel","High","High","High","TAK"]
["3","24.4","24.4","Manufacture of precious metals and other non-ferrous metals","24.4","Manufacture of basic precious and other non-ferrous metals (e.g. aluminium, lead, zinc and tin, copper etc.","High","High","High","TAK"]
["4","24.46","24.46","Nuclear fuel production","24.46","Processing of nuclear fuel\nNote: Contact EBRD Sustainability team to check for Exclusions when lending to the processing of nuclear fuel","High","High","High","TAK"]
["3","24.5","24.5","Casting of metals","24.5","Casting of metals (iron, steel, light metals, non-ferrous metals)","High","High","High","TAK"]
["2","25","25","MANUFACTURE OF FABRICATED METAL PRODUCTS, EXCEPT MACHINERY AND EQUIPMENT",25,"Manufacture of fabricated metal products, except machinery and equipment",null,null,null,""]
["3","25.1","25.1","Manufacture of structural metal products","25.1","Manufacture of structural metal products","Low","Medium","Medium","NIE"]
["3","25.2","25.2","Manufacture of tanks, reservoirs and containers of metal","25.2","Manufacture of tanks, reservoirs and containers of metal; manufacture of central heating radiators and boilers; other tanks, reservoirs and containers of metal)","Low","Medium","Medium","NIE"]
["3","25.3","25.3","Manufacture of steam generators, except central heating hot water boilers","25.3","Manufacture of steam generators, except central heating hot water boilers","Low","Medium","Medium","NIE"]
["3","25.4","25.4","Manufacture of weapons and ammunition","25.4","Manufacture of weapons and ammunition\nNote: this activity is typically excluded from financing using EBRD’s fund – check your agreement with EBRD for details.","Excluded","Excluded","Excluded","TAK"]
["3","25.5","25.5","Forging, pressing, stamping and roll-forming of metal; powder metallurgy","25.5","Forging, pressing, stamping and roll-forming of metal; powder metallurgy","Medium","Medium","Medium","TAK"]
["3","25.6","25.6","Treatment and coating of metals; mechanical working of metal elements","25.6","Treatment and coating of metals; machining",null,null,null,""]
["4","25.61","25.61","Treatment and coating of metals","25.61","Treatment and coating of metals","High","High","High","TAK"]
["4","25.62","25.62","Mechanical working of metal elements","25.62","Machining, incl. boring, turning, milling, planing, broaching, levelling, sawing, grinding, sharpening, polishing, welding, splicing etc. of metalwork pieces","Low","Medium","Medium","NIE"]
["3","25.7","25.7","Manufacture of cutlery, tools and general hardware","25.7","Manufacture of cutlery, tools and general hardware",null,null,null,""]
["4","25.71","25.71","Manufacture of cutlery","25.71","Manufacture of cutlery","Medium","Medium","Medium","TAK"]
["4","25.72","25.72","Manufacture of locks and hinges","25.72","Manufacture of locks and hinges","Medium","Medium","Medium","TAK"]
["4","25.73","25.73","Manufacture of tools","25.73","Manufacture of tools","Medium","Medium","Medium","TAK"]
["3","25.9","25.9","Manufacture of other fabricated metal products","25.9","Manufacture of other fabricated metal products","Medium","Medium","Medium","TAK"]
["2","26","26","MANUFACTURE OF COMPUTER, ELECTRONIC AND OPTICAL PRODUCTS",26,"Manufacture of computer, electronic and optical products",null,null,null,""]
["3","26.1","26.1","Manufacture of electronic components and printed circuits","26.1","Manufacture of electronic components and boards","Medium","Low","Medium","NIE"]
["3","26.2","26.2","Manufacture of computers and peripheral equipment","26.2","Manufacture of computers and peripheral equipment","Medium","Low","Medium","NIE"]
["3","26.3","26.3","Manufacture of (tele)communication equipment","26.3","Manufacture of communication equipment","Medium","Low","Medium","NIE"]
["3","26.4","26.4","Manufacture of consumer electronics","26.4","Manufacture of consumer electronics","Medium","Low","Medium","NIE"]
["3","26.5","26.5","Manufacture of instruments and appliances for measuring, testing and navigation; watches and clocks","26.5","Manufacture of instruments and appliances for measuring, testing and navigation; watches and clocks","Medium","Low","Medium","NIE"]
["3","26.6","26.6","Manufacture of irradiation, electromedical and electrotherapeutic equipment","26.6","Manufacture of irradiation, electromedical and electrotherapeutic equipment","Medium","Low","Medium","NIE"]
["3","26.7","26.7","Manufacture of optical instruments and photographic equipment","26.7","Manufacture of optical instruments and photographic equipment","Medium","Low","Medium","NIE"]
["3","26.8","26.8","Manufacture of unrecorded magnetic and optical media","26.8","Manufacture of magnetic and optical media","Medium","Low","Medium","NIE"]
["2","27","27","MANUFACTURE OF ELECTRICAL EQUIPMENT",27,"Manufacture of electrical equipment",null,null,null,""]
["3","27.1","27.1","Manufacture of electric motors, generators, transformers and electricity distribution and control apparatus","27.1","Manufacture of electric motors, generators, transformers and electricity distribution and control apparatus\nNote: Manufacture of transformers using PCBs is excluded from EBRD’s assistance – see Environmental and Social Exclusion\nList","Medium","Medium","Medium","TAK"]
["3","27.2","27.2","Manufacture of batteries and accumulators","27.2","Manufacture of batteries and accumulators","High","Medium","High","TAK"]
["3","27.3","27.3","Manufacture of insulated wiring and installing equipment","27.3","Manufacture of wiring and wiring devices","Medium","Medium","Medium","TAK"]
["3","27.4","27.4","Manufacture of electric lighting equipment","27.4","Manufacture of electric lighting equipment","Medium","Medium","Medium","TAK"]
["3","27.5","27.5","Manufacture of domestic appliances","27.5","Manufacture of domestic appliances","Medium","Medium","Medium","TAK"]
["3","27.9","27.9","Manufacture of other electrical equipment","27.9","Manufacture of other electrical equipment","Medium","Medium","Medium","TAK"]
["2","28","28","MANUFACTURE OF MACHINERY AND EQUIPMENT NOT ELSEWHERE CLASSIFIED",28,"Manufacture of machinery and equipment not elsewhere\nclassified",null,null,null,""]
["3","28.1","28.1","Manufacture of general-purpose machinery","28.1","Manufacture of general – purpose machinery","Medium","Medium","Medium","TAK"]
["3","28.2","28.2","Manufacture of other general-purpose machinery","28.2","Manufacture of other general purpose machinery",null,null,null,""]
["4","28.21","28.21","Manufacture of ovens, furnaces and furnace burners","28.21","Manufacture of ovens, furnaces and furnace burners","Medium","Medium","Medium","TAK"]
["4","28.22","28.22","Manufacture of lifting equipment and gripping devices ","28.22","Manufacture of lifting and handling equipment","Medium","Medium","Medium","TAK"]
["4","28.23","28.23","Manufacture of office machinery and equipment, except computers and peripheral equipment","28.23","Manufacture of office machinery and equipment (except computers and peripheral equipment)","Medium","Medium","Medium","TAK"]
["4","28.24","28.24","Manufacture of power-driven hand tools","28.24","Manufacture of power-driven hand tools","Medium","Medium","Medium","TAK"]
["4","28.25","28.25","Manufacture of industrial cooling and ventilation equipment","28.25","Manufacture of non-domestic cooling and ventilation equipment Note: Manufacturing of cooling equipment using ozone depleting substances is EXCLUDED.\nNote: Some types using banned compounds (e.g. CFCs) are\nexcluded from assistance using EBRD funds. See EBRD’s Environmental and Social Exclusion List.","Medium","Medium","Medium","TAK"]
["4","28.29","28.29","Manufacture of other general-purpose machinery not elsewhere classified","28.29","Manufacture of other general-purpose machinery not elsewhere classified","Medium","Medium","Medium","TAK"]
["3","28.3","28.3","Manufacture of agricultural and forestry machinery","28.3","Manufacture of agricultural forestry machinery","Medium","Medium","Medium","TAK"]
["3","28.4","28.4","Manufacture of machines and mechanical tools","28.4","Manufacture of metal forming machinery and machine tools","Medium","Medium","Medium","TAK"]
["3","28.9","28.9","Manufacture of other special-purpose machinery","28.9","Manufacture of other special purpose machinery","Medium","Medium","Medium","TAK"]
["2","29","29","MANUFACTURE OF MOTOR VEHICLES, TRAILERS AND SEMI-TRAILERS EXCLUDING   MOTORCYCLES",29,"Manufacture of motor vehicles, trailers and semi-trailers",null,null,null,""]
["3","29.1","29.1","Manufacture of motor vehicles excluding motorcycles","29.1","Manufacture of motor vehicles","Medium","Medium","Medium","TAK"]
["3","29.2","29.2","Manufacture of bodies (coachwork) for motor vehicles; manufacture of trailers and semi-trailers","29.2","Manufacture of bodies (coachwork) for motor vehicles; manufacture of trailers and semi-trailers","Medium","Medium","Medium","TAK"]
["3","29.3","29.3","Manufacture of parts and accessories for motor vehicles","29.3","Manufacture of parts and accessories for motor vehicles","Medium","Medium","Medium","TAK"]
["2","30","30","MANUFACTURE OF OTHER TRANSPORT EQUIPMENT",30,"Manufacture of other transport equipment",null,null,null,""]
["3","30.1","30.1","Building of ships and boats","30.1","Building of ships and boats",null,null,null,{"$f":"IF(I198=\"\",\"\",IF(OR(AND(G198=\"medium\",H198=\"medium\"),G198=\"high\",H198=\"high\",G198=\"excluded\",H198=\"excluded\"),\"TAK\",\"NIE\"))","v":""}]
["4","30.11","30.11","Building of ships and floating structures","30.11","Building of ships and floating structures\nNote: The building of warships is typically excluded from financing using EBRD funds – check your agreement with EBRD for details","Medium","High","High","TAK"]
["4","30.12","30.12","Building of pleasure and sporting boats","30.12","Building of pleasure and sporting boats","Medium","Medium","Medium","TAK"]
["3","30.2","30.2","Manufacture of railway locomotives and rolling stock","30.2","Manufacture of railway locomotives and rolling stock","Medium","Medium","Medium","TAK"]
["3","30.3","30.3","Manufacture of air and spacecraft and related machinery","30.3","Manufacture of air and spacecraft and related machinery","Medium","Medium","Medium","TAK"]
["3","30.4","30.4","Manufacture of military fighting vehicles","30.4","Manufacture of military fighting vehicles, Intercontinental ballistic missiles (ICBM)\nNote: This activity is typically excluded from financing using\nEBRD funds – check your agreement with EBRD for details.","Excluded","Excluded","Excluded","TAK"]
["3","30.9","30.9","Manufacture of transport equipment not elsewhere classified","30.9","Manufacture of transport equipment not else classified. (e.g. motorcycles, bicycles and invalid carriages)","Medium","Medium","Medium","TAK"]
["2","31","31","MANUFACTURE OF FURNITURE",31,"Manufacture of furniture","Medium","Medium","Medium","TAK"]
["2","32","32","OTHER MANUFACTURING",32,"Other Manufacturing",null,null,null,""]
["3","32.1","32.1","Manufacture of jewellery, bijouterie and related articles","32.1","Manufacturing of jewellery, bijouteries and related articles","Medium","Medium","Medium","TAK"]
["3","32.2","32.2","Manufacture of musical instruments","32.2","Manufacture of musical instruments","Medium","Medium","Medium","TAK"]
["3","32.3","32.3","Manufacture of sports goods","32.3","Manufacture of sports goods","Medium","Medium","Medium","TAK"]
["3","32.4","32.4","Manufacture of games and toys","32.4","Manufacture of games and toys","Medium","Medium","Medium","TAK"]
["3","32.5","32.5","Manufacture of medical and dental instruments and supplies","32.5","Manufacture of medical and dental instruments and supplies","Medium","Medium","Medium","TAK"]
["3","32.9","32.9","Manufacturing not elsewhere classified ","32.9","Manufacturing not else classified. (brooms and brushes, protective safety equipment and clothing, pens and pencils, stamps, labels, buttons, articles of personal or household use, candles, artificial flowers, fruit and foliage, floral baskets, etc.)","Medium","Medium","Medium","TAK"]
["2","33","33","REPAIR, MAINTENANCE AND INSTALLATION OF MACHINERY AND EQUIPMENT",33,"Repair and installation of machinery and equipment",null,null,null,""]
["3","33.1","33.1","Repair and maintenance of fabricated metal products, machinery and equipment","33.1","Repair of fabricated metal products, machinery and equipment","Low","Medium","Medium","NIE"]
["4","33.14","33.14","Repair and maintenance of electrical equipment","33.14","Repair of electrical equipment","Low","Medium","Medium","NIE"]
["4","33.15","33.15","Repair and maintenance of ships and boats","33.15","Repair and maintenance of ships and boats","Low","Medium","Medium","NIE"]
["4","33.16","33.16","Repair and maintenance of aircraft and spacecraft","33.16","Repair and maintenance of aircraft and spacecraft","Low","Medium","Medium","NIE"]
["4","33.17","33.17","Repair and maintenance of other transport equipment","33.17","Repair and maintenance of other transport equipment","Low","Medium","Medium","NIE"]
["3","33.2","33.2","Installation of industrial machinery and equipment","33.2","Installation of industrial machinery and equipment","Low","Medium","Medium","NIE"]
["1","D","D","ELECTRICITY, GAS, STEAM, HOT WATER AND AIR CONDITIONING MANUFACTURING AND   SUPPLY","D","Electricity, gas steam and air conditioning supply",null,null,null,""]
["2","35","D","ELECTRICITY, GAS, STEAM, HOT WATER AND AIR CONDITIONING MANUFACTURING AND   SUPPLY",35,"Electricity, gas steam and air conditioning supply",null,null,null,""]
["3","35.1","35.1","Electric power generation, transmission and distribution","35.1","Electric power generations, transmission and distribution","High","High","High","TAK"]
["4","35.11","35.11","Production of electricity","35.11","Production of electricity","High","High","High","TAK"]
["4","35.12","35.12","Transmission of electricity","35.12","Transmission of electricity","Low","High","High","TAK"]
["4","35.13","35.13","Distribution of electricity","35.13","Distribution of electricity","Low","High","High","TAK"]
["4","35.14","35.14","Trade of electricity","35.14","Trade of electricity","Low","Low","Low","NIE"]
["3","35.2","35.2","Manufacture of gaseous fuels; distribution and trade of gaseous fuels through mains","35.2","Manufacture of gas; distribution of gaseous fuels through mains","High","High","High","TAK"]
["4","35.21","35.21","Manufacture of gaseous fuels","35.21","Manufacture of gas","High","High","High","TAK"]
["4","35.22","35.22","Distribution of gaseous fuels through mains","35.22","Distribution of gaseous fuels through mains","Medium","Medium","Medium","TAK"]
["4","35.23","35.23","Trade of gaseous fuels through mains","35.23","Trade of gas through mains","Low","Low","Low","NIE"]
["3","35.3","35.3","Steam, hot water and air conditioning manufacturing and supply","35.3","Steam and air conditioning supply","Medium","Medium","Medium","TAK"]
["1","E","E","WATER SUPPLY; SEWERAGE, WASTE MANAGEMENT AND REMEDIATION ACTIVITIES","E","Water supply (sewerage, waste management and remediation activities)",null,null,null,""]
["2","36","36","WATER COLLECTION, TREATMENT AND SUPPLY",36,"Water collection, treatment and supply","Medium","Medium","Medium","TAK"]
["2","37","37","SEWAGE DISPOSAL AND TREATMENT",37,"Sewerage","High","High","High","TAK"]
["2","38","38","WASTE COLLECTION, PROCESSING AND NEUTRALIZING ACTIVITIES; MATERIALS RECOVERY",38,"Waste collection, treatment and disposal activities; materials recovery",null,null,null,""]
["3","38.1","38.1","Waste collection","38.1","Waste collection",null,null,null,""]
["4","38.11","38.11","Collection of non-hazardous waste","38.11","Collection of non-hazardous waste","Medium","Medium","Medium","TAK"]
["4","38.12","38.12","Collection of hazardous waste","38.12","Collection of hazardous waste","High","High","High","TAK"]
["3","38.2","38.2","Waste processing and neutralizing ","38.2","Waste treatment and disposal",null,null,null,""]
["4","38.21","38.21","Treatment and disposal of non-hazardous waste","38.21","Treatment and disposal of non-hazardous waste","High","High","High","TAK"]
["4","38.22","38.22","Hazardous waste processing and neutralizing","38.22","Treatment and disposal of hazardous waste","High","High","High","TAK"]
["4","38.31","38.31","Dismantling of wrecks","38.31","Dismantling of wrecks","High","High","High","TAK"]
["4","38.32","38.32","Recovery of sorted materials","38.32","Recovery of sorted materials","High","High","High","TAK"]
["2","39","39","REMEDIATION ACTIVITIES AND OTHER WASTE MANAGEMENT SERVICES",39,"Remediation activities and other waste management services","High","High","High","TAK"]
["1","F","F","CONSTRUCTION","F","Construction",null,null,null,""]
["2","41","41","Construction of buildings",41,"Construction of buildings",null,null,null,""]
["3","41.1","41.1","Realization of building projects related to erection of buildings","41.1","Development of building projects","Low","Low","Low","NIE"]
["3","41.2","41.2","Building works related to erection of residential and non-residential buildings","41.2","Construction of residential and non-residential buildings","High","High","High","TAK"]
["2","42","42","WORKS RELATED TO CONSTRUCTION OF CIVIL ENGINEERING",42,"Civil engineering",null,null,null,""]
["3","42.1","42.1","Works related to construction of roads and railways","42.1","Construction of roads and railways","High","High","High","TAK"]
["3","42.2","42.2","Works related to construction of pipelines, telecommunications and electricity lines","42.2","Construction of utility projects (for fluids, electricity and telecommunications)","High","High","High","TAK"]
["3","42.9","42.9","Works related to construction of other civil engineering projects","42.9","Construction of other civil engineering projects (water projects, industrial facilities)","High","High","High","TAK"]
["2","43","43","SPECIALISED CONSTRUCTION ACTIVITIES",43,"Specialised construction activities",null,null,null,""]
["3","43.1","43.1","Demolition and site preparation","43.1","Demolition and site preparation (demolition, site preparation, test drilling and boring)","High","High","High","TAK"]
["3","43.2","43.2","Electrical, plumbing and other construction installation activities","43.2","Electrical, plumbing and other construction installation activities","Low","Medium","Medium","NIE"]
["3","43.3","43.3","Building completion and finishing","43.3","Building completion and finishing (plastering; joinery installation; floor and wall covering ; painting and glazing; other building completion and finishing)","Low","Medium","Medium","NIE"]
["3","43.9","43.9","Other specialised construction activities","43.9","Other specialised construction activities","Low","High","Medium","TAK"]
["1","G","G","WHOLESALE AND RETAIL TRADE; REPAIR OF MOTOR VEHICLES INCLUDING MOTORCYCLES","G","Wholesale and retail trade",null,null,null,""]
["2","45","45","WHOLESALE AND RETAIL TRADE OF MOTOR VEHICLES; REPAIR OF MOTOR VEHICLES ",45,"Wholesale and retail trade and repair of motor vehicles and motorcycles",null,null,null,""]
["3","45.1","45.1","Sale of motor vehicles, excluding motorcycles","45.1","Sale of motor vehicles","Low","Low","Low","NIE"]
["3","45.2","45.2","Maintenance and repair of motor vehicles, excluding motorcycles","45.2","Maintenance and repair of motor vehicles","Medium","Low","Medium","NIE"]
["3","45.3","45.3","Sale of motor vehicle parts and accessories, excluding motorcycles","45.3","Sale of motor vehicle parts and accessories","Low","Low","Low",{"$f":"IF(I262=\"\",\"\",IF(OR(AND(G262=\"medium\",H262=\"medium\"),G262=\"high\",H262=\"high\",G262=\"excluded\",H262=\"excluded\"),\"TAK\",\"NIE\"))","v":"NIE"}]
["3","45.4","45.4","Sale, maintenance and repair of motorcycles and related parts and accessories","45.4","Sale, maintenance and repair of motorcycles and related parts and accessories","Medium","Low","Medium","NIE"]
["2","46","46","WHOLESALE TRADE, EXCLUDING MOTOR VEHICLES ",46,"Wholesale trade, except of motor vehicles and motorcycles",null,null,null,""]
["3","46.1","46.1","Wholesale on a fee or contract basis","46.1","Wholesale on a fee or contract basis","Low","Low","Low","NIE"]
["3","46.2","46.2","Wholesale of agricultural raw materials and live animals","46.2","Wholesale of agricultural raw materials and live animals",null,null,null,""]
["4","46.21","46.21","Wholesale of grain, unmanufactured tobacco, seeds and animal feeds","46.21","Wholesale of grain, unmanufactured tobacco, seed and animal\nfeeds\nNote: Tobacco is EXCLUDED activity","Low","Low","Low","NIE"]
["4","46.22","46.22","Wholesale of flowers and plants","46.22","Wholesale of flowers and plants","Low","Low","Low","NIE"]
["4","46.23","46.23","Wholesale of live animals","46.23","Wholesale of live animals","Medium","Low","Medium","NIE"]
["4","46.24","46.24","Wholesale of hides, skins and leather","46.24","Wholesale of hides, skins and leather","Low","Low","Low","NIE"]
["3","46.3","46.3","Wholesale of food, beverages and tobacco","46.3","Wholesale of food, beverages and tobacco","Low","Low","Low","NIE"]
["4","46.35","46.35","Wholesale of tobacco products","46.35","Wholesale of tobacco products","Low","Low","Low","NIE"]
["3","46.4","46.4","Wholesale of household goods","46.4","Wholesale of household goods","Low","Low","Low","NIE"]
["3","46.5","46.5","Wholesale of information and communication equipment","46.5","Wholesale of information and communication equipment","Low","Low","Low","NIE"]
["3","46.6","46.6","Wholesale of machinery, equipment and supplies","46.6","Wholesale of other machinery, equipment and supplies","Low","Low","Low","NIE"]
["4","46.71","46.71","Wholesale of fuels and related products","46.71","Wholesale of solid, liquid and gaseous fuels and related products","High","High","High","TAK"]
["4","46.72","46.72","Wholesale of metals and metal ores","46.72","Wholesale of metals and metal ores","High","High","High","TAK"]
["4","46.73","46.73","Wholesale of wood, construction materials and sanitary equipment","46.73","Wholesale of wood, construction materials and sanitary equipment","Medium","Low","Medium","NIE"]
["4","46.74","46.74","Wholesale of hardware and plumbing and heating equipment and supplies","46.74","Wholesale of hardware, plumbing and heating equipment and supplies","Low","Low","Low","NIE"]
["4","46.75","46.75","Wholesale of chemical products","46.75","Wholesale of chemical products","High","High","High","TAK"]
["4","46.76","46.76","Wholesale of other intermediate products","46.76","Wholesale of other intermediate products","Low","Low","Low","NIE"]
["4","46.77","46.77","Wholesale of waste and scrap","46.77","Wholesale of waste and scrap","High","High","High","TAK"]
["3","46.9","46.9","Non-specialised wholesale trade","46.9","Non-specialised wholesale trade","Low","Low","Low","NIE"]
["2","47","47","RETAIL TRADE, EXCEPT RETAIL TRADE OF MOTOR VEHICLES ",47,"Retail trade, except of motor vehicles and motorcycles","Low","Low","Low","NIE"]
["4","47.11","47.11","Retail sale in non-specialised stores with food, beverages or tobacco predominating","47.11","Retail sale in non-specialised stores with food, beverages or tobacco predominating","Low","Medium","Medium","NIE"]
["4","47.19","47.19","Other retail sale in non-specialised stores","47.19","Other retail sale in non-specialised stores","Low","Low","Low","NIE"]
["3","47.2","47.2","Retail sale of food, beverages and tobacco in specialised stores","47.2","Retail sale of food, beverages and tobacco in specialised stores","Low","Low","Low","NIE"]
["4","47.26","47.26","Retail sale of tobacco products in specialised stores","47.26","Retail sale of tobacco products in specialised stores","Low","Low","Low","NIE"]
["3","47.3","47.3","Retail sale of fuel for motor vehicles in fuel stations","47.3","Retail sale of automotive fuel in specialised stores","High","Medium","High","TAK"]
["3","47.4","47.4","Retail sale of information and communication equipment in specialised stores","47.4","Retail sale of information and communication equipment in specialised stores","Low","Low","Low","NIE"]
["3","47.5","47.5","Retail sale of household equipment in specialised stores","47.5","Retail sale of other household equipment in specialised stores","Low","Low","Low","NIE"]
["3","47.6","47.6","Retail sale of cultural and recreation goods in specialised stores","47.6","Retail sale of cultural and recreation goods in specialised stores","Low","Low","Low","NIE"]
["3","47.7","47.7","Retail sale of other goods in specialised stores","47.7","Retail sale of other goods in specialised stores","Low","Low","Low","NIE"]
["4","47.73","47.73","Dispensing chemist in specialised stores","47.73","Dispensing chemist in specialised stores","Low","Medium","Medium","NIE"]
["4","47.74","47.74","Retail sale of medical and orthopaedic goods in specialised stores","47.74","Retail sale of medical and orthopaedic goods in specialised\nstores","Low","Medium","Medium","NIE"]
["4","47.76","47.76","Retail sale of flowers, plants, seeds, fertilisers, pet animals and pet food in specialised    stores","47.76","Retail sale of flowers, plants, seeds, fertilisers, pet animals and pet food in specialised stores","Low","Low","Medium","NIE"]
["3","47.8","47.8","Retail sale via stalls and markets","47.8","Retail sale via stalls and markets","Low","Low","Low","NIE"]
["3","47.9","47.9","Retail sale not in stores, stalls or markets","47.9","Retail trade not in stores, stalls or markets","Low","Low","Low","NIE"]
["1","H","H","TRANSPORTATION AND STORAGE","H","Transportation and Storage",null,null,null,""]
["2","49","49","LAND TRANSPORT AND TRANSPORT VIA PIPELINES",49,"Land transport and transport via pipelines",null,null,null,""]
["3","49.1","49.1","Passenger rail transport, interurban","49.1","Passenger rail transport, interurban","Low","Low","Low","NIE"]
["3","49.2","49.2","Freight rail transport","49.2","Freight rail transport","Low","Low","Low","NIE"]
["3","49.3","49.3","Other passenger land transport ","49.3","Other passenger land transport","Low","Medium","Medium","NIE"]
["3","49.4","49.4","Freight transport by road and removal services","49.4","Freight transport by road and removal services","Low","Medium","Medium","NIE"]
["3","49.5","49.5","Transport via pipeline","49.5","Transport via pipeline","High","Medium","High","TAK"]
["3","50.1","50.1","Sea and coastal passenger water transport","50.1","Sea and coastal passenger water transport","Medium","Medium","Medium","TAK"]
["3","50.2","50.2","Sea and coastal freight water transport","50.2","Sea and coastal freight water transport","High","Medium","High","TAK"]
["3","50.3","50.3","Inland passenger water transport","50.3","Inland passenger water transport","Medium","Low","Medium","NIE"]
["3","50.4","50.4","Inland freight water transport","50.4","Inland freight water transport","Medium","Medium","Medium","TAK"]
["2","51","51","AIR TRANSPORT",51,"Air Transport",null,null,null,""]
["3","51.1","51.1","Passenger air transport","51.1","Passenger air transport","Low","Low","Low","NIE"]
["3","51.2","51.2","Freight air transport and space transport","51.2","Freight air transport and space transport",null,null,null,""]
["4","51.21","51.21","Freight air transport","51.21","Freight air transport","Low","Low","Low","NIE"]
["4","51.22","51.22","Space transport","51.22","Space transport","Medium","High","High","TAK"]
["2","52","52","WAREHOUSING AND SUPPORT ACTIVITIES FOR TRANSPORTATION",52,"Warehousing and support activities for transportation","Medium","Medium","Medium","TAK"]
["2","53","53","POSTAL AND COURIER ACTIVITIES",53,"Postal and courier activities","Low","Low","Low","NIE"]
["1","I","I","ACCOMMODATION AND FOOD SERVICE ACTIVITIES","I","Accommodation and food service activities",null,null,null,""]
["2","55","55","ACCOMMODATION ",55,"Accommodation (Hotels, resort hotels, suite/apartment hotels, motels, holiday homes, youth hostels, cottages and cabins camping grounds, recreational vehicle parks, trailer parks)","Low","Medium","Medium","NIE"]
["2","56","56","FOOD AND BEVERAGE SERVICE ACTIVITIES",56,"Food and beverage service activities (restaurants and bars)","Low","Medium","Medium","NIE"]
["1","J","J","INFORMATION AND COMMUNICATION","J","Information and communication",null,null,null,""]
["2","58","58","PUBLISHING ACTIVITIES",58,"Publishing activities","Low","Low","Low","NIE"]
["2","59","59","MOTION PICTURE, VIDEO AND TELEVISION PROGRAMME PRODUCTION, SOUND RECORDING AND MUSIC PUBLISHING ACTIVITIES",59,"Motion picture, video and television programme production, sound recording and music publishing activities","Low","Low","Low","NIE"]
["2","60","60","PUBLIC AND LICENCE PROGRAMMES BROADCASTING",60,"Programming and broadcasting activities","Low","Low","Low","NIE"]
["2","61","61","TELECOMMUNICATIONS",61,"Telecommunications","Low","Medium","Medium","NIE"]
["2","62","62","COMPUTER PROGRAMMING, CONSULTANCY AND RELATED ACTIVITIES",62,"Computer programming, consultancy and related activities","Low","Low","Low","NIE"]
["2","63","63","INFORMATION SERVICE ACTIVITIES",63,"Information service activities","Low","Low","Low",{"$f":"IF(I326=\"\",\"\",IF(OR(AND(G326=\"medium\",H326=\"medium\"),G326=\"high\",H326=\"high\",G326=\"excluded\",H326=\"excluded\"),\"TAK\",\"NIE\"))","v":"NIE"}]
["1","K","K","FINANCIAL AND INSURANCE ACTIVITIES","K","Financial and insurance activities",null,null,null,""]
["2","64","64","FINANCIAL SERVICE ACTIVITIES, EXCEPT INSURANCE AND PENSION FUNDING",64,"Financial service activities, except insurance and pension funding","Low","Low","Low","NIE"]
["2","65","65","INSURANCE, REINSURANCE AND PENSION FUNDING, EXCEPT COMPULSORY SOCIAL        SECURITY",65,"Insurance, reinsurance and pension funding, except compulsory social security","Low","Low","Low","NIE"]
["2","66","66","ACTIVITIES AUXILIARY TO FINANCIAL SERVICES AND INSURANCE ACTIVITIES",66,"Activities auxiliary to financial services and insurance\nactivities","Low","Low","Low","NIE"]
["1","L","L","REAL ESTATE ACTIVITIES","L","Real estate activities",null,null,null,""]
["2","68","68","Real estate activities",68,"Real estate activities","Low","Low","Low","NIE"]
["3","68.2","68.2","Rental and operating of own or leased real estate","68.2","Renting and operating of own or leased real estate","Medium","Medium","Medium","TAK"]
["4","68.32","68.32","Management of real estate on a fee or contract basis","68.32","Management of real estate on a fee or contract basis","Low","Low","Medium","NIE"]
["1","M","M","PROFESSIONAL, SCIENTIFIC AND TECHNICAL ACTIVITIES","M","Professional scientific and technical activities",null,null,null,""]
["2","69","69","LEGAL, ACCOUNTING, BOOKKEEPING AND AUDITING ACTIVITIES; TAX CONSULTANCY",69,"Legal and accounting activities","Low","Low","Low","NIE"]
["2","70","70","ACTIVITIES OF HEAD OFFICES; MANAGEMENT CONSULTANCY ACTIVITIES",70,"Activities of head offices; management consultancy\nactivities","Low","Low","Low","NIE"]
["2","71","71","ARCHITECTURAL AND ENGINEERING ACTIVITIES; TECHNICAL TESTING AND ANALYSIS",71,"Architectural and engineering activities; technical testing and analysis","Low","Low","Low","NIE"]
["2","72","72","SCIENTIFIC RESEARCH AND DEVELOPMENT ",72,"Scientific research and development","Low","Low","Low","NIE"]
["2","73","73","ADVERTISING AND MARKET RESEARCH",73,"Advertising and market research","Low","Low","Low","NIE"]
["2","74","74","OTHER PROFESSIONAL, SCIENTIFIC AND TECHNICAL ACTIVITIES",74,"Other professional, scientific and technical activities","Low","Low","Low","NIE"]
["2","75","75","VETERINARY ACTIVITIES",75,"Veterinary activities","Low","Low","Low","NIE"]
["1","N","N","ADMINISTRATIVE AND SUPPORT SERVICE ACTIVITIES","N","Administrative and support service activities",null,null,null,""]
["2","77","77","RENTAL AND LEASING ACTIVITIES",77,"Rental and leasing activities",null,null,null,""]
["3","77.1","77.1","Rental and leasing of motor vehicles excluding motorcycles","77.1","Renting and leasing of motor vehicles",null,null,null,""]
["4","77.11","77.11","Rental and leasing of cars and light motor vehicles","77.11","Renting and leasing of cars and light motor vehicles","Low","Low","Low","NIE"]
["4","77.12","77.12","Rental and leasing of other motor vehicle, excluding motorcycles","77.12","Renting and leasing of trucks","Low","Medium","Medium","NIE"]
["3","77.2","77.2","Rental and leasing of personal and household goods","77.2","Renting and leasing of personal and household goods",null,null,null,""]
["4","77.21","77.21","Rental and leasing of recreational and sports goods","77.21","Renting and leasing of recreational and sports goods","Low","Low","Low","NIE"]
["4","77.22","77.22","Rental of video tapes and  CDs, DVDs etc.","77.22","Renting of video tapes and disks","Low","Low","Low","NIE"]
["4","77.29","77.29","Rental and leasing of other personal and household goods","77.29","Renting and leasing of other personal and household goods","Low","Low","Low","NIE"]
["3","77.3","77.3","Rental and leasing of other machinery, equipment and tangible goods","77.3","Renting and leasing of other machinery, equipment and tangible\ngoods",null,null,null,""]
["4","77.31","77.31","Rental and leasing of agricultural machinery and equipment","77.31","Renting and leasing of agricultural machinery and equipment","Low","Medium","Medium","NIE"]
["4","77.32","77.32","Rental and leasing of construction machinery and equipment","77.32","Renting and leasing of construction and civil engineering machinery and equipment","Low","Medium","Medium","NIE"]
["4","77.33","77.33","Rental and leasing of office machinery and equipment, including computers","77.33","Renting and leasing of office machinery and equipment (including computers)","Low","Low","Low","NIE"]
["4","77.34","77.34","Rental and leasing of water transport equipment","77.34","Renting and leasing of water transport equipment","Low","Medium","Medium","NIE"]
["4","77.35","77.35","Rental and leasing of air transport equipment","77.35","Renting and leasing of air transport equipment","Low","Medium","Medium","NIE"]
["4","77.39","77.39","Rental and leasing of other machinery, equipment and tangible goods not elsewhere classified","77.39","Renting and leasing of other machinery, equipment and tangible goods not elsewhere classified","Low","Medium","Medium","NIE"]
["3","77.4","77.4","Leasing of intellectual property and similar products, except copyrighted works","77.4","Leasing of intellectual property and similar products, except copy-righted works","Low","Low","Low","NIE"]
["2","78","78","EMPLOYMENT ACTIVITIES",78,"Employment activities",null,null,null,""]
["3","78.1","78.1","Activities of employment placement agencies","78.1","Activities of employment placement agencies","Low","Medium","Medium","NIE"]
["3","78.2","78.2","Temporary employment agency activities","78.2","Temporary employment agencies","Low","Medium","Medium","NIE"]
["3","78.3","78.3","Other human resources provision","78.3","Other human resources provision","Low","Medium","Medium","NIE"]
["2","79","79","TOUR OPERATOR, MIDDLEMEN, AGENTS AND OTHER RESERVATION SERVICE AND RELATED ACTIVITIES",79,"Travel agency, tour operator reservation service and related activities",null,null,null,""]
["3","79.1","79.1","Tour agents, middlemen and tour operators activities","79.1","Travel agency and tour operator activities","Low","Medium","Medium","NIE"]
["3","79.9","79.9","Other reservation service and related activities","79.9","Other reservation service and related activities","Low","Low","Low","NIE"]
["2","80","80","SECURITY AND INVESTIGATION ACTIVITIES",80,"Security and investigation activities",null,null,null,""]
["3","80.1","80.1","Private security activities, excluding security systems service activities","80.1","Private security activities","Low","High","High","TAK"]
["3","80.2","80.2","Security systems service activities","80.2","Security systems service activities","Low","Low","Low","NIE"]
["3","80.3","80.3","Investigation activities","80.3","Investigation activities","Low","Medium","Medium","NIE"]
["2","81","81","SERVICES TO BUILDINGS AND LANDSCAPE ACTIVITIES",81,"Services to buildings and landscape activities",null,null,null,""]
["3","81.1","81.1","Buildings service support activities","81.1","Combined facilities support activities","Low","Medium","Medium","NIE"]
["3","81.2","81.2","Objects cleaning activities","81.2","Cleaning activities",null,null,null,""]
["4","81.21","81.21","General cleaning of buildings","81.21","General Cleaning of buildings","Low","Medium","Medium","NIE"]
["4","81.22","81.22","Specialised building and industrial cleaning activities","81.22","Other buildings and industrial cleaning activities","Low","Medium","Medium","NIE"]
["4","81.29","81.29","Other cleaning activities","81.29","Other cleaning activities","Low","Medium","Medium","NIE"]
["3","81.3","81.3","Landscape service activities","81.3","Landscape service activities","Low","Medium","Medium","NIE"]
["2","82","82","OFFICE ADMINISTRATIVE SERVICE ACTIVITIES AND OTHER BUSINESS SUPPORT ACTIVITIES",82,"Office administrative, office support and other business\nsupport activities",null,null,null,""]
["3","82.1","82.1","Office administrative services activities, including support activities","82.1","Office administrative and support activities",null,null,null,""]
["4","82.11","82.11","Office administrative service activities","82.11","Combined office administrative service activities","Low","Low","Low","NIE"]
["4","82.19","82.19","Photocopying, document preparation and other specialised office support activities","82.19","Photocopying, document preparation and other specialised office support activities","Low","Low","Low","NIE"]
["3","82.2","82.2","Activities of call centres","82.2","Activities of call centres","Low","Low","Low","NIE"]
["3","82.3","82.3","Organisation of conventions and trade shows","82.3","Organisation of conventions and trade shows","Low","Low","Low","NIE"]
["3","82.9","82.9","Commercial activities not elsewhere classified","82.9","Business support service activities not elsewhere classified",null,null,null,""]
["4","82.91","82.91","Activities of collection agencies and credit bureaus","82.91","Activities of collection agencies and credit bureaus","Low","High","Medium","TAK"]
["4","82.92","82.92","Packaging activities","82.92","Packaging activities","Low","Medium","Medium","NIE"]
["4","82.99","82.99","Other business support service activities not elsewhere classified","82.99","Other business support service activities not elsewhere classified","Low","Low","Low","NIE"]
["1","O","O","PUBLIC ADMINISTRATION AND DEFENCE; COMPULSORY SOCIAL SECURITY","O","Public administration and defence compulsory social security",null,null,null,""]
["2","84","84","Public administration and defence; compulsory social security",84,"Public administration and defence; compulsory and social security","Low","Low","Low","NIE"]
["1","P","P","EDUCATION","P","Education",null,null,null,{"$f":"IF(I390=\"\",\"\",IF(OR(AND(G390=\"medium\",H390=\"medium\"),G390=\"high\",H390=\"high\",G390=\"excluded\",H390=\"excluded\"),\"TAK\",\"NIE\"))","v":""}]
["2","85","85","Education",85,"Education","Low","Low","Low","NIE"]
["1","Q","Q","HUMAN HEALTH AND SOCIAL WORK ACTIVITIES","Q","Human health and social work activities",null,null,null,""]
["2","86","86","HUMAN HEALTH ACTIVITIES",86,"Human health activities","Medium","Medium","Medium","TAK"]
["2","87","87","RESIDENTIAL CARE ACTIVITIES",87,"Residential care activities","Low","Medium","Medium","NIE"]
["2","88","88","SOCIAL WORK ACTIVITIES WITHOUT ACCOMMODATION",88,"Social work activities without accommodation","Low","Medium","Medium","NIE"]
["1","R","R","ARTS, ENTERTAINMENT AND RECREATION ACTIVITIES","R","Arts, entertainment and recreation",null,null,null,""]
["2","90","90","CREATIVE, ARTS AND ENTERTAINMENT ACTIVITIES",90,"Creative, arts and entertainment activities","Low","Low","Low","NIE"]
["2","91","91","LIBRARIES, ARCHIVES, MUSEUMS AND OTHER CULTURAL ACTIVITIES",91,"Libraries, archives, museums and other cultural activities","Low","Low","Low","NIE"]
["2","92","92","GAMBLING AND BETTING ACTIVITIES",92,"Gambling and betting activities\nNote: This activity is typically EXCLUDED from financing using EBRD funds – check your agreement with EBRD for details.","Excluded","Excluded","Excluded","TAK"]
["2","93","93","SPORTS ACTIVITIES AND AMUSEMENT AND RECREATION ACTIVITIES",93,"Sports activities and amusement and recreation activities","Low","Low","Low","NIE"]
["1","S","S","OTHER SERVICE ACTIVITIES","S","Other service activities",null,null,null,""]
["2","94","94","ACTIVITIES OF MEMBERSHIP ORGANISATIONS",94,"Activities of membership organisations","Low","Low","Low","NIE"]
["2","95","95","REPAIR AND MAINTENANCE OF COMPUTERS AND PERSONAL AND HOUSEHOLD GOODS",95,"Repair of computers and personal and household goods","Low","Low","Low","NIE"]
["2","96","96","OTHER PERSONAL SERVICE ACTIVITIES",96,"Other personal service activities (excluding washing and dry-cleaning of textile and fur products)","Low","Low","Low","NIE"]
["4","96.01","96.01","Washing and (dry-)cleaning of textile and fur products","96.01","Washing and (dry-)cleaning of textile and fur products","Medium","Medium","Medium","TAK"]
["1","T","T","HOUSEHOLDS AS EMPLOYERS;  GOODS- AND SERVICES-PRODUCING ACTIVITIES OF HOUSEHOLDS FOR OWN USE","T","Activities of households as employers; undifferentiated goods and services producing activities of households for own use",null,null,null,""]
["2","97","97","HOUSEHOLDS AS EMPLOYERS OF DOMESTIC PERSONNEL",97,"Activities of households as employers of domestic personnel","Low","Medium","Medium","NIE"]
["2","98","98","GOODS- AND SERVICES-PRODUCING ACTIVITIES OF HOUSEHOLDS FOR OWN USE",98,"Undifferentiated goods – and services – producing activities of private households for own use","Low","Low","Low","NIE"]
["1","U","U","EXTRATERRITORIAL ORGANISATIONS AND BODIES","U","Activities of extraterritorial organisations and bodies, e.g. diplomatic and consular missions, international organisations, etc.",null,null,null,""]
["2","99","99","EXTRATERRITORIAL ORGANISATIONS AND BODIES",99,"Activities of extraterritorial organisations and bodies","Low","Low","Low","NIE"]